Workbook

Sheet Utilitaire (hidden)
B3: Mot de passe: | C3: !1320PACC | D3: Fiche verrouillée: | E3: Oui - diffusion en ligne
B4: Fiche validée: | C4: Oui | D4: Fiche générée
B5: GES attendu: | C5: Oui | D5: Est-ce que le pop-up "validation" s'affiche: | E5: Générée
B6: Feuille accueil complètement remplie: | C6: Oui | D6: Exercice de suivi: | E6: 2022-03-31 | F6: Date de l'exercice: | G6: 2022-03-31
B7: Statut action: | C7: =Accueil!D58 -> en cours | F7: Année Courante | G7: 2022-2023
B8: Feuille Utilitaire visible: | C8: Non | D8: Titre des Onglets: | E8: Plan d'action 2013-2020 sur les changements climatiques
B9: Dernière ligne de la zone de défilement de l'onglet détail des projets: | C9: 203
B10: nombre d'indicateurs approuvés: | C10: 6
B11: Secteur: | C11: Plan d'action 2013-2020 sur les changements climatiques
B12: Numéro de séquence de l'action: | C12: 21.01 | D12: Remplir la section Évaluation requis : | E12: =IF(Utilitaire!C7=I21,"Oui",IF(C7=I23,"Oui","Non")) -> Non | F12: Première ligne masquée dans l'onglet Indicateurs : | G12: 164
B13: Première ligne masquée dans l'onglet Description: | C13: 85 | D13: Affiche onglet Évaluation: | E13: Oui | F13: Première ligne masquée dans l'onglet Évaluation: | G13: 51
B15: Listes Déroulantes
B16: Onglet "Détail des projets" | G16: Onglet "Indicateurs" | H16: DRFM COF | I16: Accueil
B17: Région Administrative | C17: Statut | D17: Classification | E17: Type d'émissions | F17: Info GES | G17: Type d'indicateur | H17: Exercice de suivi | I17: Statut de l'action | J17: Programmes | K17: Fiche verrouillée
B18: 99-toutes les régions | C18: COVID-19 - Reporté ou prolongé | D18: SU-Subvention | E18: QC-Québec | F18: Oui | G18: Minimum à atteindre | H18: 2013-2014-1 | I18: non démarrée | J18: Sans objet | K18: Oui - partenaire
B19: 01-Bas-Saint-Laurent | C19: COVID-19 - Suspendu | D19: CF-Contrat fonctionnement | E19: HQ-Hors-Québec | F19: Non | G19: Maximum à ne pas dépasser | H19: 2013-2014-2 | I19: en élaboration | J19: Programme "Faites de l'air!" | K19: Oui - diffusion en ligne
B20: 02-Saguenay- Lac-Saint-Jean | C20: COVID-19 - Annulé | D20: CI-Contrat immobilisation | E20: ND-Non distingué | G20: Binaire | H20: 2014-2015-1 | I20: en cours | J20: Programme Action-Climat Québec | K20: Non - BGFV
B21: 03-Capitale-Nationale | C21: AC-Actif | D21: CP-Contrat service professionnel | H21: 2014-2015-2 | I21: terminée | J21: Programme Chauffez vert
B22: 04-Mauricie | C22: TE-Terminé | D22: CT-Contrat service technique | H22: 2015-2016-1 | I22: en suspens | J22: Programme Climat municipalités - Phase 2
B23: 05-Estrie | C23: AT-En attente | D23: PI-Projet à l'interne | H23: 2015-2016-2 | I23: Retirée du PACC | J23: Programme d’aide gouvernementale à l’amélioration des services de transport en commun (PAGASTC )
B24: 06-Montréal | C24: SU-Suspendu | D24: AU-Autre | G24: Étape | H24: 2016-2017-1 | J24: Programme d’aide gouvernementale au transport collectif des personnes (PAGTCP)
B25: 07-Outaouais | C25: AN-Annulé | G25: Recherche | H25: 2016-2017-2 | J25: Programme d’aide gouvernementale transitoire en matière de transport routier des personnes | K25: Commentaires
B26: 08-Abitibi-Témiscamingue | C26: AB-Abandonné | G26: Étude de cas et caractérisation des impacts des CC | H26: 2017-2018-1 | J26: Programme d'aide à la réduction des émissions de gaz à effet de serre dans le transport routier des marchandises - ÉcoCamionnage | K26: Accueil
B27: 09-Côte-Nord | C27: Projet en lien avec le transport | D27: Horizon temporel Potentiel GES | F27: Catégories | G27: Surveillance et prévention | H27: 2017-2018-2 | J27: Programme d'aide à la réhabilitation des terrains contaminés - ClimatSol-Plus - Volet 1 | K27: Description
B28: 10-Nord-du-Québec | C28: Oui | D28: À la fin du projet (suite au dernier versement) | F28: Agricole | G28: Réalisation | H28: 2018-2019-1 | J28: Programme d'aide à l'amélioration de l'efficacité du transport maritime, aérien et ferroviaire en matière de réduction des émissions de GES (PETMAF) | K28: Détail des projets
B29: 11-Gaspésie-Iles-de-la-Madeleine | C29: Non | D29: Cinq ans après la commercialisation du produit | F29: Aménagement du territoire | G29: Aide à la décision | H29: 2018-2019-2 | I29: Part de financement par le PACC | J29: Programme d'aide au développement du transport collectif (PADTC) | K29: GES
B30: 12-Chaudières-Appalaches | D30: Dix ans après la commercialisation du produit | F30: Bâtiment | G30: Sensibilisation et formation | H30: 2019-2020-1 | I30: Variable | J30: Programme d'aide aux nouvelles mobilités des personnes (NOMO) | K30: Indicateurs
B31: 13-Laval | D31: 2030 | F31: Biodiversité, écosystèmes et ressources naturelles | G31: Cadre législatif | H31: 2019-2020-2 | I31: =10 & " %" -> 10 % | J31: Programme d'aide financière au développement des transports actifs dans les périmètres urbains (TAPU) | K31: Validation
B32: 14-Lanaudière | D32: 2040 | F32: Industriel, commercial et institutionnel | H32: 2020-2021-1 | I32: =20 & " %" -> 20 % | J32: Programme d'aide financière pour la planification de milieux de vie durables | K32: Tout - autres
B33: 15-Laurentides | D33: 2050 | F33: Matières résiduelles | H33: 2020-2021-2 | I33: =30 & " %" -> 30 % | J33: Programme d'aide financière pour le compostage domestique et communautaire (ACDC)
B34: 16-Montérégie | F34: Reddition de comptes et partenariats | H34: 2021-2022-1 | I34: =40 & " %" -> 40 % | J34: Programme d'aide gouvernementale au transport collectif régional (PAGTCR)
B35: 17-Centre-du-Québec | F35: Santé et sécurité publique | G35: Ajustements | H35: 2021-2022-2 | I35: =50 & " %" -> 50 % | J35: Programme d'appui à la lutte contre les changements climatiques en agriculture (PALCCA) | K35: Onglet Évaluation
B36: Québec méridional | F36: Transports | G36: Agriculture | H36: 2022-2023-1 | I36: =60 & " %" -> 60 % | J36: Programme de biomasse forestière résiduelle | K36: Type de document
B37: À l'extérieur du Québec | F37: Autres | G37: Aménagement du territoire | H37: 2022-2023-2 | I37: =70 & " %" -> 70 % | J37: Programme de coopération climatique internationale (PCCI) | K37: Cadre d'évaluation
G38: Bâtiments et infrastructures | H38: 2023-2024-1 | I38: =80 & " %" -> 80 % | J38: Programme de formation continue sur l'utilisation du bois dans la construction | K38: Cadre de suivi d'évaluation préliminaire
G39: Forêts | H39: 2023-2024-2 | I39: =90 & " %" -> 90 % | J39: Programme de récupération et de valorisation des réfrigérateurs et congélateurs domestiques | K39: Rapport d'évaluation
B40: Onglet "Description" | G40: Industriel, commercial et institutionnel | I40: =100 & " %" -> 100 % | J40: Programme de soutien à la promotion de l'électrification des transports | K40: Résultats
B41: Clientèle | C41: État d'avancement | D41: Moyens | E41: Finalité | F41: COVID | G41: Océan, fleuve ou cours d'eau | J41: Programme de soutien à la réalisation de projets de démonstration de taxis électriques
B42: Citoyens | C42: Nouvelle | D42: Encadrement légal (politiques, stratégies, codes, réglementations, etc.) | E42: Adaptation aux effets des changements climatiques | F42: Aucun changement prévu | G42: Politiques et gestion | J42: Programme de soutien à l'intégration de l'adaptation aux changements climatiques à la planification municipale (PIACC) | K42: Type d'évaluation
B43: Entreprises (grandes entreprises) | C43: En cours | D43: Innovation, recherche et développement | E43: Réduction des émissions de gaz à effet de serre | F43: Diminution des coûts prévus | G43: Services à la population | J43: Programme de soutien au déploiement des autobus scolaires électriques au Québec | K43: En cours d'action
B44: Entreprises (petites ou moyennes entreprises) | C44: Complétée | D44: Réalisation (programmes et subventions favorisant l'exécution de solutions établies) | E44: Réduction et adaptation | F44: Augmentation des coûts prévus | G44: Suivi de l'état de l'environnement | J44: Programme de soutien aux essais de fertilisation | K44: Lorsque l'action est terminée
B45: Établissements de recherche | C45: Inactive | D45: Sensibilisation, formation et promotion | E45: Coordination | F45: L'augmentation prévue du coûts des projets rend le budget 2013-2020 insuffisant pour garantir la réalisation de tous les projets entamés | G45: Autres | J45: Programme de soutien aux municipalités dans la mise en place d'infrastructures de gestion durable des eaux de pluie à la source
B46: Ministères et organismes gouvernementaux | C46: Abandonnée | F46: moins d'un mois | J46: Programme de subventions à l’adaptation des taxis et des autocars interurbains pour le transport des personnes se déplaçant en fauteuil roulant
B47: Municipalités et organismes municipaux | F47: de 1 à 6 mois | J47: Programme de traitement des matières organiques par biométhanisation et compostage (PTMOBC) | K47: Recommandation
B48: Organismes à but non lucratif | F48: de 7 à 12 mois | J48: Programme de vitrine technologique pour les bâtiments et les solutions innovantes en bois | K48: Reconduire
F49: plus de 12 mois | J49: Programme d'innovation en construction bois | K49: Ne pas reconduire
F50: Aucun changement | G50: Risques | J50: Programme ÉcoPerformance | K50: Voir commentaire ci-dessous
F51: Retards prévus, mais les engagements seront tous pris avant le 31 décembre 2020 | G51: Biodiversité | J51: Programme Prime-Vert 2013-2018 | K51: Objectifs initiaux
F52: Retards prévus et les engagements ne pourront pas tous être pris avant le 31 décembre 2020 | G52: Économie | J52: Programme Roulez vert | K52: Oui
F53: Les échéanciers pourront être devancés | G53: Environnement | J53: Programme Technoclimat | K53: Partiellement
F54: Des cibles pourraient être atteintes avant les délais prévus | G54: Ressources naturelles | J54: Programme visant à rendre les établissements d'enseignement écoresponsables | K54: Non
F55: Toutes les cibles devraient être atteintes dans les délais prévus | G55: Santé et sécurité publique | J55: Programme visant la réduction des émissions de GES par le développement du transport intermodal (PREGTI)
F56: Toutes les cibles devraient être atteintes avec certains retards | G56: Services à la population | J56: Programme visant la réduction, la récupération et le recyclage des matières organiques du secteur des industries, commerces et institutions (ICI)
F58: Aucune cible ne pourra être atteinte | J58: Autre programme
G61: Effets des changements climatiques
G62: Dégradation d'écosystèmes
G63: Dégradation du pergélisol
G64: Intensification de l'érosion
G65: Exacerbation des aléas naturels
G66: Intensification des îlots de chaleur
G67: Modifications des régimes hydriques, de vagues ou de glaces
G68: Modifications des régimes de précipitations
G69: Propagation de maladies ou d'espèces nuisibles
G70: Qualité de l'air
G71: Tous les effets
G72: Autres
K82: Onglet de la fiche
K83: Accueil
K84: Administration
K85: Description
K86: Détail des projets
K87: GES
K88: Adaptation
K89: Indicateurs
K90: Commentaires
B227: ONGLET INDICATEURS: Liste des statuts de l'action
C228: 2013-2014 | D228: 2014-2015 | E228: 2015-2016 | F228: 2016-2017 | G228: 2017-2018 | H228: 2018-2019 | I228: 2019-2020 | J228: 2020-2021 | K228: 2021-2022 | L228: 2022-2023 | M228: 2023-2024 | N228: 2024-2025 | O228: 2025-2026 | P228: 2026-2027 | Q228: 2027-2028 | R228: 2026-2029
B229: Valeurs actuelles | C229: =IF(C228=$G$7,IF(Accueil!$D$58<>$C$239,Accueil!$D$58,IF(ISBLANK(C230),B230,C230)),C230) -> non démarrée | D229: =IF(D228=$G$7,IF(Accueil!$D$58<>$C$239,Accueil!$D$58,IF(ISBLANK(D230),C230,D230)),D230) -> non démarrée | E229: =IF(E228=$G$7,IF(Accueil!$D$58<>$C$239,Accueil!$D$58,IF(ISBLANK(E230),D230,E230)),E230) -> non démarrée | F229: =IF(F228=$G$7,IF(Accueil!$D$58<>$C$239,Accueil!$D$58,IF(ISBLANK(F230),E230,F230)),F230) -> non démarrée | G229: =IF(G228=$G$7,IF(Accueil!$D$58<>$C$239,Accueil!$D$58,IF(ISBLANK(G230),F230,G230)),G230) -> non démarrée | H229: =IF(H228=$G$7,IF(Accueil!$D$58<>$C$239,Accueil!$D$58,IF(ISBLANK(H230),G230,H230)),H230) -> non démarrée | I229: =IF(I228=$G$7,IF(Accueil!$D$58<>$C$239,Accueil!$D$58,IF(ISBLANK(I230),H230,I230)),I230) -> non démarrée | J229: =IF(J228=$G$7,IF(Accueil!$D$58<>$C$239,Accueil!$D$58,IF(ISBLANK(J230),I230,J230)),J230) -> non démarrée | K229: =IF(K228=$G$7,IF(Accueil!$D$58<>$C$239,Accueil!$D$58,IF(ISBLANK(K230),J230,K230)),K230) -> non démarrée | L229: =IF(L228=$G$7,IF(Accueil!$D$58<>$C$239,Accueil!$D$58,IF(ISBLANK(L230),K230,L230)),L230) -> en cours | M229: =IF(M228=$G$7,IF(Accueil!$D$58<>$C$239,Accueil!$D$58,IF(ISBLANK(M230),L230,M230)),M230) -> 0 | N229: =IF(N228=$G$7,IF(Accueil!$D$58<>$C$239,Accueil!$D$58,IF(ISBLANK(N230),M230,N230)),N230) -> 0 | O229: =IF(O228=$G$7,IF(Accueil!$D$58<>$C$239,Accueil!$D$58,IF(ISBLANK(O230),N230,O230)),O230) -> 0 | P229: =IF(P228=$G$7,IF(Accueil!$D$58<>$C$239,Accueil!$D$58,IF(ISBLANK(P230),O230,P230)),P230) -> 0 | Q229: =IF(Q228=$G$7,IF(Accueil!$D$58<>$C$239,Accueil!$D$58,IF(ISBLANK(Q230),P230,Q230)),Q230) -> 0 | R229: =IF(R228=$G$7,IF(Accueil!$D$58<>$C$239,Accueil!$D$58,IF(ISBLANK(R230),Q230,R230)),R230) -> 0
B230: Valeurs précédentes | C230: non démarrée | D230: non démarrée | E230: non démarrée | F230: non démarrée | G230: non démarrée | H230: non démarrée | I230: non démarrée | J230: non démarrée | K230: non démarrée
B233: IdStatutAction | C233: codeStatutAction | D233: valeurStatutAction | E233: rangStatut
B234: 1 | C234: =I18 -> non démarrée | D234: 0 | E234: 1
B235: 2 | C235: =I19 -> en élaboration | D235: 0 | E235: 2
B236: 3 | C236: en cours | D236: 0.5 | E236: 3
B237: 4 | C237: terminée | D237: 1 | E237: 4
B238: 5 | C238: en suspens | D238: 0 | E238: 5
B239: 6 | C239: Retirée du PACC | D239: 0 | E239: 6

Sheet Accueil
E2: EXERCICE DE SUIVI DU PLAN D'ACTION 2013-2020 SUR LES CHANGEMENTS CLIMATIQUES
B10: Bienvenue dans votre fiche de suivi du FECC - Gestion des matières résiduelles
B14: Échéance de transmission : | D14: 2022-06-14
B15: Nouveautés pour l’exercice de suivi de mai 2020
B16: RAPPEL :
B17: * Fin du PACC : Les conventions de subventions se rapportant aux engagements saisis à SAGIR sont maintenant signées.
B18: * Fin du PACC : Les projets réalisés à l'interne dans vos organisations doivent se terminer avant le 31 décembre 2022
B19: * Fin du PACC : Vous devez compléter l'onglet Évaluation.
B20: Consignes générales :
B21: →Les informations doivent correspondre à l'avancement de l'action en date du 31 mars 2022.
B22: →Assurez-vous de valider votre fiche (onglet Validation) avant de la transmettre à l’adresse suivante : suivi.climatique@environnement.gouv.qc.ca
B23: →Toute information confidentielle doit être saisie en bleu.
B24: →Conservez la fiche en format xlsm afin de pouvoir profiter des outils conviviaux.
B25: →La plupart des cellules contenant du texte sont limitées à 250 caractères.
B27: →Copier-coller des informations à partir d’un document Word verrouille les cellules concernées. Pour pouvoir à nouveau écrire et modifier le format de ces cellules, fermez et ouvrez à nouveau la fiche.
B29: →Besoin d’assistance? Écrivez-nous à l’adresse suivante en précisant votre question et vos coordonnées : suivi.climatique@environnement.gouv.qc.ca
B50: Veuillez vérifier, corriger et compléter les informations ci-dessous :
B52: Priorité : | D52: 21 | E52: Réduire l'utilisation des halocarbures
B53: Action : | D53: 21.1 | E53: Réduction des émissions de GES en provenance des systèmes de réfrigération (OPTER) (ÉcoPerformance)
B54: Sous-action : | D54: 21.1 | E54: Réduction des émissions de GES en provenance des systèmes de réfrigération (OPTER) (ÉcoPerformance)
B55: Libellé usuel : | D55: 21.1 | E55: Réduction des émissions de GES en provenance des systèmes de réfrigération (OPTER) (Écoperformance)
B56: Programme : | D56: Programme ÉcoPerformance
B57: Nom du programme :
B58: Statut de l’action : | D58: en cours
B59: Raison du statut de l’action :
B63: Informations en date du : | D63: =Utilitaire!G6 -> 2022-03-31
B65: Ministère porteur : | D65: MERN (SITE) | I65: Direction responsable : | K65: DG opérations et innovation
B66: Partenaires : | D66: S.O. | I66: Part de financement par le FECC : | K66: 1
B67: Budget 2013-2020 (M$) : | D67: 30.444 | I67: Autres sources de financement : | K67: Fonds pour une économie à faibles émissions de carbone (fédéral) et Plan budgétaire 2019-2020
B68: Date de lancement de l’action : | D68: 2013-10-28 | I68: Date de fin de l’action : | K68: 2024-03-31
B69: Section réservée à l’usage exclusif du BECC (lignes 70 à 73 non publiées)
B70: Chargé de projet : | D70: Guy Desbiens | I70: Tél. : | K70: 418 627-6379, poste 708016
B71: Responsable ministériel : | D71: Dominique Deschênes | I71: Tél. : | K71: 418 627-6379, poste 708088
B72: Personne ressource pour le BECC : | D72: Guy Desbiens | I72: Tél. : | K72: 418-627-6379 (708016)
B73: Estimation des sommes résiduelles au 31 décembre 2020 ($) : | D73: 0 | I73: Précisions sur le montant des sommes résiduelles : | K73: s
B74: Téléphone pour informations : | D74: 1 866 266-0008
B75: Référence Web : | D75: https://transitionenergetique.gouv.qc.ca
B85: Transition Energétique du Quebec

Sheet Description
B2: =Utilitaire!E8 -> Plan d'action 2013-2020 sur les changements climatiques
B3: ="Action " & Accueil!D58 -> Action en cours
B4: =Accueil!D55 -> 21.1 | C4: =Accueil!E55 -> Réduction des émissions de GES en provenance des systèmes de réfrigération (OPTER) (Écoperformance)
B5: Ministère porteur : | D5: =Accueil!$D$65 -> MERN (SITE)
B6: Description
B15: Évaluation des effets de la COVID-19 sur la mise en œuvre de l'action
B16: Résultats attendus :
B17: Échéancier :
B18: Sommes engagées (projets en cours) :
B19: Autres :
B41: Informations en date du : | F41: 2022-03-31
B42: Informations générales
B43: Description de l'action : | C43: Le gouvernement poursuit les actions du programme d'optimisation en réfrigération (OPTER), qui ont été intégrées au programme ÉcoPerformance. Ce dernier est un programme d'aide financière pour des projets d'efficacité énergétique et de conversion. Il vise à réduire les émissions de gaz à effet de serre (GES) et la consommation énergétique des entreprises par le financement de projets ou de mesures liés à la consommation et à la production d'énergie, de même qu'à l'amélioration des procédés. Le Programme comporte également un volet transformation de marché qui inclut de la sensibilisation, de la formation et de l'accompagnement visant plus spécifiquement l'intégration de procédés, le forage de données et la mécanique des fluides numériques.
B44: Objectif de l'action : | C44: Le Programme se divise en deux volets, le volet Analyse et le volet Implantation. Le volet Analyse offre une aide financière pour la réalisation d'études de faisabilité touchant les activités de réfrigération et celles responsables d'autres types émissions fugitives. Les analyses ont pour objectif d'identifier, de quantifier, d'évaluer la réalisation technique et les investissements requis des mesures potentielles de réduction de GES en lien avec les émissions fugitives. Les opportunités d'utiliser la chaleur rejetée par les systèmes, lorsqu'il s'agit de réfrigération, sont également étudiées. Le volet Implantation a pour objectif de soutenir financièrement des projets d'installation de système de réfrigération fonctionnant au CO2. Comme pour le volet Analyse, les projets d'implantation visant la réduction des autres types d'émissions fugitives rencontrés notamment dans le secteur industriel sont également acceptés.
B45: Bénéficiaires : | C45: Entreprises (grandes entreprises) | E45: Entreprises (petites ou moyennes entreprises) | G45: Établissements de recherche | J45: Municipalités et organismes municipaux | M45: Organismes à but non lucratif
C46: Autres (précisez) :
B47: Critères d'admissibilité : | C47: Un projet admissible doit d'abord permettre une réduction quantifiable des émissions de GES et peut contenir plusieurs mesures. Formulaire de demande signé par le participant, plan de projet et plan de surveillance signés par un ingénieur sont les documents minimaux requis pour présenter une demande. Les demandes sont analysées, en fonction de leurs dates de dépôt, par un chargé de programme pour ensuite être soumises à l'approbation des autorités de TEQ.
B48: Processus de suivi de l'action : | C48: L'action est suivie de manière continuelle. Le budget est suivi hebdomadairement, par l'émission d'un suivi budgétaire hebdomadaire. Ce suivi compare les engagements dans SAGIR, avec les budgets prévus, ainsi que les données fournies par la base de données de suivi du programme ÉcoPerformance. Le suivi de la mise en œuvre des projets est fait en continu par les chargés de programme. La mise en fonction des projets est le moment à partir duquel les déclarations de réductions des émissions de gaz à effet de serre sont comptabilisées. Les réductions sont comptabilisées pour la période d'engagement des participants, tant que les projets sont maintenus. Une reddition de comptes est faite au ministère de l'Environnement et de la Lutte contre les changements climatiques (MELCC) sur la base de deux rapports annuels.
B49: Résultats et co-bénéfices attendus : | C49: Les résultats directs attendus sont, la réduction des émissions de GES, des investissements importants dans les différents secteurs touchés, la création d'emplois et une amélioration soutenue de la performance énergétique en lien avec les systèmes de réfrigération et la réduction des émissions fugitives. Au Québec en 2010, on comptait environ 425 arénas et 75 centres de curling . Parmi ceux-ci, 71 % avaient plus de 30 ans et 62 % utilisaient le réfrigérant R22 de type HCFC (hydrochlorofluorocarbure). Celui-ci est une substance appauvrissant la couche d'ozone. Le nombre d'établissements d'alimentation au Québec serait de 2 360 magasins . Les supermarchés de grande superficie, constituent une des clientèles visées par le Programme. Cela représente plus de 850 supermarchés au Québec.
B50: Résultats et co-bénéfices obtenus dans la dernière année :
B51: Résultats et co-bénéfices obtenus depuis le lancement de l'action : | C51: En date du 31 mars 2022, 16 analyses et 129 projets d’implantation ont été acceptés par le ministre, pour une réduction annuelle potentielle de 101,9 kt de CO2, nécessitant des investissements de 200,8 M$ grâce à des aides financières de 24,1 M$ pour un coût moyen de l’aide financière de 11,81 $/t sur la durée de vie des équipements (20,05 ans). Ces investissements entraîneraient la création de 2 811 emplois.
B53: Classification
B54: Finalité : | C54: Réduction des émissions de gaz à effet de serre | H54: Moyen : | J54: Réalisation (programmes et subventions favorisant l'exécution de solutions établies)
B62: Mise en œuvre
B63: Étapes (depuis le début de l'action) | J63: Échéancier | M63: État d'avancement
A64: 1 | B64: Élaboration du programme | M64: Complétée
A65: 2 | B65: Approbation du Conseil du trésor | J65: 2013-10-23 | M65: Complétée
A66: 3 | B66: Lancement du Programme | J66: 2013-10-28 | M66: Complétée
A67: 4 | B67: Sensibilisation sur l'utilisation sécuritaire des réfrigérants naturels | J67: 2014-02-01 | M67: Complétée
A68: 5 | B68: Signature de l'entente administrative avec le MDDELCC | J68: 2014-03-20 | M68: Complétée
A69: 6 | B69: Mise en suspens du Programme | J69: 2014-09-01 | M69: Complétée
B70: Le MERN présente ses programmes à la Commission sur la révision permanente des programmes | J70: 2014-11-01 | M70: Complétée
A71: 8 | B71: Ouverture du programme à de nouvelles demandes d'aide financière | J71: 2015-10-01 | M71: Complétée
A72: 9 | B72: Amendement de Kigali au protocole de Montréal pour l'élimination des hydrofluorocarbures (HFC) | J72: 2016-10-01 | M72: Complétée
B73: Approbation des cibles des Annexes III par le MDDELCC | J73: 2016-12-01 | M73: Complétée
B74: Sanction du projet de loi no 106, concernant la création de TEQ | J74: 2016-12-01 | M74: Complétée
B75: Le programme est sous la responsabilité de TEQ | J75: 2017-04-01 | M75: Complétée
B77: Le cadre normatif a été modifié et approuvé par le Conseil d'administration de TEQ | J77: 2018-01-31 | M77: Complétée
B78: Obtention d'un financement additionnel de 27,7 M$ dans le Budget 2019-2020 du Gouvernement du Québec | J78: 2019-03-27 | M78: Complétée
B79: Le cadre normatif a été modifié et approuvé par le Conseil d'administration de TEQ | J79: 2019-06-01 | M79: Complétée
B80: Entrée en vigueur de la Loi visant principalement la gouvernance efficace de la lutte contre les changements climatiques et à favoriser l'électrification | J80: 2020-11-01 | M80: Complétée
B190: Ajouter une ligne
B194: Plans, stratégies ou politiques incluant la mise en œuvre de cette action
B195: Abréviation | D195: Nom complet | N195: Numéro de mesure
B196: FEFEC 2018-2023 | D196: Fonds du Leadership pour une économie à faibles émissions en carbone du gouvernement du Canada
B197: PACC 2013-2020 | D197: Plan d'action 2013-2020 sur les changements climatiques | N197: 21,1
B198: Plan directeur | D198: Plan directeur en transition, innovation et efficacité énergétiques 2018-2023 | N198: 67.2, 141

Sheet Détail des projets
B2: =Utilitaire!E8 -> Plan d'action 2013-2020 sur les changements climatiques
B3: ="Action " & Accueil!D58 -> Action en cours
B4: =Accueil!D55 -> 21.1 | C4: =Accueil!E55 -> Réduction des émissions de GES en provenance des systèmes de réfrigération (OPTER) (Écoperformance)
B5: Ministère porteur : | C5: =Accueil!$D$65 -> MERN (SITE)
B6: Détails et prévisions des dépenses par projet
D19: Informations en date du : | G19: 2022-03-31
B22: DÉTAILS DES PROJETS AUTORISÉS | O22: MONTANTS PROVENANT DU FECC ($) | AA22: =MONTH(#REF!) -> 
A23: No | B23: Nom du projet | C23: Nom du requérant ou du bénéficiaire | D23: Volet ou thématique | E23: Catégorie | F23: Nombre de projets | G23: Région administrative | H23: Municipalité | I23: Statut | J23: Classification du projet | K23: Montant engagé ($) | L23: Date de l'engagement | M23: Date du dernier versement | N23: Budget total du projet ($) | O23: 2013-2014 | P23: 2014-2015 | Q23: 2015-2016 | R23: 2016-2017 | S23: 2017-2018 | T23: 2018-2019 | U23: 2019-2020 | V23: 2020-2021 | W23: 2021-2022 | X23: 2022-2023 | Y23: 2023-2024 | Z23: 2024-2025 | AA23: MONTANT DES DÉPENSES RÉELLES ($) | AB23: TOTAL DES DÉPENSES RÉELLES ET PRÉVUES ($)
K24: (convention signée, contrat, lettre de confirmation du ministre ou de son représentant ou lettre d'octroi) | O24: Réel | P24: Réel | Q24: Réel | R24: Réel | S24: Réel | T24: Réel | U24: Réel | V24: Réel | W24: Réel | X24: Prévu | Y24: Prévu | Z24: Prévu
A25: 1 | B25: Étude de faisabilité afin de modifier le système de réfrigération de la glace | C25: Municipalité de Sainte-Claire | D25: Analyse | E25: Industriel, commercial et institutionnel | F25: 1 | G25: 12-Chaudière-Appalaches | H25: Sainte-Claire | I25: TE | J25: SU | K25: 5990 | L25: 2014-02-18 | M25: 2014-06-16 | N25: 11980 | P25: 5990 | AA25: =SUM(O25:U25) -> 5990 | AB25: =SUM(O25:Z25) -> 5990
A26: 2 | B26: Rénovation incluant des mesures d'économies d'énergie pour le Centre sportif Sainte-Anne-des-Plaines | C26: Centre Sportif Sainte-Anne-des-Plaines | D26: Analyse | E26: Industriel, commercial et institutionnel | F26: 1 | G26: 15-Laurentides | H26: Sainte-Anne-des-Plaines | I26: TE | J26: SU | K26: 6712.35 | L26: 2014-02-18 | M26: 2014-11-05 | N26: 10980 | P26: 5490 | AA26: =SUM(O26:U26) -> 5490 | AB26: =SUM(O26:Z26) -> 5490
A27: 3 | B27: Étude Aréna de Grande-Rivière | C27: Ville de Grande-Rivière | D27: Analyse | E27: Industriel, commercial et institutionnel | F27: 1 | G27: 11-Gaspésie--Îles-de-la-Madeleine | H27: Grande-Rivière | I27: TE | J27: SU | K27: 11750 | L27: 2014-03-05 | M27: 2014-09-18 | N27: 23500 | P27: 11750 | AA27: =SUM(O27:U27) -> 11750 | AB27: =SUM(O27:Z27) -> 11750
A28: 4 | B28: Étude de faisabilité - Programme ÉcoPerformance | C28: Club de curling Bel-Aire | D28: Analyse | E28: Industriel, commercial et institutionnel | F28: 1 | G28: 16-Montérégie | H28: Mont-Saint-Hilaire | I28: TE | J28: SU | K28: 4075 | L28: 2014-03-05 | M28: 2014-08-19 | N28: 130843 | P28: 4075 | AA28: =SUM(O28:U28) -> 4075 | AB28: =SUM(O28:Z28) -> 4075
A29: 5 | B29: Modernisation du système mécanique de l'aréna Julien Beauregard | C29: La Ville de Marieville | D29: Implantation | E29: Industriel, commercial et institutionnel | F29: 1 | G29: 16-Montérégie | H29: Marieville | I29: TE | J29: SU | K29: 52670.41 | L29: 2014-03-05 | M29: 2014-04-01 | N29: 949740 | P29: 52670.41 | AA29: 52670.41 | AB29: 52670.41
A30: 6 | B30: Système de Réfrigération au CO2 avec récupération de chaleur pour 3 patinoires | C30: Syscomax inc. | D30: Implantation | E30: Industriel, commercial et institutionnel | F30: 1 | G30: 16-Montérégie | H30: Saint-Hyacinthe | I30: TE | J30: SU | K30: 122792.88 | L30: 2014-06-12 | M30: 2014-04-01 | N30: 1788760 | P30: 122792.88 | AA30: 122792.88 | AB30: 122792.88
A31: 7 | B31: Remplacement du système de réfrigération et récupération de chaleur | C31: Ville de Sherbrooke | D31: Implantation | E31: Industriel, commercial et institutionnel | F31: 1 | G31: 05-Estrie | H31: Sherbrooke | I31: TE | J31: SU | K31: 47461.63 | L31: 2019-07-24T16:05:14 | M31: 2019-04-01 | N31: 593770 | U31: 47461.63 | AA31: 47461.63 | AB31: 47461.63
A32: 8 | B32: Étude de faisabilité pour l'Aréna de Magog | C32: Ville de Magog | D32: Analyse | E32: Industriel, commercial et institutionnel | F32: 1 | G32: 05-Estrie | H32: Magog | I32: TE | J32: SU | K32: 12850 | L32: 2014-07-09 | M32: 2014-12-18 | N32: 26500 | P32: 12850 | AA32: 12850 | AB32: 12850
A33: 9 | B33: Installation d'une scie pour rainurer les anodes | C33: Compagnie de Gestion Alcoa-Lauralco | D33: Implantation | E33: Industriel, commercial et institutionnel | F33: 1 | G33: 03-Capitale-Nationale | H33: Deschambault-Grondines | I33: TE | J33: SU | K33: 1892870.4 | L33: 2015-03-11 | M33: 2016-12-12 | N33: 4181545 | P33: 473217.6 | Q33: 473217.6 | R33: 946435.2 | AA33: 1892870.4 | AB33: 1892870.4
A34: 10 | B34: Production de grosses anodes pour la série | C34: Compagnie de Gestion Alcoa-Lauralco | D34: Implantation | E34: Industriel, commercial et institutionnel | F34: 1 | G34: 03-Capitale-Nationale | H34: Deschambault-Grondines | I34: TE | J34: SU | K34: 909000 | L34: 2017-07-19T13:40:14 | M34: 2018-04-01 | N34: 10429074 | S34: 227250 | T34: 681750 | AA34: 909000 | AB34: 909000
A35: 11 | B35: Réfrigération CO2 avec récupération de chaleur - No 88076 - IGA Saint-Antoine | C35: Sobeys Capital Incorporée | D35: Implantation | E35: Industriel, commercial et institutionnel | F35: 1 | G35: 15-Laurentides | H35: Saint-Jérôme | I35: TE | J35: SU | K35: 173378.25 | L35: 2014-12-03 | M35: 2014-04-01 | N35: 1762340 | P35: 160637.18 | AA35: 160637.18 | AB35: 160637.18
A36: 12 | B36: Supermarché Marquis l'Assomption - Réfrigération CO2 et récupération de chaleur | C36: Supermarché Marquis l'Assomption inc. | D36: Implantation | E36: Industriel, commercial et institutionnel | F36: 1 | G36: 14-Lanaudière | H36: L'Assomption | I36: TE | J36: SU | K36: 175999.4537 | L36: 2014-12-10 | M36: 2015-04-01 | N36: 896546 | P36: 87999.73208 | Q36: 23060.90464 | AA36: 111060.6367 | AB36: 111060.6367
A37: 13 | B37: Système de réfrigération au CO2 - Curling de Port-Alfred | C37: Ville de Saguenay | D37: Implantation | E37: Industriel, commercial et institutionnel | F37: 1 | G37: 02-Saguenay--Lac-Saint-Jean | H37: Saguenay | I37: TE | J37: SU | K37: 17552.38 | L37: 2014-11-28 | M37: 2014-04-01 | N37: 679276 | P37: 17552.38 | AA37: 17552.38 | AB37: 17552.38
A38: 14 | B38: No 360 - IGA Longueuil - Réfrigération CO2 avec récupération de chaleur | C38: Sobeys Capital Incorporée | D38: Implantation | E38: Industriel, commercial et institutionnel | F38: 1 | G38: 16-Montérégie | H38: Longueuil | I38: TE | J38: SU | K38: 152823 | L38: 2014-12-10 | M38: 2014-04-01 | N38: 1789820 | P38: 152823 | AA38: 152823 | AB38: 152823
A39: 15 | B39: Réfrigération au CO2 avec récupération de chaleur- No 08033 IGA Sainte-Thérèse (Daigle) | C39: Sobeys Capital Incorporée | D39: Implantation | E39: Industriel, commercial et institutionnel | F39: 1 | G39: 15-Laurentides | H39: Sainte-Thérèse | I39: TE | J39: SU | K39: 187006.5 | L39: 2014-12-10 | M39: 2016-03-29 | N39: 2370417 | P39: 140254.86 | Q39: 46751.64 | AA39: 187006.5 | AB39: 187006.5
A40: 16 | B40: Réfrigération au CO2 avec récupération de chaleur - No 8724 - IGA Ayer's Cliff | C40: Sobeys Capital Incorporée | D40: Implantation | E40: Industriel, commercial et institutionnel | F40: 1 | G40: 05-Estrie | H40: Stanstead-Est | I40: TE | J40: SU | K40: 55315.39 | L40: 2014-12-09 | M40: 2015-04-01 | N40: 451382 | P40: 41593.58 | Q40: 10928.25 | AA40: 52521.83 | AB40: 52521.83
A41: 17 | B41: Réfrigération CO2 avec récupération de chaleur - No 0444 IGA Saint-Romuald | C41: Sobeys Capital Incorporée | D41: Implantation | E41: Industriel, commercial et institutionnel | F41: 1 | G41: 12-Chaudière-Appalaches | H41: Lévis | I41: TE | J41: SU | K41: 187006.5 | L41: 2014-12-10 | M41: 2016-03-29 | N41: 1921010 | P41: 93503.24 | Q41: 93503.26 | AA41: 187006.5 | AB41: 187006.5
A42: 18 | B42: Réfrigération au CO2 avec récupération de chaleur | C42: Sobeys Capital Incorporée | D42: Implantation | E42: Industriel, commercial et institutionnel | F42: 1 | G42: 06-Montréal | H42: Montréal | I42: TE | J42: SU | K42: 48057.94636 | L42: 2015-02-05 | M42: 2016-03-24 | N42: 275877 | P42: 36043.45802 | Q42: 12014.48834 | AA42: 48057.94636 | AB42: 48057.94636
A43: 19 | B43: Réfrigération CO2 avec récupération de chaleur - No 8187 - IGA Sainte-Julie | C43: Sobeys Capital Incorporée | D43: Implantation | E43: Industriel, commercial et institutionnel | F43: 1 | G43: 16-Montérégie | H43: Sainte-Julie | I43: TE | J43: SU | K43: 36188.14 | L43: 2014-12-01 | M43: 2014-04-01 | N43: 473877 | P43: 36188.14 | AA43: 36188.14 | AB43: 36188.14
A44: 20 | B44: Réfrigération CO2 avec récupération de chaleur (89035) | C44: Sobeys Capital Incorporée | D44: Implantation | E44: Industriel, commercial et institutionnel | F44: 1 | G44: 08-Abitibi-Témiscamingue | H44: Témiscaming | I44: TE | J44: SU | K44: 74153.14 | L44: 2014-12-10 | M44: 2014-04-01 | N44: 661090 | P44: 69504.82 | AA44: 69504.82 | AB44: 69504.82
A45: 21 | B45: Complexe intégré de gestion optimale des appareils froids et des frigorigènes | C45: Groupe PureSphera inc. | D45: Implantation | E45: Industriel, commercial et institutionnel | F45: 1 | G45: 17-Centre-du-Québec | H45: Bécancour | I45: TE | J45: SU | K45: 2938500 | L45: 2014-11-27 | M45: 2018-04-01 | N45: 3918000 | Q45: 1250000 | S45: 953875 | T45: 734625 | AA45: 2938500 | AB45: 2938500
A46: 22 | B46: Approvisionnement pour système de réduction des émissions de GES SEG | C46: Groupe PureSphera inc. | D46: Analyse | E46: Industriel, commercial et institutionnel | F46: 1 | G46: 17-Centre-du-Québec | H46: Bécancour | I46: TE | J46: SU | K46: 32146 | L46: 2017-11-06T14:33:28 | M46: 2019-02-05 | N46: 33640.78 | S46: 16073 | T46: 747.39 | AA46: 16820.39 | AB46: 16820.39
A47: 23 | B47: Refroidissement rapide avec système de réfrigération au CO2. | C47: Plaisirs gastronomiques inc. | D47: Implantation | E47: Industriel, commercial et institutionnel | F47: 1 | G47: 15-Laurentides | H47: Boisbriand | I47: TE | J47: SU | K47: 155712.07 | L47: 2019-08-29T09:37:26 | M47: 2019-10-18 | N47: 1571579 | U47: 155712.07 | AA47: 155712.07 | AB47: 155712.07
A48: 24 | B48: Système CO2 pour le département de charcuteries | C48: Plaisirs gastronomiques inc. | D48: Implantation | E48: Industriel, commercial et institutionnel | F48: 1 | G48: 15-Laurentides | H48: Boisbriand | I48: TE | J48: SU | K48: 90628.78 | L48: 2020-09-21T11:47:17 | M48: 2021-04-16 | N48: 570240 | V48: 80584 | W48: 4531.44 | AA48: 0 | AB48: 85115.44
A49: 25 | B49: Interpac - Étude pour l'installation d'un épurateur à composés organiques volatils (COV) | C49: Corporation Interpac inc. | D49: Analyse | E49: Industriel, commercial et institutionnel | F49: 1 | G49: 06-Montréal | H49: Montréal | I49: TE | J49: SU | K49: 13025 | L49: 2014-12-24 | M49: 2015-09-11 | N49: 29943.03 | P49: 6512.5 | Q49: 6512.5 | AA49: 13025 | AB49: 13025
A50: 26 | B50: Réfrigération CO2 avec récupération de chaleur - Phase 1 | C50: SportPlex de l'Énergie inc. | D50: Implantation | E50: Industriel, commercial et institutionnel | F50: 1 | G50: 16-Montérégie | H50: Varennes | I50: TE | J50: SU | K50: 81981.96668 | L50: 2016-04-28 | M50: 2016-04-01 | N50: 1617840 | R50: 81981.96668 | AA50: 81981.96668 | AB50: 81981.96668
A51: 27 | B51: Réfrigération CO2 avec récupération de chaleur - #8240 - IGA Marché St-Canut | C51: Marché St-Canut inc. | D51: Implantation | E51: Industriel, commercial et institutionnel | F51: 1 | G51: 15-Laurentides | H51: Mirabel | I51: TE | J51: SU | K51: 187006.5 | L51: 2015-06-09 | M51: 2016-03-24 | N51: 1886342 | Q51: 187006.5 | AA51: 187006.5 | AB51: 187006.5
A52: 28 | B52: Réfrigération au CO2 avec récupération de chaleur | C52: Métro Richelieu inc. | D52: Implantation | E52: Industriel, commercial et institutionnel | F52: 1 | G52: 16-Montérégie | H52: La Prairie | I52: TE | J52: SU | K52: 70936.55154 | L52: 2015-03-18 | M52: 2016-04-01 | N52: 1096778 | P52: 17734.14167 | Q52: 17734.14167 | R52: 35468.2682 | AA52: 70936.55154 | AB52: 70936.55154
A53: 29 | B53: Étude en optimisation de la réfrigération | C53: Municipalité Saint-Joseph-de-Coleraine | D53: Analyse | E53: Industriel, commercial et institutionnel | F53: 1 | G53: 12-Chaudière-Appalaches | H53: Saint-Julien | I53: TE | J53: SU | K53: 7000 | L53: 2016-10-28 | M53: 2017-07-04 | N53: 14000 | R53: 3500 | S53: 3500 | AA53: 7000 | AB53: 7000
A54: 30 | B54: Optimisation du système de réfrigération de l'aréna | C54: Ville de Chambly | D54: Implantation | E54: Industriel, commercial et institutionnel | F54: 1 | G54: 16-Montérégie | H54: Chambly | I54: TE | J54: SU | K54: 58585.6454 | L54: 2016-09-01 | M54: 2019-04-01 | N54: 879100 | R54: 14646.41255 | U54: 39602.60467 | AA54: 54249.01722 | AB54: 54249.01722
A55: 31 | B55: Réfrigération CO2 avec récupération de chaleur (08547) | C55: Sobeys Capital Incorporée | D55: Implantation | E55: Industriel, commercial et institutionnel | F55: 1 | G55: 06-Montréal | H55: Montréal | I55: TE | J55: SU | K55: 192782.48 | L55: 2016-07-29 | M55: 2016-04-01 | N55: 2005561 | R55: 192782.48 | AA55: 192782.48 | AB55: 192782.48
A56: 32 | B56: Réfrigération CO2 avec récupération de chaleur (88086) | C56: Sobeys Capital Incorporée | D56: Implantation | E56: Industriel, commercial et institutionnel | F56: 1 | G56: 07-Outaouais | H56: Cantley | I56: TE | J56: SU | K56: 129279 | L56: 2016-10-18 | M56: 2018-08-22 | N56: 1288560 | R56: 64639.5 | T56: 61987.73 | AA56: 126627.23 | AB56: 126627.23
A57: 33 | B57: Réfrigération CO2 avec récupération de chaleur (000259) | C57: Sobeys Capital Incorporée | D57: Implantation | E57: Industriel, commercial et institutionnel | F57: 1 | G57: 06-Montréal | H57: Montréal | I57: TE | J57: SU | K57: 189693.02 | L57: 2016-12-13 | M57: 2018-04-12 | N57: 2140879 | R57: 142269.78 | T57: 10409.18 | AA57: 152678.96 | AB57: 152678.96
A58: 34 | B58: Réfrigération CO2 avec récupération de chaleur (88734) | C58: Sobeys Capital Incorporée | D58: Implantation | E58: Industriel, commercial et institutionnel | F58: 1 | G58: 03-Capitale-Nationale | H58: Québec | I58: TE | J58: SU | K58: 159937.5 | L58: 2016-10-18 | M58: 2016-04-01 | N58: 1768489 | R58: 159937.5 | AA58: 159937.5 | AB58: 159937.5
A59: 35 | B59: Étude de faisabilité - Climatisation et efficacité énergétique dans un édifice multilogement | C59: Syndicat des copropriétaires de Manoir Un | D59: Analyse | E59: Industriel, commercial et institutionnel | F59: 1 | G59: 06-Montréal | H59: Montréal | I59: TE | J59: SU | K59: 9000 | L59: 2016-02-25 | M59: 2016-04-11 | N59: 18000 | R59: 9000 | AA59: 9000 | AB59: 9000
A60: 36 | B60: Réfrigération CO2 avec récupération de chaleur (8182) | C60: Sobeys Capital Incorporée | D60: Implantation | E60: Industriel, commercial et institutionnel | F60: 1 | G60: 02-Saguenay--Lac-Saint-Jean | H60: Normandin | I60: TE | J60: SU | K60: 114265.17 | L60: 2016-10-18 | M60: 2016-04-01 | N60: 1158898 | R60: 99526.49 | AA60: 99526.49 | AB60: 99526.49
A61: 37 | B61: Récupération de chaleur et réfrigération au CO2 | C61: Maître Saladier inc. | D61: Implantation | E61: Industriel, commercial et institutionnel | F61: 1 | G61: 15-Laurentides | H61: Boisbriand | I61: TE | J61: SU | K61: 168352.5235 | L61: 2016-09-14 | M61: 2016-04-01 | N61: 950722 | R61: 165769.459 | AA61: 165769.459 | AB61: 165769.459
A62: 38 | B62: Réfrigération CO2 avec récupération de chaleur | C62: Sobeys Capital Incorporée | D62: Implantation | E62: Industriel, commercial et institutionnel | F62: 1 | G62: 08-Abitibi-Témiscamingue | H62: Rouyn-Noranda | I62: TE | J62: SU | K62: 192782.48 | L62: 2016-10-18 | M62: 2016-04-01 | N62: 1816705 | R62: 167572.91 | AA62: 167572.91 | AB62: 167572.91
A63: 39 | B63: Réfrigération CO2 avec récupération de chaleur (89056) | C63: Sobeys Capital Incorporée | D63: Implantation | E63: Industriel, commercial et institutionnel | F63: 1 | G63: 04-Mauricie | H63: Trois-Rivières | I63: TE | J63: SU | K63: 154506.69 | L63: 2016-10-18 | M63: 2018-12-20 | N63: 1668103 | S63: 115880.01 | T63: 31142.07 | AA63: 147022.08 | AB63: 147022.08
A64: 40 | B64: Réfrigération CO2 avec récupération de chaleur (8341) | C64: Sobeys Capital Incorporée | D64: Implantation | E64: Industriel, commercial et institutionnel | F64: 1 | G64: 16-Montérégie | H64: Saint-Bruno-de-Montarville | I64: TE | J64: SU | K64: 176015.83 | L64: 2016-10-18 | M64: 2018-12-21 | N64: 1991556 | S64: 132011.88 | T64: 44003.95 | AA64: 176015.83 | AB64: 176015.83
A65: 41 | B65: Réfrigération CO2 avec récupération de chaleur (8085) | C65: Sobeys Capital Incorporée | D65: Implantation | E65: Industriel, commercial et institutionnel | F65: 1 | G65: 07-Outaouais | H65: Chelsea | I65: TE | J65: SU | K65: 150319.47 | L65: 2016-10-18 | M65: 2019-04-01 | N65: 1325330 | U65: 114324.39 | AA65: 114324.39 | AB65: 114324.39
A66: 42 | B66: Réfrigération CO2 avec récupération de chaleur (8296) | C66: Sobeys Capital Incorporée | D66: Implantation | E66: Industriel, commercial et institutionnel | F66: 1 | G66: 14-Lanaudière | H66: Saint-Lin--Laurentides | I66: TE | J66: SU | K66: 159937.5 | L66: 2016-11-15 | M66: 2018-04-01 | N66: 1741365 | S66: 79968.76 | T66: 60610 | AA66: 140578.76 | AB66: 140578.76
A67: 43 | B67: Réfrigération CO2 avec récupération de chaleur (8046) | C67: Sobeys Capital Incorporée | D67: Implantation | E67: Industriel, commercial et institutionnel | F67: 1 | G67: 05-Estrie | H67: Coaticook | I67: TE | J67: SU | K67: 158550.17 | L67: 2016-11-15 | M67: 2018-04-01 | N67: 1547299 | S67: 118912.62 | T67: 24288.14 | AA67: 143200.76 | AB67: 143200.76
A68: 44 | B68: Réfrigération au CO2 | C68: Emblème Canneberge inc. | D68: Implantation | E68: Industriel, commercial et institutionnel | F68: 1 | G68: 17-Centre-du-Québec | H68: Sainte-Eulalie | I68: TE | J68: SU | K68: 225017.26 | L68: 2016-09-21 | M68: 2017-03-02 | N68: 1447217 | R68: 225017.26 | AA68: 225017.26 | AB68: 225017.26
A69: 45 | B69: Système de réfrigération au CO2 - Phase 2 | C69: Emblème Canneberge inc. | D69: Implantation | E69: Industriel, commercial et institutionnel | F69: 1 | G69: 17-Centre-du-Québec | H69: Sainte-Eulalie | I69: TE | J69: SU | K69: 160627.49 | L69: 2018-03-05T13:39:39 | M69: 2018-05-25 | N69: 1529300 | S69: 120470.61 | T69: 40156.88 | AA69: 160627.49 | AB69: 160627.49
A70: 46 | B70: Efficacité énergétique impliquant un système CO2 - Édifice multilogement | C70: Syndicat des copropriétaires du Manoir II | D70: Analyse | E70: Industriel, commercial et institutionnel | F70: 1 | G70: 06-Montréal | H70: Montréal | I70: TE | J70: SU | K70: 9000 | L70: 2016-06-20 | M70: 2016-10-11 | N70: 18000 | R70: 9000 | AA70: 9000 | AB70: 9000
A71: 47 | B71: Congélateur-Agrandissement | C71: Les Atocas de l'érable inc. | D71: Implantation | E71: Industriel, commercial et institutionnel | F71: 1 | G71: 17-Centre-du-Québec | H71: Plessisville | I71: TE | J71: SU | K71: 201226.42 | L71: 2016-09-29 | M71: 2017-03-02 | N71: 1416650 | R71: 201226.42 | AA71: 201226.42 | AB71: 201226.42
A72: 48 | B72: Réfrigération CO2 avec récupération de chaleur - Super C - Baie St-Paul | C72: Métro Richelieu inc. | D72: Implantation | E72: Industriel, commercial et institutionnel | F72: 1 | G72: 03-Capitale-Nationale | H72: Baie-Saint-Paul | I72: TE | J72: SU | K72: 56002.96 | L72: 2018-02-02T13:32:03 | M72: 2018-04-01 | N72: 1074728 | S72: 42002.22 | T72: 14000.74 | AA72: 56002.96 | AB72: 56002.96
A73: 49 | B73: Réfrigération CO2 avec récupération de chaleur - Metro Drummondville | C73: Métro Richelieu inc. | D73: Implantation | E73: Industriel, commercial et institutionnel | F73: 1 | G73: 17-Centre-du-Québec | H73: Drummondville | I73: TE | J73: SU | K73: 77482.67 | L73: 2019-02-11T13:30:10 | M73: 2019-08-22 | N73: 1436937 | U73: 77482.67 | AA73: 77482.67 | AB73: 77482.67
A74: 50 | B74: Remplacement du système de réfrigération et amélioration de l’efficacité énergétique du complexe | C74: Complexe sportif Kirkland | D74: Implantation | E74: Industriel, commercial et institutionnel | F74: 1 | G74: 06-Montréal | H74: Kirkland | I74: TE | J74: SU | K74: 41212.44408 | L74: 2017-05-29 | M74: 2018-10-25 | N74: 1174000 | S74: 30422.41182 | T74: 10790.03227 | AA74: 41212.44408 | AB74: 41212.44408
A75: 51 | B75: Réfrigération CO2 avec récupération de chaleur (8188) | C75: Sobeys Capital Incorporée | D75: Implantation | E75: Industriel, commercial et institutionnel | F75: 1 | G75: 03-Capitale-Nationale | H75: Québec | I75: TE | J75: SU | K75: 106813.37 | L75: 2017-06-14 | M75: 2019-02-08 | N75: 1575003 | T75: 106813.37 | AA75: 106813.37 | AB75: 106813.37
A76: 52 | B76: Réfrigération CO2 avec récupération de chaleur (08092) | C76: Sobeys Capital Incorporée | D76: Implantation | E76: Industriel, commercial et institutionnel | F76: 1 | G76: 05-Estrie | H76: Cowansville | I76: TE | J76: SU | K76: 159937.5 | L76: 2017-06-16T15:39:32 | M76: 2019-05-24 | N76: 1875896 | S76: 79968.76 | T76: 79743.38 | U76: 200 | AA76: 159912.14 | AB76: 159912.14
A77: 53 | B77: Réfrigération CO2 avec récupération de chaleur (134) | C77: Sobeys Capital Incorporée | D77: Implantation | E77: Industriel, commercial et institutionnel | F77: 1 | G77: 03-Capitale-Nationale | H77: Baie-Saint-Paul | I77: TE | J77: SU | K77: 141557.52 | L77: 2017-07-03T11:31:28 | M77: 2018-11-07 | N77: 1660548 | S77: 106168.14 | T77: 35389.38 | AA77: 141557.52 | AB77: 141557.52
A78: 54 | B78: Système de réfrigération CO2 avec récupération de chaleur - Super C Saint-Hyacinthe | C78: Métro Richelieu inc. | D78: Implantation | E78: Industriel, commercial et institutionnel | F78: 1 | G78: 16-Montérégie | H78: Saint-Hyacinthe | I78: TE | J78: SU | K78: 75313.4 | L78: 2019-01-08T10:21:31 | M78: 2018-04-01 | N78: 1195933 | T78: 75313.4 | AA78: 75313.4 | AB78: 75313.4
A79: 55 | B79: Réfrigération CO2 avec récupération de chaleur (88029) | C79: Sobeys Capital Incorporée | D79: Implantation | E79: Industriel, commercial et institutionnel | F79: 1 | G79: 16-Montérégie | H79: Carignan | I79: TE | J79: SU | K79: 171672 | L79: 2017-06-14T11:57:12 | M79: 2018-12-21 | N79: 1966440 | S79: 128754 | T79: 28806.25 | AA79: 157560.25 | AB79: 157560.25
A80: 56 | B80: Réfrigération CO2 avec récupération de chaleur (8340) | C80: Sobeys Capital Incorporée | D80: Implantation | E80: Industriel, commercial et institutionnel | F80: 1 | G80: 04-Mauricie | H80: Shawinigan | I80: TE | J80: SU | K80: 127767.62 | L80: 2017-06-14 | M80: 2019-02-08 | N80: 1240471 | S80: 95825.7 | T80: 24189.73 | AA80: 120015.43 | AB80: 120015.43
A81: 57 | B81: Aréna Michael-Bilodeau : Réfrigération au CO2 | C81: Ville de Saint-Bruno-de-Montarville | D81: Implantation | E81: Industriel, commercial et institutionnel | F81: 1 | G81: 16-Montérégie | H81: Saint-Bruno-de-Montarville | I81: TE | J81: SU | K81: 61566.62 | L81: 2017-06-08 | M81: 2018-04-01 | N81: 1491827 | T81: 61566.62 | AA81: 61566.62 | AB81: 61566.62
A82: 58 | B82: Étude de faisabilité en efficacité énergétique - CSRJQ | C82: Centre sportif régional les Jardins du Québec inc. | D82: Analyse | E82: Industriel, commercial et institutionnel | F82: 1 | G82: 16-Montérégie | H82: Saint-Constant | I82: TE | J82: SU | K82: 7750 | L82: 2017-02-28 | M82: 2017-04-26 | N82: 15500 | R82: 3875 | S82: 3875 | AA82: 7750 | AB82: 7750
A83: 59 | B83: Agrandissement Centre de distribution et entrepôt réfrigéré de Michal | C83: Michal inc. | D83: Implantation | E83: Industriel, commercial et institutionnel | F83: 1 | G83: 06-Montréal | H83: Montréal | I83: TE | J83: SU | K83: 159240 | L83: 2017-09-13T09:35:05 | M83: 2018-04-25 | N83: 1321685 | S83: 119430 | T83: 39810 | AA83: 159240 | AB83: 159240
A84: 60 | B84: Réfrigération CO2 avec récupération de chaleur | C84: Les Viandes Concord | D84: Implantation | E84: Industriel, commercial et institutionnel | F84: 1 | G84: 15-Laurentides | H84: Saint-Eustache | I84: TE | J84: SU | K84: 316347.5544 | L84: 2017-08-30T08:57:29 | M84: 2019-02-27 | N84: 1411000 | S84: 158173.7749 | T84: 158173.7795 | AA84: 316347.5544 | AB84: 316347.5544
A85: 61 | B85: Réfrigération CO2 avec récupération de chaleur (88093) | C85: Sobeys Capital Incorporée | D85: Implantation | E85: Industriel, commercial et institutionnel | F85: 1 | G85: 06-Montréal | H85: Montréal | I85: TE | J85: SU | K85: 171672 | L85: 2017-12-05T14:53:50 | M85: 2019-04-01 | N85: 1803733 | T85: 85836 | U85: 78127.41 | AA85: 163963.41 | AB85: 163963.41
A86: 62 | B86: Système de réfrigération au CO2 avec récupération de chaleur | C86: Distribution Alimentaire Aubut inc. | D86: Implantation | E86: Industriel, commercial et institutionnel | F86: 1 | G86: 13-Laval | H86: Laval | I86: TE | J86: SU | K86: 143297.1 | L86: 2017-11-22T15:54:52 | M86: 2018-05-25 | N86: 905559 | S86: 107472.84 | T86: 35824.26 | AA86: 143297.1 | AB86: 143297.1
A87: 63 | B87: Implantation d'un système de réfrigération au CO2 | C87: Frigora Solutions d'Entreposage inc. | D87: Implantation | E87: Industriel, commercial et institutionnel | F87: 1 | G87: 16-Montérégie | H87: Longueuil | I87: TE | J87: SU | K87: 222116.85 | L87: 2018-02-06T10:59:30 | M87: 2018-10-11 | N87: 1353149 | S87: 111058.42 | T87: 111058.43 | AA87: 222116.85 | AB87: 222116.85
A88: 64 | B88: Implantation d'une système de réfrigération au CO2 | C88: Complexe Sportif Saint-Raphaël | D88: Implantation | E88: Industriel, commercial et institutionnel | F88: 1 | G88: 06-Montréal | H88: Montréal | I88: TE | J88: SU | K88: 52710.62 | L88: 2017-12-21T14:06:04 | M88: 2018-04-06 | N88: 1129450 | T88: 52710.62 | AA88: 52710.62 | AB88: 52710.62
A89: 65 | B89: Réfrigération CO2 avec récupération de chaleur (075016) | C89: Sobeys Capital Incorporée | D89: Implantation | E89: Industriel, commercial et institutionnel | F89: 1 | G89: 06-Montréal | H89: Montréal | I89: TE | J89: SU | K89: 143894.01 | L89: 2018-02-02T13:57:04 | M89: 2021-09-02 | N89: 1712412 | V89: 74707.89 | W89: 69186.12 | AA89: 0 | AB89: 143894.01
A90: 66 | B90: Système de réfrigération au CO2 avec récupération de chaleur | C90: Métro Richelieu inc. | D90: Implantation | E90: Industriel, commercial et institutionnel | F90: 1 | G90: 07-Outaouais | H90: Gatineau | I90: TE | J90: SU | K90: 78223.58 | L90: 2019-04-17T09:19:53 | M90: 2019-09-19 | N90: 1347313 | U90: 78223.58 | AA90: 78223.58 | AB90: 78223.58
A91: 67 | B91: Agrandissement du site | C91: Frigo Chambly | D91: Implantation | E91: Industriel, commercial et institutionnel | F91: 1 | G91: 16-Montérégie | H91: Chambly | I91: TE | J91: SU | K91: 146250 | L91: 2018-10-04T14:38:37 | M91: 2018-04-01 | N91: 808420 | T91: 146250 | AA91: 146250 | AB91: 146250
A92: 68 | B92: Entrepôt frigorifique pour aliments congelés | C92: Frigo Chambly | D92: Implantation | E92: Industriel, commercial et institutionnel | F92: 1 | G92: 16-Montérégie | H92: Chambly | I92: TE | J92: SU | K92: 126978.12 | L92: 2020-01-09T09:32:42 | M92: 2020-04-30 | N92: 1217043 | V92: 126978.12 | AA92: =SUM(O92:U92) -> 0 | AB92: =SUM(O92:Z92) -> 126978.12
A93: 69 | B93: Réfrigération CO2 avec récupération de chaleur | C93: Métro Richelieu inc. | D93: Implantation | E93: Industriel, commercial et institutionnel | F93: 1 | G93: 07-Outaouais | H93: Gatineau | I93: TE | J93: SU | K93: 75072.55 | L93: 2019-06-03T09:37:46 | M93: 2019-08-14 | N93: 1444159 | U93: 75072.55 | AA93: 75072.55 | AB93: 75072.55
A94: 70 | B94: Réfrigération au CO2 - Verger Hamel 2017 | C94: Verger Hamel S.E.N.C. | D94: Implantation | E94: Industriel, commercial et institutionnel | F94: 1 | G94: 16-Montérégie | H94: Saint-Paul-d'Abbotsford | I94: TE | J94: SU | K94: 33339.19 | L94: 2018-11-06T15:06:21 | M94: 2018-04-01 | N94: 360000 | T94: 33339.19 | AA94: 33339.19 | AB94: 33339.19
A95: 71 | B95: Étude de faisabilité en efficacité énergétique | C95: Ville de Saint-Jérôme | D95: Analyse | E95: Industriel, commercial et institutionnel | F95: 1 | G95: 15-Laurentides | H95: Saint-Jérôme | I95: TE | J95: SU | K95: 8635.02 | L95: 2017-11-20T14:26:45 | M95: 2018-03-01 | N95: 17794.85 | S95: 8635.02 | AA95: 8635.02 | AB95: 8635.02
A96: 72 | B96: Étude de faisabilité en efficacité énergétique | C96: La Corporation de développement culturel et sportif de Rosemère inc. | D96: Analyse | E96: Industriel, commercial et institutionnel | F96: 1 | G96: 15-Laurentides | H96: Rosemère | I96: TE | J96: SU | K96: 8000 | L96: 2017-10-03T14:51:13 | M96: 2017-10-04 | N96: 16000 | S96: 8000 | AA96: 8000 | AB96: 8000
A97: 73 | B97: Étude d'efficacité énergétique | C97: Ville de Saint-Pamphile | D97: Analyse | E97: Industriel, commercial et institutionnel | F97: 1 | G97: 12-Chaudière-Appalaches | H97: Saint-Pamphile | I97: TE | J97: SU | K97: 8750 | L97: 2017-10-04T14:17:13 | M97: 2017-10-06 | N97: 17503 | S97: 8750 | AA97: 8750 | AB97: 8750
A98: 74 | B98: Agrandissement Phase II - Réfrigération au CO2 avec récupération de chaleur | C98: Première société de placement Manuvie | D98: Implantation | E98: Industriel, commercial et institutionnel | F98: 1 | G98: 17-Centre-du-Québec | H98: Plessisville | I98: TE | J98: SU | K98: 214112.5182 | L98: 2019-04-02T15:33:19 | M98: 2019-09-09 | N98: 2152680 | U98: 214112.5182 | AA98: 214112.5182 | AB98: 214112.5182
A99: 75 | B99: Système de refrigération au CO2 | C99: La Fernandière inc. | D99: Implantation | E99: Industriel, commercial et institutionnel | F99: 1 | G99: 04-Mauricie | H99: Trois-Rivières | I99: TE | J99: SU | K99: 304233.5 | L99: 2018-11-06T15:52:45 | M99: 2019-01-08 | N99: 1519509 | T99: 304233.5 | AA99: 304233.5 | AB99: 304233.5
A100: 76 | B100: Système de réfrigération au CO2 | C100: Olymel S.E.C. | D100: Implantation | E100: Industriel, commercial et institutionnel | F100: 1 | G100: 16-Montérégie | H100: Saint-Jean-sur-Richelieu | I100: TE | J100: SU | K100: 154631.36 | L100: 2019-11-12T11:14:26 | M100: 2020-01-07 | N100: 1083918 | U100: 154631.36 | AA100: 154631.36 | AB100: 154631.36
A101: 77 | B101: Système de réfrigération au CO2. | C101: BLB Congélation inc. | D101: Implantation | E101: Industriel, commercial et institutionnel | F101: 1 | G101: 17-Centre-du-Québec | H101: Plessisville | I101: TE | J101: SU | K101: 260083.98 | L101: 2018-05-31T09:57:59 | M101: 2018-07-20 | N101: 3053647 | T101: 260083.98 | AA101: 260083.98 | AB101: 260083.98
A102: 78 | B102: Implantation d'un système de réfrigération au CO2 | C102: Bell Canada | D102: Implantation | E102: Industriel, commercial et institutionnel | F102: 1 | G102: 16-Montérégie | H102: Saint-Jean-sur-Richelieu | I102: TE | J102: SU | K102: 7164.6 | L102: 2019-05-16T16:00:55 | M102: 2020-01-13 | N102: 159035 | U102: 7164.6 | AA102: 7164.6 | AB102: 7164.6
A103: 79 | B103: Installation d'un système de refroidissement au CO2 (D00197 Bell 6250, Côte-des-Neiges) | C103: Bell Canada | D103: Implantation | E103: Industriel, commercial et institutionnel | F103: 1 | G103: 06-Montréal | H103: Montréal | I103: TE | J103: SU | K103: 16731.36 | L103: 2019-02-08T14:20:24 | M103: 2020-01-09 | N103: 331941 | U103: 16731.36 | AA103: 16731.36 | AB103: 16731.36
A104: 80 | B104: Système de refrigération au CO2 | C104: 9257-3195 Québec inc. | D104: Implantation | E104: Industriel, commercial et institutionnel | F104: 1 | G104: 16-Montérégie | H104: Saint-Patrice-de-Sherrington | I104: TE | J104: SU | K104: 183680.93 | L104: 2018-03-16T08:55:10 | M104: 2018-04-01 | N104: 997133 | T104: 183680.93 | AA104: 183680.93 | AB104: 183680.93
A105: 81 | B105: Installation d'un système de réfrigération au CO2 au Avril Supermarché Santé | C105: Avril Supermarché Santé | D105: Implantation | E105: Industriel, commercial et institutionnel | F105: 1 | G105: 13-Laval | H105: Laval | I105: TE | J105: SU | K105: 76889.88 | L105: 2019-02-11T13:55:15 | M105: 2019-03-05 | N105: 1765811 | T105: 76889.88 | AA105: 76889.88 | AB105: 76889.88
A106: 82 | B106: Réfrigération CO2 avec récupération de chaleur (089130) | C106: Sobeys Capital Incorporée | D106: Implantation | E106: Industriel, commercial et institutionnel | F106: 1 | G106: 06-Montréal | H106: Montréal | I106: TE | J106: SU | K106: 138661.74 | L106: 2019-03-20T16:02:27 | M106: 2022-03-04 | N106: 1636868 | W106: 130567.4 | AA106: 0 | AB106: 130567.4
A107: 83 | B107: Réfrigération CO2 avec récupération de chaleur (088077) | C107: Sobeys Capital Incorporée | D107: Implantation | E107: Industriel, commercial et institutionnel | F107: 1 | G107: 06-Montréal | H107: Montréal | I107: TE | J107: SU | K107: 151698.57 | L107: 2019-02-20T13:32:23 | M107: 2021-09-03 | N107: 2086520 | U107: 75849.28 | W107: 73071.64 | AA107: 75849.28 | AB107: 148920.92
A108: 84 | B108: Réfrigération au CO2 avec récupération de chaleur (08123) | C108: Sobeys Capital Incorporée | D108: Implantation | E108: Industriel, commercial et institutionnel | F108: 1 | G108: 14-Lanaudière | H108: Mascouche | I108: TE | J108: SU | K108: 171672.49 | L108: 2019-05-14T14:29:06 | M108: 2020-04-01 | N108: 2079179 | U108: 85836.24 | V108: 82009.14 | AA108: 85836.24 | AB108: 167845.38
A109: 85 | B109: Climatisation CO2 au 4450, rue Dudemaine - Bell Canada (1033-001) | C109: Bell Canada | D109: Implantation | E109: Industriel, commercial et institutionnel | F109: 1 | G109: 06-Montréal | H109: Montréal | I109: TE | J109: SU | K109: 7362.495 | L109: 2019-11-15T11:20:16 | M109: 2019-04-01 | N109: 159370 | U109: 7011.9 | V109: 350.595 | AA109: 7011.9 | AB109: 7362.495
A110: 86 | B110: Réfrigération CO2 avec récupération de chaleur (000110) | C110: Sobeys Capital Incorporée | D110: Implantation | E110: Industriel, commercial et institutionnel | F110: 1 | G110: 16-Montérégie | H110: Saint-Jean-sur-Richelieu | I110: TE | J110: SU | K110: 131897.03 | L110: 2019-03-20T16:21:00 | M110: 2020-04-01 | N110: 1394509 | U110: 98922.78 | V110: 28320.32 | AA110: 98922.78 | AB110: 127243.1
A111: 87 | B111: Réfrigération au CO2 pour une nouvelle ligne de tortillas. | C111: Boulangeries Weston Québec Limitée | D111: Implantation | E111: Industriel, commercial et institutionnel | F111: 1 | G111: 16-Montérégie | H111: Longueuil | I111: TE | J111: SU | K111: 182492.25 | L111: 2019-06-27T09:21:04 | M111: 2019-07-23 | N111: 663681 | U111: 182492.25 | AA111: 182492.25 | AB111: 182492.25
A112: 88 | B112: Phase 2 : Agrandissement / Congélateur | C112: Boulangeries Weston Québec Limitée | D112: Implantation | E112: Industriel, commercial et institutionnel | F112: 1 | G112: 16-Montérégie | H112: Longueuil | I112: TE | J112: SU | K112: 137420.03 | L112: 2019-08-29T09:27:58 | M112: 2019-10-02 | N112: 762065 | U112: 137420.03 | AA112: 137420.03 | AB112: 137420.03
A113: 89 | B113: Système de réfrigération au CO2 avec récupération de chaleur | C113: Avril Supermarché Santé | D113: Implantation | E113: Industriel, commercial et institutionnel | F113: 1 | G113: 05-Estrie | H113: Granby | I113: TE | J113: SU | K113: 152231.8926 | L113: 2019-10-29T14:20:25 | M113: 2019-11-12 | N113: 1221800 | U113: 152231.8926 | AA113: 152231.8926 | AB113: 152231.8926
A114: 90 | B114: Réfrigération au CO2 avec récupération de chaleur | C114: Fleury Michon Amérique inc. | D114: Implantation | E114: Industriel, commercial et institutionnel | F114: 1 | G114: 16-Montérégie | H114: Rigaud | I114: TE | J114: SU | K114: 514500.2818 | L114: 2020-09-15T11:44:46 | M114: 2020-10-20 | N114: 2574571 | V114: 514500.2818 | AA114: 0 | AB114: 514500.2818
A115: 91 | B115: Système de réfrigération au CO2 | C115: Aliments Expresco inc. | D115: Implantation | E115: Industriel, commercial et institutionnel | F115: 1 | G115: 06-Montréal | H115: Montréal | I115: TE | J115: SU | K115: 195000 | L115: 2020-01-09T10:17:05 | M115: 2020-02-06 | N115: 1342070 | U115: 195000 | AA115: 195000 | AB115: 195000
A116: 92 | B116: Agrandissement de l'entrepôt réfrigéré - Réfrigération au CO2 | C116: Artic Blast Mtl inc. | D116: Implantation | E116: Industriel, commercial et institutionnel | F116: 1 | G116: 14-Lanaudière | H116: Terrebonne | I116: TE | J116: SU | K116: 80170.65 | L116: 2019-07-24T15:54:35 | M116: 2019-09-11 | N116: 607230 | U116: 80170.65 | AA116: 80170.65 | AB116: 80170.65
A117: 93 | B117: Agrandissement de l'entrepôt réfrigéré d'Artic Blast - Phase II | C117: Artic Blast Mtl inc. | D117: Implantation | E117: Industriel, commercial et institutionnel | F117: 1 | G117: 14-Lanaudière | H117: Terrebonne | I117: TE | J117: SU | K117: 47427.954 | L117: 2020-02-20T15:28:31 | M117: 2021-03-03 | N117: 705000 | V117: 47427.954 | AA117: 0 | AB117: 47427.954
A118: 94 | B118: Réfrigération CO2 avec récupération de chaleur | C118: Métro Richelieu inc. | D118: Implantation | E118: Industriel, commercial et institutionnel | F118: 1 | G118: 06-Montréal | H118: Montréal | I118: TE | J118: SU | K118: 36941.38423 | L118: 2020-01-13T16:01:50 | M118: 2020-02-10 | N118: 969595 | U118: 36941.38423 | AA118: 36941.38423 | AB118: 36941.38423
A119: 95 | B119: Réfrigération CO2 avec récupération de chaleur (089125) | C119: Sobeys Capital Incorporée | D119: Implantation | E119: Industriel, commercial et institutionnel | F119: 1 | G119: 06-Montréal | H119: Montréal | I119: TE | J119: SU | K119: 113659.35 | L119: 2019-08-19T13:56:42 | M119: 2021-11-03 | N119: 1757013 | U119: 54123.5 | V119: 5412.35 | W119: 54123.5 | AA119: 54123.5 | AB119: 113659.35
A120: 96 | B120: Études pour le remplacement du système au R-22 | C120: La Société d'exploitation des glaces de Boucherville inc. | D120: Analyse | E120: Industriel, commercial et institutionnel | F120: 1 | G120: 16-Montérégie | H120: Boucherville | I120: TE | J120: SU | K120: 9950 | L120: 2018-06-28T14:04:34 | M120: 2018-11-07 | N120: 1932672 | T120: 9836 | AA120: 9836 | AB120: 9836
A121: 97 | B121: 075023 IGA - Ville Mont-Royal -Montréal | C121: Sobeys Capital Incorporée | D121: Implantation | E121: Industriel, commercial et institutionnel | F121: 1 | G121: 06-Montréal | H121: Mont-Royal | I121: TE | J121: SU | K121: 119937.5 | L121: 2019-05-27T10:50:06 | M121: 2021-06-04 | N121: 1721554 | U121: 59968.76 | W121: 59968.74 | AA121: 59968.76 | AB121: 119937.5
A122: 98 | B122: Métro Beaumont - Ville Mont-Royal | C122: Métro Richelieu inc. | D122: Implantation | E122: Industriel, commercial et institutionnel | F122: 1 | G122: 06-Montréal | H122: Mont-Royal | I122: TE | J122: SU | K122: 58135.47 | L122: 2020-03-04T14:45:32 | M122: 2020-02-19 | N122: 1596608 | U122: 58135.47 | AA122: 58135.47 | AB122: 58135.47
A123: 99 | B123: Réfrigération au CO2 avec récupération de chaleur | C123: 3246256 Canada inc. | D123: Implantation | E123: Industriel, commercial et institutionnel | F123: 1 | G123: 06-Montréal | H123: Montréal | I123: TE | J123: SU | K123: 102939.3146 | L123: 2021-03-29T09:45:12 | M123: 2021-04-09 | N123: 1135684 | W123: 102939.3146 | AA123: 0 | AB123: 102939.3146
A124: 100 | B124: Réfrigération CO2 avec récupération de chaleur (000332) | C124: Sobeys Capital Incorporée | D124: Implantation | E124: Industriel, commercial et institutionnel | F124: 1 | G124: 16-Montérégie | H124: Saint-Basile-le-Grand | I124: TE | J124: SU | K124: 103451.55 | L124: 2019-11-19T09:03:16 | M124: 2020-04-01 | N124: 2184408 | U124: 51725.78 | V124: 40107.1275 | AA124: 51725.78 | AB124: 91832.9075
A125: 101 | B125: Système de réfrigération au CO2 | C125: Burnbrae Farms Limited | D125: Implantation | E125: Industriel, commercial et institutionnel | F125: 1 | G125: 16-Montérégie | H125: Upton | I125: TE | J125: SU | K125: 142297.33 | L125: 2019-06-05T11:04:11 | M125: 2019-11-20 | N125: 1117119 | U125: 142297.33 | AA125: 142297.33 | AB125: 142297.33
A126: 102 | B126: Réfrigération CO2 avec récupération de chaleur - Site Farnham | C126: Cannara Biotech (OPS) Inc. | D126: Implantation | E126: Industriel, commercial et institutionnel | F126: 1 | G126: 05-Estrie | H126: Farnham | I126: TE | J126: SU | K126: 346495.2781 | L126: 2020-03-23T11:29:47 | M126: 2019-04-01 | N126: 4329946 | U126: 82498.8802 | V126: 263996.3979 | AA126: 82498.8802 | AB126: 346495.2781
A127: 103 | B127: Système de réfrigération au CO2 - Adonis Galerie des Sources | C127: Métro Richelieu inc. | D127: Implantation | E127: Industriel, commercial et institutionnel | F127: 1 | G127: 06-Montréal | H127: Dollard-Des Ormeaux | I127: TE | J127: SU | K127: 135488.92 | L127: 2019-11-06T11:04:40 | M127: 2019-10-11 | N127: 1852350 | U127: 135488.92 | AA127: 135488.92 | AB127: 135488.92
A128: 104 | B128: Études pour le remplacement du système au R-22 | C128: Les Loisirs Saint-Fabien inc. | D128: Analyse | E128: Industriel, commercial et institutionnel | F128: 1 | G128: 01-Bas-Saint-Laurent | H128: Saint-Fabien | I128: TE | J128: SU | K128: 5400 | L128: 2019-01-09T15:02:15 | M128: 2019-02-20 | N128: 1168123 | T128: 5400 | AA128: 5400 | AB128: 5400
A129: 105 | B129: Nouvelle patinoire extérieure de Joliette - Système de réfrigération au CO2 | C129: Ville de Joliette | D129: Implantation | E129: Industriel, commercial et institutionnel | F129: 1 | G129: 14-Lanaudière | H129: Joliette | I129: TE | J129: SU | K129: 39149.05 | L129: 2019-06-03T15:52:16 | M129: 2019-04-01 | N129: 604500 | U129: 39149.05 | AA129: 39149.05 | AB129: 39149.05
A130: 106 | B130: Réfrigération au CO2 avec récupération de chaleur | C130: 11077422 Canada inc. | D130: Implantation | E130: Industriel, commercial et institutionnel | F130: 1 | G130: 02-Saguenay--Lac-Saint-Jean | H130: Normandin | I130: TE | J130: SU | K130: 272357.2399 | L130: 2019-08-23T09:48:02 | M130: 2019-04-01 | N130: 2288946 | U130: 253889.4935 | V130: 13617.86199 | AA130: 253889.4935 | AB130: 267507.3555
A131: 107 | B131: Réfrigération au CO2 | C131: Verger des Bois-Francs inc. | D131: Implantation | E131: Industriel, commercial et institutionnel | F131: 1 | G131: 16-Montérégie | H131: Saint-Paul-d'Abbotsford | I131: TE | J131: SU | K131: 39289 | L131: 2019-04-17T15:50:59 | M131: 2020-02-12 | N131: 365000 | U131: 39289 | AA131: 39289 | AB131: 39289
A132: 108 | B132: D00242 Telus Gaspé | C132: TELUS Communications inc. | D132: Implantation | E132: Industriel, commercial et institutionnel | F132: 1 | G132: 11-Gaspésie--Îles-de-la-Madeleine | H132: Gaspé | I132: TE | J132: SU | K132: 6613.93 | L132: 2019-06-12T14:13:15 | M132: 2020-01-10 | N132: 220563 | U132: 6613.93 | AA132: 6613.93 | AB132: 6613.93
A133: 109 | B133: 008107 - IGA Joliette rue Gauthier Nord | C133: Supermarché Crevier (Joliette) inc. | D133: Implantation | E133: Industriel, commercial et institutionnel | F133: 1 | G133: 14-Lanaudière | H133: Notre-Dame-des-Prairies | I133: TE | J133: SU | K133: 165842.2727 | L133: 2020-01-10T09:26:36 | M133: 2020-04-01 | N133: 2510000 | V133: 165842.2727 | AA133: 0 | AB133: 165842.2727
A134: 110 | B134: Construction du centre de production de St-Roch-de-l’Achigan - Système de réfrigération au CO2 | C134: Harmonia World inc. | D134: Implantation | E134: Industriel, commercial et institutionnel | F134: 1 | G134: 14-Lanaudière | H134: Saint-Roch-de-l'Achigan | I134: TE | J134: SU | K134: 79510.116 | L134: 2019-11-04T11:48:00 | M134: 2021-02-16 | N134: 850000 | V134: 79510.116 | AA134: 0 | AB134: 79510.116
A135: 111 | B135: Réfrigération au CO2 avec récupération de chaleur - Marché Pie-IX | C135: Le Marché Pie-IX S.E.C. | D135: Implantation | E135: Industriel, commercial et institutionnel | F135: 1 | G135: 06-Montréal | H135: Montréal | I135: TE | J135: SU | K135: 614971.9282 | L135: 2020-10-09T13:53:16 | M135: 2020-04-01 | N135: 6282263 | V135: 614971.9282 | AA135: 0 | AB135: 614971.9282
A136: 112 | B136: Remplacement du système de réfrigération | C136: Bonanza Lalumière | D136: Implantation | E136: Industriel, commercial et institutionnel | F136: 1 | G136: 06-Montréal | H136: Montréal | I136: TE | J136: SU | K136: 74347.30651 | L136: 2019-07-08T10:52:59 | M136: 2019-04-01 | N136: 769500 | U136: 70806.95858 | V136: 3540.347929 | AA136: 70806.95858 | AB136: 74347.30651
A137: 113 | B137: Construction Métro plus Fournier | C137: Supermarché R. Fournier inc. | D137: Implantation | E137: Industriel, commercial et institutionnel | F137: 1 | G137: 04-Mauricie | H137: Trois-Rivières | I137: TE | J137: SU | K137: 172500.2461 | L137: 2020-01-15T11:27:21 | M137: 2020-04-01 | N137: 911668 | V137: 143723.8634 | AA137: 0 | AB137: 143723.8634
A138: 114 | B138: Réfrigération au CO2 avec récupération chaleur (Metro Lachine) | C138: Métro Richelieu inc. | D138: Implantation | E138: Industriel, commercial et institutionnel | F138: 1 | G138: 06-Montréal | H138: Montréal | I138: TE | J138: SU | K138: 74215.68 | L138: 2020-01-15T14:31:52 | M138: 2020-10-09 | N138: 1554383 | V138: 74215.68 | AA138: 0 | AB138: 74215.68
A139: 115 | B139: Réfrigération au CO2 avec récupération de chaleur (001758) | C139: Sobeys Capital Incorporée | D139: Implantation | E139: Industriel, commercial et institutionnel | F139: 1 | G139: 06-Montréal | H139: Montréal | I139: TE | J139: SU | K139: 79126.14 | L139: 2020-01-15T14:39:22 | M139: 2020-04-01 | N139: 1541190 | U139: 39563.08 | V139: 6596.33 | AA139: 39563.08 | AB139: 46159.41
A140: 116 | B140: Réfrigération CO2 avec récupération de chaleur (008299) | C140: Sobeys Capital Incorporée | D140: Implantation | E140: Industriel, commercial et institutionnel | F140: 1 | G140: 12-Chaudière-Appalaches | H140: Saint-Anselme | I140: TE | J140: SU | K140: 58761.8535 | L140: 2020-02-20T11:23:07 | M140: 2020-04-01 | N140: 1233298 | U140: 27981.84 | V140: 30780.0135 | AA140: 27981.84 | AB140: 58761.8535
A141: 117 | B141: Réfrigération au CO2 avec récupération de chaleur (008274) | C141: Sobeys Capital Incorporée | D141: Implantation | E141: Industriel, commercial et institutionnel | F141: 1 | G141: 12-Chaudière-Appalaches | H141: Beauceville | I141: TE | J141: SU | K141: 80201.42 | L141: 2020-02-19T15:53:52 | M141: 2020-04-01 | N141: 1151655 | U141: 40100.72 | V141: 20498.481 | AA141: 40100.72 | AB141: 60599.201
A142: 118 | B142: Immeubles Marquis-Thibeault Prévost inc. | C142: Marché Élite Prévost inc. | D142: Implantation | E142: Industriel, commercial et institutionnel | F142: 1 | G142: 15-Laurentides | H142: Saint-Jérôme | I142: TE | J142: SU | K142: 67809.7875 | L142: 2020-01-23T09:48:39 | M142: 2022-02-17 | N142: 868092 | V142: 19374.2275 | W142: 48435.56 | AA142: 0 | AB142: 67809.7875
A143: 119 | B143: Nouvelle patinoire extérieure de Val d'Or - Système de réfrigération au CO2 | C143: Ville de Val d'Or | D143: Implantation | E143: Industriel, commercial et institutionnel | F143: 1 | G143: 08-Abitibi-Témiscamingue | H143: Val-d'Or | I143: TE | J143: SU | K143: 41106.5025 | L143: 2019-09-26T09:04:44 | M143: 2020-04-01 | N143: 733868 | U143: 9787.26 | V143: 31319.2425 | AA143: 9787.26 | AB143: 41106.5025
A144: 120 | B144: Réfrigération au CO2 - Usine Vachon de Ste-Marie-de-Beauce | C144: Boulangerie Vachon Inc. | D144: Implantation | E144: Industriel, commercial et institutionnel | F144: 1 | G144: 12-Chaudière-Appalaches | H144: Sainte-Marie | I144: TE | J144: SU | K144: 11877.138 | L144: 2020-04-30T10:29:57 | M144: 2020-11-04 | N144: 523678 | V144: 11877.138 | AA144: 0 | AB144: 11877.138
A145: 121 | B145: Nouveau système de réfrigération au CO2 et récupération de chaleur | C145: 2737-1137 Québec inc. | D145: Implantation | E145: Industriel, commercial et institutionnel | F145: 1 | G145: 02-Saguenay--Lac-Saint-Jean | H145: Saguenay | I145: TE | J145: SU | K145: 117249.1476 | L145: 2020-01-15T14:56:30 | M145: 2020-04-01 | N145: 632772 | U145: 55832.92743 | V145: 61416.22017 | AA145: 55832.92743 | AB145: 117249.1476
A146: 122 | B146: Aliments Roma - Entrepôt frigorifique | C146: Les Aliments Roma ltée | D146: Implantation | E146: Industriel, commercial et institutionnel | F146: 1 | G146: 06-Montréal | H146: Montréal | I146: TE | J146: SU | K146: 50653.98069 | L146: 2020-01-23T15:46:22 | M146: 2021-11-25 | N146: 589770 | V146: 26533.0412 | W146: 24120.93949 | AA146: 0 | AB146: 50653.98069
A147: 123 | B147: D00267 Telus Saint-Georges | C147: TELUS Communications inc. | D147: Implantation | E147: Industriel, commercial et institutionnel | F147: 1 | G147: 12-Chaudière-Appalaches | H147: Saint-Georges | I147: TE | J147: SU | K147: 7122.78 | L147: 2019-11-27T09:25:05 | M147: 2020-04-01 | N147: 199908 | V147: 7122.78 | AA147: 0 | AB147: 7122.78
A148: 124 | B148: Réfrigération au CO2 avec récupération de chaleur (Brossard) | C148: Mayrand limitée | D148: Implantation | E148: Industriel, commercial et institutionnel | F148: 1 | G148: 16-Montérégie | H148: Brossard | I148: TE | J148: SU | K148: 78323.133 | L148: 2019-12-11T08:53:09 | M148: 2020-08-03 | N148: 1250419 | X148: 78323.133 | AA148: 0 | AB148: 78323.133
A149: 125 | B149: Entrepôts Frigorifiques Riendeau - Système de réfrigération au CO2 | C149: Les Entrepôts Frigorifiques Riendeau inc. | D149: Implantation | E149: Industriel, commercial et institutionnel | F149: 1 | G149: 14-Lanaudière | H149: Repentigny | I149: TE | J149: SU | K149: 52002.23 | L149: 2020-09-29T11:15:57 | M149: 2021-08-31 | N149: 1125000 | W149: 46360 | AA149: 0 | AB149: 46360
A150: 126 | B150: Entrepôt du 1124 | C150: Verger des Bois-Francs inc. | D150: Implantation | E150: Industriel, commercial et institutionnel | F150: 1 | G150: 16-Montérégie | H150: Saint-Paul-d'Abbotsford | I150: TE | J150: SU | K150: 91913.073 | L150: 2020-08-24T13:33:02 | M150: 2021-11-26 | N150: 541827 | V150: 48144.933 | W150: 43768.14 | AA150: 0 | AB150: 91913.073
A151: 127 | B151: Les Aliments Kamloop - Système de réfrigération au CO2 | C151: Les aliments Kamloop | D151: Implantation | E151: Industriel, commercial et institutionnel | F151: 1 | G151: 15-Laurentides | H151: Boisbriand | I151: TE | J151: SU | K151: 68811.96 | L151: 2020-09-22T09:33:08 | M151: 2020-04-01 | N151: 924420 | V151: 65535.2 | W151: 3276.76 | AA151: 0 | AB151: 68811.96
A152: 128 | B152: Projet d'efficacité énergétique à l'aréna Westwood | C152: Ville de Dorval | D152: Implantation | E152: Industriel, commercial et institutionnel | F152: 1 | G152: 06-Montréal | H152: Dorval | I152: AC | J152: SU | K152: 51058.52024 | L152: 2020-07-06T09:04:48 | M152: 2020-04-01 | N152: 1236100 | V152: 51058.52024 | AA152: 0 | AB152: 51058.52024
A153: 129 | B153: Réfrigération au CO2 avec mesures d'efficacité énergétique. | C153: Ville de Dorval | D153: Implantation | E153: Industriel, commercial et institutionnel | F153: 1 | G153: 06-Montréal | H153: Dorval | I153: AC | J153: SU | K153: 44011.41642 | L153: 2020-07-06T09:14:59 | M153: 2020-04-01 | N153: 1086188 | V153: 44011.41642 | AA153: 0 | AB153: 44011.41642
A154: 130 | B154: Conversion électrique et efficacité énergétique | C154: Société Bon Pasteur S.E.N.C. | D154: Implantation | E154: Industriel, commercial et institutionnel | F154: 1 | G154: 03-Capitale-Nationale | H154: Québec | I154: AC | J154: SU | K154: 63337.30532 | L154: 2021-02-19T14:37:52 | M154: 2022-05-31 | N154: 1057300 | W154: 48256.99383 | X154: 15080.31148 | AA154: 0 | AB154: 63337.30532
A155: 131 | B155: Marché Pasquier Delson - Système de réfrigération au CO2 | C155: Groupe alimentaire PMA Delson inc. | D155: Implantation | E155: Industriel, commercial et institutionnel | F155: 1 | G155: 16-Montérégie | H155: Delson | I155: AC | J155: SU | K155: 240829.9685 | L155: 2020-10-23 | M155: 2022-06-01 | N155: 1247268 | W155: 183489.5042 | X155: 57340.46429 | AA155: 0 | AB155: 240829.9685
A156: 132 | B156: Réduction des émissions de gaz à effet de serre générés par les effets anodiques | C156: Aluminerie de Bécancour inc. | D156: Implantation | E156: Industriel, commercial et institutionnel | F156: 1 | G156: 17-Centre-du-Québec | H156: Bécancour | I156: AC | J156: SU | K156: 1162464.75 | L156: 2015-08-11 | M156: 2019-10-01 | N156: 1549953 | Q156: 290616.19 | X156: 581232.37 | Y156: 290616.19 | AA156: =SUM(O156:U156) -> 290616.19 | AB156: =SUM(O156:Z156) -> 1162464.75
A157: 133 | B157: Efficacité énergétique pour l'usine de Produits Vegkiss | C157: Produits Vegkiss inc. | D157: Implantation | E157: Industriel, commercial et institutionnel | F157: 1 | G157: 14-Lanaudière | H157: Sainte-Élisabeth | I157: AC | J157: SU | K157: 179733.8091 | L157: 2017-11-21T14:42:24 | M157: 2022-02-28 | N157: 915600 | S157: 85587.52878 | V157: 8558.752816 | W157: 85587.52754 | AA157: 85587.52878 | AB157: 179733.8091
A158: 134 | B158: Réfrigération au CO2 avec récupération de chaleur (000408) | C158: Sobeys Capital Incorporée | D158: Implantation | E158: Industriel, commercial et institutionnel | F158: 1 | G158: 12-Chaudière-Appalaches | H158: Saint-Jean-Port-Joli | I158: AC | J158: SU | K158: 118131.8565 | L158: 2019-05-23T10:49:55 | M158: 2022-08-31 | N158: 1143680 | X158: 33751.9565 | Y158: 84379.9 | AA158: 0 | AB158: 118131.8565
A159: 135 | B159: Modernisation des brûleurs four C et D | C159: ArcelorMittal Produits longs Canada s.e.n.c. | D159: Implantation | E159: Industriel, commercial et institutionnel | F159: 1 | G159: 16-Montérégie | H159: Contrecoeur | I159: AC | J159: SU | K159: 1147637.938 | L159: 2019-06-04T09:33:26 | M159: 2021-06-30 | N159: 4406622 | U159: 273247.1288 | V159: 327896.5544 | W159: 546494.2552 | AA159: 273247.1288 | AB159: 1147637.938
A160: 136 | B160: Réfrigération CO2 avec récupération de chaleur (008608) | C160: Sobeys Capital Incorporée | D160: Implantation | E160: Industriel, commercial et institutionnel | F160: 1 | G160: 06-Montréal | H160: Montréal | I160: AC | J160: SU | K160: 58592.83 | L160: 2018-08-09T10:03:33 | M160: 2020-04-01 | N160: 475800 | V160: 58592.83 | AA160: 0 | AB160: 58592.83
A161: 137 | B161: Réfrigération au CO2 avec récupération de chaleur (075022) | C161: Sobeys Capital Incorporée | D161: Implantation | E161: Industriel, commercial et institutionnel | F161: 1 | G161: 06-Montréal | H161: Montréal | I161: AC | J161: SU | K161: 97079.9235 | L161: 2019-08-29T09:18:07 | M161: 2021-11-05 | N161: 1143680 | X161: 73965.6635 | Y161: 23114.26 | AA161: 0 | AB161: 97079.9235
A162: 138 | B162: Réfrigération CO2 avec récupération de chaleur (000000) | C162: Sobeys Capital Incorporée | D162: Implantation | E162: Industriel, commercial et institutionnel | F162: 1 | G162: 06-Montréal | H162: Montréal | I162: AC | J162: SU | K162: 141887.49 | L162: 2019-08-27T10:09:12 | M162: 2021-04-18 | N162: 1810477 | X162: 106415.61 | Y162: 35471.88 | AA162: 0 | AB162: 141887.49
A163: 139 | B163: Remplacement des systèmes de réfrigération | C163: Goupe Robert Inc. | D163: Implantation | E163: Industriel, commercial et institutionnel | F163: 1 | G163: 16-Montérégie | H163: Boucherville | I163: AC | J163: SU | K163: 1097937.015 | L163: 2019-03-21T15:59:23 | M163: 2023-04-01 | N163: 9618655 | U163: 522827.16 | V163: 52282.715 | X163: 261413.58 | Y163: 261413.56 | AA163: 522827.16 | AB163: 1097937.015
A164: 140 | B164: Réfrigération au CO2 avec récupération de chaleur (000284) | C164: Sobeys Capital Incorporée | D164: Implantation | E164: Industriel, commercial et institutionnel | F164: 1 | G164: 06-Montréal | H164: Montréal | I164: AC | J164: SU | K164: 44809.0335 | L164: 2020-01-13T15:51:46 | M164: 2023-04-28 | N164: 737879 | X164: 23471.4035 | Y164: 10668.82 | Z164: 10668.81 | AA164: 0 | AB164: 44809.0335
A165: 141 | B165: Réfrigération au CO2 avec récupération de chaleur (096096) | C165: Sobeys Capital Incorporée | D165: Implantation | E165: Industriel, commercial et institutionnel | F165: 1 | G165: 06-Montréal | H165: Montréal | I165: AC | J165: SU | K165: 70541.9085 | L165: 2019-11-04T11:57:36 | M165: 2022-01-28 | N165: 1143680 | X165: 36950.5185 | Y165: 33591.39 | AA165: 0 | AB165: 70541.9085
A166: 142 | B166: Réfrigération au CO2 avec récupération de chaleur (008087) | C166: Sobeys Capital Incorporée | D166: Implantation | E166: Industriel, commercial et institutionnel | F166: 1 | G166: 16-Montérégie | H166: Vaudreuil-Dorion | I166: AC | J166: SU | K166: 100023.525 | L166: 2020-02-19T15:29:30 | M166: 2021-10-21 | N166: 1810477 | X166: 76208.385 | Y166: 23815.14 | AA166: 0 | AB166: 100023.525
A167: 143 | B167: Réfrigération CO2 avec récupération de chaleur (008261) | C167: Sobeys Capital Incorporée | D167: Implantation | E167: Industriel, commercial et institutionnel | F167: 1 | G167: 15-Laurentides | H167: Saint-Eustache | I167: AC | J167: SU | K167: 91611.891 | L167: 2020-02-18T15:08:00 | M167: 2021-07-22 | N167: 1664750 | X167: 69799.551 | Y167: 21812.34 | AA167: 0 | AB167: 91611.891
A168: 144 | B168: Les Viandes Valleyfield - Système de réfrigération au CO2 | C168: Les Viandes Valleyfield | D168: Implantation | E168: Industriel, commercial et institutionnel | F168: 1 | G168: 16-Montérégie | H168: Saint-Stanislas-de-Kostka | I168: AC | J168: SU | K168: 73314.57 | L168: 2020-12-02T13:40:22 | M168: 2022-04-01 | N168: 890000 | X168: 73314.57 | AA168: 0 | AB168: 73314.57
A169: 145 | B169: Nouvelle patinoire extérieure de Saguenay - Système de réfrigération au CO2 | C169: Fondation du club de hockey Canadien pour l'enfance | D169: Implantation | E169: Industriel, commercial et institutionnel | F169: 1 | G169: 02-Saguenay--Lac-Saint-Jean | H169: Saguenay | I169: AC | J169: SU | K169: 30358.37 | L169: 2021-01-27T10:33:19 | M169: 2022-02-01 | N169: 716000 | W169: 30358.37 | AA169: 0 | AB169: 30358.37
A170: 146
A171: 147
A172: 148
A173: 149
A174: 150
A175: 151
A176: 152
A177: 153
A178: 154
A179: 155
A180: 156 | AA180: =SUM(O180:W180) -> 0 | AB180: =SUM(O180:Z180) -> 0
A181: 157 | AA181: =SUM(O181:W181) -> 0 | AB181: =SUM(O181:Z181) -> 0
A182: 158 | AA182: =SUM(O182:W182) -> 0 | AB182: =SUM(O182:Z182) -> 0
A183: 159 | AA183: =SUM(O183:W183) -> 0 | AB183: =SUM(O183:Z183) -> 0
A184: 160 | AA184: =SUM(O184:W184) -> 0 | AB184: =SUM(O184:Z184) -> 0
B185: TOTAL DES DÉPENSES DE PROJET ($) | K185: =SUM(K25:K184) -> 24541949.23 | N185: =SUM(N25:N184) -> 200839365.7 | O185: 0 | P185: 1549182.922 | Q185: 2411345.475 | R185: 2522648.646 | S185: 2862065.696 | T185: 3629459.812 | U185: 4074050.338 | V185: 3231414.642 | W185: 1554536.205 | X185: 1487267.517 | Y185: 784883.48 | Z185: 10668.81 | AA185: 17048752.89 | AB185: 24117523.54
B186: TOTAL CONTRATS FONCTIONNEMENT ($) | K186: =SUMIF($J$25:$J37,"CF-Contrat fonctionnement",K25:K37)+SUMIF($J$25:$J37,"CP-Contrat service professionnel",K25:K37)+SUMIF($J$25:$J37,"CT-Contrat service technique",K25:K37) -> 0 | O186: =SUMIF($J$25:$J37,"CF-Contrat fonctionnement",O25:O37)+SUMIF($J$25:$J37,"CP-Contrat service professionnel",O25:O37)+SUMIF($J$25:$J37,"CT-Contrat service technique",O25:O37) -> 0 | P186: =SUMIF($J$25:$J37,"CF-Contrat fonctionnement",P25:P37)+SUMIF($J$25:$J37,"CP-Contrat service professionnel",P25:P37)+SUMIF($J$25:$J37,"CT-Contrat service technique",P25:P37) -> 0 | Q186: =SUMIF($J$25:$J37,"CF-Contrat fonctionnement",Q25:Q37)+SUMIF($J$25:$J37,"CP-Contrat service professionnel",Q25:Q37)+SUMIF($J$25:$J37,"CT-Contrat service technique",Q25:Q37) -> 0 | R186: =SUMIF($J$25:$J37,"CF-Contrat fonctionnement",R25:R37)+SUMIF($J$25:$J37,"CP-Contrat service professionnel",R25:R37)+SUMIF($J$25:$J37,"CT-Contrat service technique",R25:R37) -> 0 | S186: =SUMIF($J$25:$J37,"CF-Contrat fonctionnement",S25:S37)+SUMIF($J$25:$J37,"CP-Contrat service professionnel",S25:S37)+SUMIF($J$25:$J37,"CT-Contrat service technique",S25:S37) -> 0 | T186: =SUMIF($J$25:$J37,"CF-Contrat fonctionnement",T25:T37)+SUMIF($J$25:$J37,"CP-Contrat service professionnel",T25:T37)+SUMIF($J$25:$J37,"CT-Contrat service technique",T25:T37) -> 0 | U186: =SUMIF($J$25:$J37,"CF-Contrat fonctionnement",U25:U37)+SUMIF($J$25:$J37,"CP-Contrat service professionnel",U25:U37)+SUMIF($J$25:$J37,"CT-Contrat service technique",U25:U37) -> 0 | V186: =SUMIF($J$25:$J37,"CF-Contrat fonctionnement",V25:V37)+SUMIF($J$25:$J37,"CP-Contrat service professionnel",V25:V37)+SUMIF($J$25:$J37,"CT-Contrat service technique",V25:V37) -> 0 | W186: =SUMIF($J$25:$J37,"CF-Contrat fonctionnement",W25:W37)+SUMIF($J$25:$J37,"CP-Contrat service professionnel",W25:W37)+SUMIF($J$25:$J37,"CT-Contrat service technique",W25:W37) -> 0 | X186: =SUMIF($J$25:$J37,"CF-Contrat fonctionnement",X25:X37)+SUMIF($J$25:$J37,"CP-Contrat service professionnel",X25:X37)+SUMIF($J$25:$J37,"CT-Contrat service technique",X25:X37) -> 0 | Y186: =SUMIF($J$25:$J37,"CF-Contrat fonctionnement",Y25:Y37)+SUMIF($J$25:$J37,"CP-Contrat service professionnel",Y25:Y37)+SUMIF($J$25:$J37,"CT-Contrat service technique",Y25:Y37) -> 0 | AA186: =SUMIF($J$25:$J37,"CF-Contrat fonctionnement",AA25:AA37)+SUMIF($J$25:$J37,"CP-Contrat service professionnel",AA25:AA37)+SUMIF($J$25:$J37,"CT-Contrat service technique",AA25:AA37) -> 0 | AB186: =SUMIF($J$25:$J37,"CF-Contrat fonctionnement",AB25:AB37)+SUMIF($J$25:$J37,"CP-Contrat service professionnel",AB25:AB37)+SUMIF($J$25:$J37,"CT-Contrat service technique",AB25:AB37) -> 0
B187: TOTAL CONTRATS IMMOBILISATION ($) | K187: =SUMIF(J25:J37,"CI-Contrat immobilisation",K25:K37) -> 0 | O187: =SUMIF($J$25:$J37,"CI-Contrat immobilisation",O25:O37) -> 0 | P187: =SUMIF($J$25:$J37,"CI-Contrat immobilisation",P25:P37) -> 0 | Q187: =SUMIF($J$25:$J37,"CI-Contrat immobilisation",Q25:Q37) -> 0 | R187: =SUMIF($J$25:$J37,"CI-Contrat immobilisation",R25:R37) -> 0 | S187: =SUMIF($J$25:$J37,"CI-Contrat immobilisation",S25:S37) -> 0 | T187: =SUMIF($J$25:$J37,"CI-Contrat immobilisation",T25:T37) -> 0 | U187: =SUMIF($J$25:$J37,"CI-Contrat immobilisation",U25:U37) -> 0 | V187: =SUMIF($J$25:$J37,"CI-Contrat immobilisation",V25:V37) -> 0 | W187: =SUMIF($J$25:$J37,"CI-Contrat immobilisation",W25:W37) -> 0 | X187: =SUMIF($J$25:$J37,"CI-Contrat immobilisation",X25:X37) -> 0 | Y187: =SUMIF($J$25:$J37,"CI-Contrat immobilisation",Y25:Y37) -> 0 | AA187: =SUMIF($J$25:$J37,"CI-Contrat immobilisation",AA25:AA37) -> 0 | AB187: =SUMIF($J$25:$J37,"CI-Contrat immobilisation",AB25:AB37) -> 0
B188: TOTAL DES SUBVENTIONS ($) | K188: =SUMIF(J25:J37,"SU-Subvention",K25:K37) -> 0 | O188: =SUMIF($J$25:$J187,"SU-Subvention",O25:O27) -> 0 | P188: =SUMIF($J$25:$J187,"SU-Subvention",P25:P27) -> 0 | Q188: =SUMIF($J$25:$J187,"SU-Subvention",Q25:Q27) -> 0 | R188: =SUMIF($J$25:$J187,"SU-Subvention",R25:R27) -> 0 | S188: =SUMIF($J$25:$J187,"SU-Subvention",S25:S27) -> 0 | T188: =SUMIF($J$25:$J187,"SU-Subvention",T25:T27) -> 0 | U188: =SUMIF($J$25:$J187,"SU-Subvention",U25:U27) -> 0 | V188: =SUMIF($J$25:$J187,"SU-Subvention",V25:V27) -> 0 | W188: =SUMIF($J$25:$J187,"SU-Subvention",W25:W27) -> 0 | X188: =SUMIF($J$25:$J187,"SU-Subvention",X25:X27) -> 0 | Y188: =SUMIF($J$25:$J187,"SU-Subvention",Y25:Y27) -> 0 | AA188: =SUMIF($J$25:$J187,"SU-Subvention",AA25:AA27) -> 0 | AB188: =SUMIF($J$25:$J187,"SU-Subvention",AB25:AB27) -> 0

Sheet GES
B2: =Utilitaire!E8 -> Plan d'action 2013-2020 sur les changements climatiques
B3: ="Action " & Accueil!D58 -> Action en cours
B4: =Accueil!D55 -> 21.1 | C4: =Accueil!E55 -> Réduction des émissions de GES en provenance des systèmes de réfrigération (OPTER) (Écoperformance)
B5: Ministère porteur : | C5: =Accueil!$D$65 -> MERN (SITE)
B6: GES
B19: Informations en date du : | D19: 2022-03-31
B20: Potentiel de réduction des GES évalué lors de la sélection des projets de cette action : | G20: Oui | I20: Réductions réelles quantifiables des émissions de GES attendues pour cette action : | O20: Oui
F22: ÉVALUATION DU POTENTIEL DE RÉDUCTION ET D'ÉVITEMENT D'ÉMISSIONS DE GES À TERME. | H22: DÉTAIL DES ÉMISSIONS DE GES RÉDUITES OU ÉVITÉES (en tonnes éq. CO2)
B23: Nom du projet | C23: Nom du requérant ou du bénéficiaire | D23: Région administrative | E23: Montant engagé ($) | F23: Potentiel de réduction des GES sur une base annuelle | G23: Horizon temporel pour la réalisation du potentiel | H23: Coût/tonne estimé | I23: Type d'émission | J23: Émissions rapportées dans l'inventaire | K23: Durée du projet | L23: Émissions | N23: Vérifiées | P23: 2013-2014 | R23: 2014-2015 | T23: 2015-2016 | V23: 2016-2017 | X23: 2017-2018 | Z23: 2018-2019 | AB23: 2019-2020 | AD23: 2020-2021 | AF23: 2021-2022 | AH23: 2022-2023 | AJ23: 2023-2024 | AL23: 2024-2025
F24: (tonnes éq. CO2) | H24: $ ------------ tonne éq. CO2 | K24: (années) | L24: Réduites | M24: Évitées | N24: Tierce partie | O24: M/O | P24: Vérifié | Q24: Non vérifié | R24: Vérifié | S24: Non vérifié | T24: Vérifié | U24: Non vérifié | V24: Vérifié | W24: Non vérifié | X24: Vérifié | Y24: Non vérifié | Z24: Vérifié | AA24: Non vérifié | AB24: Vérifié | AC24: Non vérifié | AD24: Vérifié | AE24: Non vérifié | AF24: Vérifié | AG24: Non vérifié | AH24: Vérifié | AI24: Non vérifié | AJ24: Vérifié | AK24: Non vérifié | AL24: Vérifié | AM24: Non vérifié
B25: =IF(LEN('Détail des projets'!B25)=0,"",'Détail des projets'!B25) -> Étude de faisabilité afin de modifier le système de réfrigération de la glace | C25: ='Détail des projets'!C25 -> Municipalité de Sainte-Claire | D25: =IF(LEN('Détail des projets'!G25)=0,"",'Détail des projets'!G25) -> 12-Chaudière-Appalaches | E25: =IF(LEN('Détail des projets'!K25)=0,"",'Détail des projets'!K25) -> 5990 | F25: 0 | G25: À la fin du projet (suite au dernier versement) | H25: 0 | I25: QC-Québec | J25: Oui | N25: Non | O25: Oui
B26: =IF(LEN('Détail des projets'!B26)=0,"",'Détail des projets'!B26) -> Rénovation incluant des mesures d'économies d'énergie pour le Centre sportif Sainte-Anne-des-Plaines | C26: =IF(LEN('Détail des projets'!C26)=0,"",'Détail des projets'!C26) -> Centre Sportif Sainte-Anne-des-Plaines | D26: =IF(LEN('Détail des projets'!G26)=0,"",'Détail des projets'!G26) -> 15-Laurentides | E26: =IF(LEN('Détail des projets'!K26)=0,"",'Détail des projets'!K26) -> 6712.35 | F26: 0 | G26: À la fin du projet (suite au dernier versement) | H26: 0 | I26: QC-Québec | J26: Oui | L26: 0 | M26: 0 | N26: Non | O26: Oui
B27: =IF(LEN('Détail des projets'!B27)=0,"",'Détail des projets'!B27) -> Étude Aréna de Grande-Rivière | C27: =IF(LEN('Détail des projets'!C27)=0,"",'Détail des projets'!C27) -> Ville de Grande-Rivière | D27: =IF(LEN('Détail des projets'!G27)=0,"",'Détail des projets'!G27) -> 11-Gaspésie--Îles-de-la-Madeleine | E27: =IF(LEN('Détail des projets'!K27)=0,"",'Détail des projets'!K27) -> 11750 | F27: 0 | G27: À la fin du projet (suite au dernier versement) | H27: 0 | I27: QC-Québec | J27: Oui | L27: 0 | M27: 0 | N27: Non | O27: Oui
B28: =IF(LEN('Détail des projets'!B28)=0,"",'Détail des projets'!B28) -> Étude de faisabilité - Programme ÉcoPerformance | C28: =IF(LEN('Détail des projets'!C28)=0,"",'Détail des projets'!C28) -> Club de curling Bel-Aire | D28: =IF(LEN('Détail des projets'!G28)=0,"",'Détail des projets'!G28) -> 16-Montérégie | E28: =IF(LEN('Détail des projets'!K28)=0,"",'Détail des projets'!K28) -> 4075 | F28: 0 | G28: À la fin du projet (suite au dernier versement) | H28: 0 | I28: QC-Québec | J28: Oui | L28: 0 | M28: 35.28 | N28: Non | O28: Oui | X28: 16.25948748 | Z28: 35.08721311 | AB28: 35.18360656 | AD28: 35.08721311 | AF28: 35.08721311
B29: =IF(LEN('Détail des projets'!B29)=0,"",'Détail des projets'!B29) -> Modernisation du système mécanique de l'aréna Julien Beauregard | C29: =IF(LEN('Détail des projets'!C29)=0,"",'Détail des projets'!C29) -> La Ville de Marieville | D29: =IF(LEN('Détail des projets'!G29)=0,"",'Détail des projets'!G29) -> 16-Montérégie | E29: =IF(LEN('Détail des projets'!K29)=0,"",'Détail des projets'!K29) -> 52670.41 | F29: 210.6816311 | G29: À la fin du projet (suite au dernier versement) | H29: 16.66666737 | I29: QC-Québec | J29: Oui | K29: 15 | L29: 0 | M29: 210.6816311 | N29: Non | O29: Oui | P29: 0 | R29: 141.0300536 | T29: 210.1059982 | V29: 209.5303653 | X29: 209.5303653 | Z29: 209.5303653 | AB29: 210.1059982 | AD29: 209.5303653 | AF29: 209.5303653
B30: =IF(LEN('Détail des projets'!B30)=0,"",'Détail des projets'!B30) -> Système de Réfrigération au CO2 avec récupération de chaleur pour 3 patinoires | C30: =IF(LEN('Détail des projets'!C30)=0,"",'Détail des projets'!C30) -> Syscomax inc. | D30: =IF(LEN('Détail des projets'!G30)=0,"",'Détail des projets'!G30) -> 16-Montérégie | E30: =IF(LEN('Détail des projets'!K30)=0,"",'Détail des projets'!K30) -> 122792.88 | F30: 492.8133762 | G30: À la fin du projet (suite au dernier versement) | H30: 16.5986173 | I30: QC-Québec | J30: Oui | K30: 15 | L30: 0 | M30: 493.1851762 | N30: Non | O30: Oui | P30: 0 | R30: 359.7826286 | T30: 491.8376758 | V30: 490.4901753 | X30: 490.4901753 | Z30: 490.4901753 | AB30: 491.8376758 | AD30: 490.4901753 | AF30: 490.4901753
B31: =IF(LEN('Détail des projets'!B31)=0,"",'Détail des projets'!B31) -> Remplacement du système de réfrigération et récupération de chaleur | C31: =IF(LEN('Détail des projets'!C31)=0,"",'Détail des projets'!C31) -> Ville de Sherbrooke | D31: =IF(LEN('Détail des projets'!G31)=0,"",'Détail des projets'!G31) -> 05-Estrie | E31: =IF(LEN('Détail des projets'!K31)=0,"",'Détail des projets'!K31) -> 47461.63 | F31: 189.8465194 | G31: À la fin du projet (suite au dernier versement) | H31: 12.49197422 | I31: QC-Québec | J31: Oui | K31: 19.95559502 | L31: 0 | M31: 190.3912076 | N31: Non | O31: Oui | P31: 0 | R31: 0 | T31: 0 | V31: 0 | X31: 0 | Z31: 0 | AB31: 116.5235806 | AD31: 189.3508185 | AF31: 189.3508185
B32: =IF(LEN('Détail des projets'!B32)=0,"",'Détail des projets'!B32) -> Étude de faisabilité pour l'Aréna de Magog | C32: =IF(LEN('Détail des projets'!C32)=0,"",'Détail des projets'!C32) -> Ville de Magog | D32: =IF(LEN('Détail des projets'!G32)=0,"",'Détail des projets'!G32) -> 05-Estrie | E32: =IF(LEN('Détail des projets'!K32)=0,"",'Détail des projets'!K32) -> 12850 | F32: 0 | G32: À la fin du projet (suite au dernier versement) | H32: 0 | I32: QC-Québec | J32: Oui | L32: 0 | M32: 0 | N32: Non | O32: Oui
B33: =IF(LEN('Détail des projets'!B33)=0,"",'Détail des projets'!B33) -> Installation d'une scie pour rainurer les anodes | C33: =IF(LEN('Détail des projets'!C33)=0,"",'Détail des projets'!C33) -> Compagnie de Gestion Alcoa-Lauralco | D33: =IF(LEN('Détail des projets'!G33)=0,"",'Détail des projets'!G33) -> 03-Capitale-Nationale | E33: =IF(LEN('Détail des projets'!K33)=0,"",'Détail des projets'!K33) -> 1892870.4 | F33: 7571.4816 | G33: À la fin du projet (suite au dernier versement) | H33: 9.179826099 | I33: QC-Québec | J33: Oui | K33: 15 | L33: 0 | M33: 13746.59592 | N33: Non | O33: Oui | P33: 0 | R33: 0 | T33: 2854.484399 | V33: 13671.47791 | X33: 13671.47791 | Z33: 13671.47791 | AB33: 13709.03691 | AD33: 13671.47791 | AF33: 13671.47791
B34: =IF(LEN('Détail des projets'!B34)=0,"",'Détail des projets'!B34) -> Production de grosses anodes pour la série | C34: =IF(LEN('Détail des projets'!C34)=0,"",'Détail des projets'!C34) -> Compagnie de Gestion Alcoa-Lauralco | D34: =IF(LEN('Détail des projets'!G34)=0,"",'Détail des projets'!G34) -> 03-Capitale-Nationale | E34: =IF(LEN('Détail des projets'!K34)=0,"",'Détail des projets'!K34) -> 909000 | F34: 0 | G34: À la fin du projet (suite au dernier versement) | H34: 0 | I34: QC-Québec | J34: Oui | K34: 20 | L34: 0 | M34: 3654.166391 | N34: Non | O34: Oui | P34: 0 | R34: 0 | T34: 0 | V34: 0 | X34: 2535.951539 | Z34: 3634.198269 | AB34: 3644.18233 | AD34: 3634.198269 | AF34: 3634.198269
B35: =IF(LEN('Détail des projets'!B35)=0,"",'Détail des projets'!B35) -> Réfrigération CO2 avec récupération de chaleur - No 88076 - IGA Saint-Antoine | C35: =IF(LEN('Détail des projets'!C35)=0,"",'Détail des projets'!C35) -> Sobeys Capital Incorporée | D35: =IF(LEN('Détail des projets'!G35)=0,"",'Détail des projets'!G35) -> 15-Laurentides | E35: =IF(LEN('Détail des projets'!K35)=0,"",'Détail des projets'!K35) -> 173378.25 | F35: 738.30543 | G35: À la fin du projet (suite au dernier versement) | H35: 17.36562748 | I35: QC-Québec | J35: Oui | K35: 15 | L35: 0 | M35: 665.599329 | N35: Non | O35: Oui | P35: 0 | R35: 49.10158984 | T35: 663.7807516 | V35: 661.9621742 | X35: 661.9621742 | Z35: 661.9621742 | AB35: 663.7807516 | AD35: 661.9621742 | AF35: 661.9621742
B36: =IF(LEN('Détail des projets'!B36)=0,"",'Détail des projets'!B36) -> Supermarché Marquis l'Assomption - Réfrigération CO2 et récupération de chaleur | C36: =IF(LEN('Détail des projets'!C36)=0,"",'Détail des projets'!C36) -> Supermarché Marquis l'Assomption inc. | D36: =IF(LEN('Détail des projets'!G36)=0,"",'Détail des projets'!G36) -> 14-Lanaudière | E36: =IF(LEN('Détail des projets'!K36)=0,"",'Détail des projets'!K36) -> 175999.4537 | F36: 704.44594 | G36: À la fin du projet (suite au dernier versement) | H36: 18.1712063 | I36: QC-Québec | J36: Oui | K36: 15 | L36: 0 | M36: 645.7082 | N36: Non | O36: Oui | P36: 0 | R36: 148.1953246 | T36: 643.9439699 | V36: 642.1797399 | X36: 642.1797399 | Z36: 642.1797399 | AB36: 643.9439699 | AD36: 642.1797399 | AF36: 642.1797399
B37: =IF(LEN('Détail des projets'!B37)=0,"",'Détail des projets'!B37) -> Système de réfrigération au CO2 - Curling de Port-Alfred | C37: =IF(LEN('Détail des projets'!C37)=0,"",'Détail des projets'!C37) -> Ville de Saguenay | D37: =IF(LEN('Détail des projets'!G37)=0,"",'Détail des projets'!G37) -> 02-Saguenay--Lac-Saint-Jean | E37: =IF(LEN('Détail des projets'!K37)=0,"",'Détail des projets'!K37) -> 17552.38 | F37: 70.20951432 | G37: À la fin du projet (suite au dernier versement) | H37: 16.62931346 | I37: QC-Québec | J37: Oui | K37: 15 | L37: 0 | M37: 70.36722648 | N37: Non | O37: Oui | P37: 0 | R37: 24.22478289 | T37: 70.1749663 | V37: 69.98270612 | X37: 69.98270612 | Z37: 69.98270612 | AB37: 70.1749663 | AD37: 69.98270612 | AF37: 69.98270612
B38: =IF(LEN('Détail des projets'!B38)=0,"",'Détail des projets'!B38) -> No 360 - IGA Longueuil - Réfrigération CO2 avec récupération de chaleur | C38: =IF(LEN('Détail des projets'!C38)=0,"",'Détail des projets'!C38) -> Sobeys Capital Incorporée | D38: =IF(LEN('Détail des projets'!G38)=0,"",'Détail des projets'!G38) -> 16-Montérégie | E38: =IF(LEN('Détail des projets'!K38)=0,"",'Détail des projets'!K38) -> 152823 | F38: 846.4340482 | G38: À la fin du projet (suite au dernier versement) | H38: 13.54688943 | I38: QC-Québec | J38: Oui | K38: 15 | L38: 0 | M38: 752.0693259 | N38: Non | O38: Oui | P38: 0 | R38: 260.9639464 | T38: 750.0144917 | V38: 747.9596575 | X38: 747.9596575 | Z38: 747.9596575 | AB38: 750.0144917 | AD38: 747.9596575 | AF38: 747.9596575
B39: =IF(LEN('Détail des projets'!B39)=0,"",'Détail des projets'!B39) -> Réfrigération au CO2 avec récupération de chaleur- No 08033 IGA Sainte-Thérèse (Daigle) | C39: =IF(LEN('Détail des projets'!C39)=0,"",'Détail des projets'!C39) -> Sobeys Capital Incorporée | D39: =IF(LEN('Détail des projets'!G39)=0,"",'Détail des projets'!G39) -> 15-Laurentides | E39: =IF(LEN('Détail des projets'!K39)=0,"",'Détail des projets'!K39) -> 187006.5 | F39: 992.4170726 | G39: À la fin du projet (suite au dernier versement) | H39: 14.03920144 | I39: QC-Québec | J39: Oui | K39: 15 | L39: 0 | M39: 888.0205939 | N39: Non | O39: Oui | P39: 0 | R39: 97.05143103 | T39: 885.5943081 | V39: 883.1680224 | X39: 883.1680224 | Z39: 883.1680224 | AB39: 885.5943081 | AD39: 883.1680224 | AF39: 883.1680224
B40: =IF(LEN('Détail des projets'!B40)=0,"",'Détail des projets'!B40) -> Réfrigération au CO2 avec récupération de chaleur - No 8724 - IGA Ayer's Cliff | C40: =IF(LEN('Détail des projets'!C40)=0,"",'Détail des projets'!C40) -> Sobeys Capital Incorporée | D40: =IF(LEN('Détail des projets'!G40)=0,"",'Détail des projets'!G40) -> 05-Estrie | E40: =IF(LEN('Détail des projets'!K40)=0,"",'Détail des projets'!K40) -> 55315.39 | F40: 221.2615742 | G40: À la fin du projet (suite au dernier versement) | H40: 17.62598506 | I40: QC-Québec | J40: Oui | K40: 15 | L40: 0 | M40: 209.2190963 | N40: Non | O40: Oui | P40: 0 | R40: 12.57601125 | T40: 208.6474594 | V40: 208.0758226 | X40: 208.0758226 | Z40: 208.0758226 | AB40: 208.6474594 | AD40: 208.0758226 | AF40: 208.0758226
B41: =IF(LEN('Détail des projets'!B41)=0,"",'Détail des projets'!B41) -> Réfrigération CO2 avec récupération de chaleur - No 0444 IGA Saint-Romuald | C41: =IF(LEN('Détail des projets'!C41)=0,"",'Détail des projets'!C41) -> Sobeys Capital Incorporée | D41: =IF(LEN('Détail des projets'!G41)=0,"",'Détail des projets'!G41) -> 12-Chaudière-Appalaches | E41: =IF(LEN('Détail des projets'!K41)=0,"",'Détail des projets'!K41) -> 187006.5 | F41: 837.9238013 | G41: À la fin du projet (suite au dernier versement) | H41: 15.74129728 | I41: QC-Québec | J41: Oui | K41: 15 | L41: 0 | M41: 791.9995272 | N41: Non | O41: Oui | P41: 0 | R41: 108.1966567 | T41: 789.8355941 | V41: 787.6716609 | X41: 386.240444 | Z41: 0 | AB41: 0 | AD41: 0 | AF41: 0
B42: =IF(LEN('Détail des projets'!B42)=0,"",'Détail des projets'!B42) -> Réfrigération au CO2 avec récupération de chaleur | C42: =IF(LEN('Détail des projets'!C42)=0,"",'Détail des projets'!C42) -> Sobeys Capital Incorporée | D42: =IF(LEN('Détail des projets'!G42)=0,"",'Détail des projets'!G42) -> 06-Montréal | E42: =IF(LEN('Détail des projets'!K42)=0,"",'Détail des projets'!K42) -> 48057.94636 | F42: 192.2311722 | G42: À la fin du projet (suite au dernier versement) | H42: 18.49087622 | I42: QC-Québec | J42: Oui | K42: 15 | L42: 0 | M42: 173.2672401 | N42: Non | O42: Oui | P42: 0 | R42: 3.313854319 | T42: 172.7938324 | V42: 172.3204246 | X42: 172.3204246 | Z42: 172.3204246 | AB42: 172.7938324 | AD42: 172.3204246 | AF42: 172.3204246
B43: =IF(LEN('Détail des projets'!B43)=0,"",'Détail des projets'!B43) -> Réfrigération CO2 avec récupération de chaleur - No 8187 - IGA Sainte-Julie | C43: =IF(LEN('Détail des projets'!C43)=0,"",'Détail des projets'!C43) -> Sobeys Capital Incorporée | D43: =IF(LEN('Détail des projets'!G43)=0,"",'Détail des projets'!G43) -> 16-Montérégie | E43: =IF(LEN('Détail des projets'!K43)=0,"",'Détail des projets'!K43) -> 36188.14 | F43: 145.3384104 | G43: À la fin du projet (suite au dernier versement) | H43: 16.59948434 | I43: QC-Québec | J43: Oui | K43: 15 | L43: 0 | M43: 145.3384104 | N43: Non | O43: Oui | P43: 0 | R43: 2.382596891 | T43: 144.9413109 | V43: 144.5442114 | X43: 144.5442114 | Z43: 144.5442114 | AB43: 144.9413109 | AD43: 144.5442114 | AF43: 144.5442114
B44: =IF(LEN('Détail des projets'!B44)=0,"",'Détail des projets'!B44) -> Réfrigération CO2 avec récupération de chaleur (89035) | C44: =IF(LEN('Détail des projets'!C44)=0,"",'Détail des projets'!C44) -> Sobeys Capital Incorporée | D44: =IF(LEN('Détail des projets'!G44)=0,"",'Détail des projets'!G44) -> 08-Abitibi-Témiscamingue | E44: =IF(LEN('Détail des projets'!K44)=0,"",'Détail des projets'!K44) -> 74153.14 | F44: 296.6125465 | G44: À la fin du projet (suite au dernier versement) | H44: 17.84045557 | I44: QC-Québec | J44: Oui | K44: 15 | L44: 0 | M44: 277.0973336 | N44: Non | O44: Oui | P44: 0 | R44: 88.58029515 | T44: 276.340237 | V44: 275.5831405 | X44: 275.5831405 | Z44: 275.5831405 | AB44: 276.340237 | AD44: 275.5831405 | AF44: 275.5831405
B45: =IF(LEN('Détail des projets'!B45)=0,"",'Détail des projets'!B45) -> Complexe intégré de gestion optimale des appareils froids et des frigorigènes | C45: =IF(LEN('Détail des projets'!C45)=0,"",'Détail des projets'!C45) -> Groupe PureSphera inc. | D45: =IF(LEN('Détail des projets'!G45)=0,"",'Détail des projets'!G45) -> 17-Centre-du-Québec | E45: =IF(LEN('Détail des projets'!K45)=0,"",'Détail des projets'!K45) -> 2938500 | F45: 85125.0375 | G45: À la fin du projet (suite au dernier versement) | H45: 2.301320572 | I45: QC-Québec | J45: Oui | K45: 15 | L45: 0 | M45: 85125.0375 | N45: Non | O45: Oui | P45: 0 | R45: 0 | T45: 0 | X45: 42080 | Z45: 30247 | AB45: 45394
B46: =IF(LEN('Détail des projets'!B46)=0,"",'Détail des projets'!B46) -> Approvisionnement pour système de réduction des émissions de GES SEG | C46: =IF(LEN('Détail des projets'!C46)=0,"",'Détail des projets'!C46) -> Groupe PureSphera inc. | D46: =IF(LEN('Détail des projets'!G46)=0,"",'Détail des projets'!G46) -> 17-Centre-du-Québec | E46: =IF(LEN('Détail des projets'!K46)=0,"",'Détail des projets'!K46) -> 32146 | F46: 0 | G46: À la fin du projet (suite au dernier versement) | H46: 0 | I46: QC-Québec | J46: Oui | L46: 0 | M46: 0 | N46: Non | O46: Oui
B47: =IF(LEN('Détail des projets'!B47)=0,"",'Détail des projets'!B47) -> Refroidissement rapide avec système de réfrigération au CO2. | C47: =IF(LEN('Détail des projets'!C47)=0,"",'Détail des projets'!C47) -> Plaisirs gastronomiques inc. | D47: =IF(LEN('Détail des projets'!G47)=0,"",'Détail des projets'!G47) -> 15-Laurentides | E47: =IF(LEN('Détail des projets'!K47)=0,"",'Détail des projets'!K47) -> 155712.07 | F47: 622.8482681 | G47: À la fin du projet (suite au dernier versement) | H47: 27.26177537 | I47: QC-Québec | J47: Oui | K47: 30 | L47: 0 | M47: 190.3912076 | N47: Non | O47: Oui | P47: 0 | R47: 0 | T47: 0 | V47: 0 | X47: 0 | Z47: 0 | AB47: 85.83210179 | AD47: 189.3508185 | AF47: 189.3508185
B48: =IF(LEN('Détail des projets'!B48)=0,"",'Détail des projets'!B48) -> Système CO2 pour le département de charcuteries | C48: =IF(LEN('Détail des projets'!C48)=0,"",'Détail des projets'!C48) -> Plaisirs gastronomiques inc. | D48: =IF(LEN('Détail des projets'!G48)=0,"",'Détail des projets'!G48) -> 15-Laurentides | E48: =IF(LEN('Détail des projets'!K48)=0,"",'Détail des projets'!K48) -> 90628.78 | F48: 362.5151382 | G48: À la fin du projet (suite au dernier versement) | H48: 8.333332916 | I48: QC-Québec | J48: Oui | K48: 30 | L48: 0 | M48: 362.5151382 | N48: Non | O48: Oui | P48: 0 | R48: 0 | T48: 0 | V48: 0 | X48: 0 | Z48: 0 | AB48: 0 | AD48: 0.9904785196 | AF48: 360.5341811
B49: =IF(LEN('Détail des projets'!B49)=0,"",'Détail des projets'!B49) -> Interpac - Étude pour l'installation d'un épurateur à composés organiques volatils (COV) | C49: =IF(LEN('Détail des projets'!C49)=0,"",'Détail des projets'!C49) -> Corporation Interpac inc. | D49: =IF(LEN('Détail des projets'!G49)=0,"",'Détail des projets'!G49) -> 06-Montréal | E49: =IF(LEN('Détail des projets'!K49)=0,"",'Détail des projets'!K49) -> 13025 | F49: 0 | G49: À la fin du projet (suite au dernier versement) | H49: 0 | I49: QC-Québec | J49: Oui | L49: 0 | M49: 0 | N49: Non | O49: Oui
B50: =IF(LEN('Détail des projets'!B50)=0,"",'Détail des projets'!B50) -> Réfrigération CO2 avec récupération de chaleur - Phase 1 | C50: =IF(LEN('Détail des projets'!C50)=0,"",'Détail des projets'!C50) -> SportPlex de l'Énergie inc. | D50: =IF(LEN('Détail des projets'!G50)=0,"",'Détail des projets'!G50) -> 16-Montérégie | E50: =IF(LEN('Détail des projets'!K50)=0,"",'Détail des projets'!K50) -> 81981.96668 | F50: 164.8963 | G50: À la fin du projet (suite au dernier versement) | H50: 9.999983738 | I50: QC-Québec | J50: Oui | K50: 25 | L50: 0 | M50: 327.9284 | N50: Non | O50: Oui | P50: 0 | R50: 0 | T50: 26.87937705 | V50: 326.1364415 | X50: 326.1364415 | Z50: 326.1364415 | AB50: 327.0324208 | AD50: 326.1364415 | AF50: 326.1364415
B51: =IF(LEN('Détail des projets'!B51)=0,"",'Détail des projets'!B51) -> Réfrigération CO2 avec récupération de chaleur - #8240 - IGA Marché St-Canut | C51: =IF(LEN('Détail des projets'!C51)=0,"",'Détail des projets'!C51) -> Marché St-Canut inc. | D51: =IF(LEN('Détail des projets'!G51)=0,"",'Détail des projets'!G51) -> 15-Laurentides | E51: =IF(LEN('Détail des projets'!K51)=0,"",'Détail des projets'!K51) -> 187006.5 | F51: 918.6092061 | G51: À la fin du projet (suite au dernier versement) | H51: 12.93402862 | I51: QC-Québec | J51: Oui | K51: 15.73954201 | L51: 0 | M51: 918.6092061 | N51: Non | O51: Oui | P51: 0 | R51: 0 | T51: 880.9612878 | V51: 913.5894837 | X51: 913.5894837 | Z51: 913.5894837 | AB51: 916.0993449 | AD51: 913.5894837 | AF51: 913.5894837
B52: =IF(LEN('Détail des projets'!B52)=0,"",'Détail des projets'!B52) -> Réfrigération au CO2 avec récupération de chaleur | C52: =IF(LEN('Détail des projets'!C52)=0,"",'Détail des projets'!C52) -> Métro Richelieu inc. | D52: =IF(LEN('Détail des projets'!G52)=0,"",'Détail des projets'!G52) -> 16-Montérégie | E52: =IF(LEN('Détail des projets'!K52)=0,"",'Détail des projets'!K52) -> 70936.55154 | F52: 283.7444942 | G52: À la fin du projet (suite au dernier versement) | H52: 18.14369762 | I52: QC-Québec | J52: Oui | K52: 15 | L52: 0 | M52: 260.6471698 | N52: Non | O52: Oui | P52: 0 | R52: 0 | T52: 0 | V52: 205.0994123 | X52: 259.2228684 | Z52: 259.2228684 | AB52: 259.9350191 | AD52: 259.2228684 | AF52: 259.2228684
B53: =IF(LEN('Détail des projets'!B53)=0,"",'Détail des projets'!B53) -> Étude en optimisation de la réfrigération | C53: =IF(LEN('Détail des projets'!C53)=0,"",'Détail des projets'!C53) -> Municipalité Saint-Joseph-de-Coleraine | D53: =IF(LEN('Détail des projets'!G53)=0,"",'Détail des projets'!G53) -> 12-Chaudière-Appalaches | E53: =IF(LEN('Détail des projets'!K53)=0,"",'Détail des projets'!K53) -> 7000 | F53: 0 | G53: À la fin du projet (suite au dernier versement) | H53: 0 | I53: QC-Québec | J53: Oui | L53: 0 | N53: Non | O53: Oui
B54: =IF(LEN('Détail des projets'!B54)=0,"",'Détail des projets'!B54) -> Optimisation du système de réfrigération de l'aréna | C54: =IF(LEN('Détail des projets'!C54)=0,"",'Détail des projets'!C54) -> Ville de Chambly | D54: =IF(LEN('Détail des projets'!G54)=0,"",'Détail des projets'!G54) -> 16-Montérégie | E54: =IF(LEN('Détail des projets'!K54)=0,"",'Détail des projets'!K54) -> 58585.6454 | F54: 234.3418804 | G54: À la fin du projet (suite au dernier versement) | H54: 0 | I54: QC-Québec | J54: Oui | K54: 26.48695946 | L54: 0 | M54: 0 | N54: Non | O54: Oui | P54: 0 | R54: 0 | T54: 0 | V54: 0 | X54: 0 | Z54: 0 | AB54: 0 | AD54: 0 | AF54: 0
B55: =IF(LEN('Détail des projets'!B55)=0,"",'Détail des projets'!B55) -> Réfrigération CO2 avec récupération de chaleur (08547) | C55: =IF(LEN('Détail des projets'!C55)=0,"",'Détail des projets'!C55) -> Sobeys Capital Incorporée | D55: =IF(LEN('Détail des projets'!G55)=0,"",'Détail des projets'!G55) -> 06-Montréal | E55: =IF(LEN('Détail des projets'!K55)=0,"",'Détail des projets'!K55) -> 192782.48 | F55: 794.3436975 | G55: À la fin du projet (suite au dernier versement) | H55: 17.3162238 | I55: QC-Québec | J55: Oui | K55: 15 | L55: 0 | M55: 742.2036975 | N55: Non | O55: Oui | P55: 0 | R55: 0 | T55: 40.5575791 | V55: 738.1479396 | X55: 738.1479396 | Z55: 738.1479396 | AB55: 740.1758186 | AD55: 738.1479396 | AF55: 738.1479396
B56: =IF(LEN('Détail des projets'!B56)=0,"",'Détail des projets'!B56) -> Réfrigération CO2 avec récupération de chaleur (88086) | C56: =IF(LEN('Détail des projets'!C56)=0,"",'Détail des projets'!C56) -> Sobeys Capital Incorporée | D56: =IF(LEN('Détail des projets'!G56)=0,"",'Détail des projets'!G56) -> 07-Outaouais | E56: =IF(LEN('Détail des projets'!K56)=0,"",'Détail des projets'!K56) -> 129279 | F56: 566.5256378 | G56: À la fin du projet (suite au dernier versement) | H56: 17.01569206 | I56: QC-Québec | J56: Oui | K56: 15 | L56: 0 | M56: 506.5089312 | N56: Non | O56: Oui | P56: 0 | R56: 0 | T56: 0 | V56: 0 | X56: 0 | Z56: 305.8428246 | AB56: 505.125027 | AD56: 503.7411228 | AF56: 503.7411228
B57: =IF(LEN('Détail des projets'!B57)=0,"",'Détail des projets'!B57) -> Réfrigération CO2 avec récupération de chaleur (000259) | C57: =IF(LEN('Détail des projets'!C57)=0,"",'Détail des projets'!C57) -> Sobeys Capital Incorporée | L57: 0 | M57: 671.8382897 | N57: Non | O57: Oui | P57: 0 | R57: 0 | T57: 53.23308853 | V57: 668.1670422 | X57: 668.1670422 | Z57: 668.1670422 | AB57: 670.002666 | AD57: 668.1670422 | AF57: 668.1670422
B58: =IF(LEN('Détail des projets'!B58)=0,"",'Détail des projets'!B58) -> Réfrigération CO2 avec récupération de chaleur (88734) | C58: =IF(LEN('Détail des projets'!C58)=0,"",'Détail des projets'!C58) -> Sobeys Capital Incorporée | D58: =IF(LEN('Détail des projets'!G58)=0,"",'Détail des projets'!G58) -> 03-Capitale-Nationale | E58: =IF(LEN('Détail des projets'!K58)=0,"",'Détail des projets'!K58) -> 159937.5 | F58: 776.4509681 | G58: À la fin du projet (suite au dernier versement) | H58: 16.58564864 | I58: QC-Québec | J58: Oui | K58: 15 | L58: 0 | M58: 642.8750681 | N58: Non | O58: Oui | P58: 0 | R58: 0 | T58: 0 | V58: 339.0024266 | X58: 639.3620896 | Z58: 639.3620896 | AB58: 641.1185788 | AD58: 639.3620896 | AF58: 639.3620896
B59: =IF(LEN('Détail des projets'!B59)=0,"",'Détail des projets'!B59) -> Étude de faisabilité - Climatisation et efficacité énergétique dans un édifice multilogement | C59: =IF(LEN('Détail des projets'!C59)=0,"",'Détail des projets'!C59) -> Syndicat des copropriétaires de Manoir Un | D59: =IF(LEN('Détail des projets'!G59)=0,"",'Détail des projets'!G59) -> 06-Montréal | E59: =IF(LEN('Détail des projets'!K59)=0,"",'Détail des projets'!K59) -> 9000 | F59: 0 | G59: À la fin du projet (suite au dernier versement) | H59: 0 | I59: QC-Québec | J59: Oui | L59: 0 | M59: 0 | N59: Non | O59: Oui
B60: =IF(LEN('Détail des projets'!B60)=0,"",'Détail des projets'!B60) -> Réfrigération CO2 avec récupération de chaleur (8182) | C60: =IF(LEN('Détail des projets'!C60)=0,"",'Détail des projets'!C60) -> Sobeys Capital Incorporée | D60: =IF(LEN('Détail des projets'!G60)=0,"",'Détail des projets'!G60) -> 02-Saguenay--Lac-Saint-Jean | E60: =IF(LEN('Détail des projets'!K60)=0,"",'Détail des projets'!K60) -> 114265.17 | F60: 457.0606621 | G60: À la fin du projet (suite au dernier versement) | H60: 19.13479999 | I60: QC-Québec | J60: Oui | K60: 15 | L60: 0 | M60: 398.1059641 | N60: Non | O60: Oui | P60: 0 | R60: 0 | T60: 0 | V60: 162.0704608 | X60: 395.9305217 | Z60: 395.9305217 | AB60: 397.0182429 | AD60: 395.9305217 | AF60: 395.9305217
B61: =IF(LEN('Détail des projets'!B61)=0,"",'Détail des projets'!B61) -> Récupération de chaleur et réfrigération au CO2 | C61: =IF(LEN('Détail des projets'!C61)=0,"",'Détail des projets'!C61) -> Maître Saladier inc. | D61: =IF(LEN('Détail des projets'!G61)=0,"",'Détail des projets'!G61) -> 15-Laurentides | E61: =IF(LEN('Détail des projets'!K61)=0,"",'Détail des projets'!K61) -> 168352.5235 | F61: 673.4072954 | G61: À la fin du projet (suite au dernier versement) | H61: 9.737230571 | I61: QC-Québec | J61: Oui | K61: 25.6860981 | L61: 0 | M61: 673.1099954 | N61: Non | O61: Oui | P61: 0 | R61: 0 | T61: 0 | V61: 283.2211456 | X61: 669.4317987 | Z61: 669.4317987 | AB61: 671.2708971 | AD61: 669.4317987 | AF61: 669.4317987
B62: =IF(LEN('Détail des projets'!B62)=0,"",'Détail des projets'!B62) -> Réfrigération CO2 avec récupération de chaleur | C62: =IF(LEN('Détail des projets'!C62)=0,"",'Détail des projets'!C62) -> Sobeys Capital Incorporée | D62: =IF(LEN('Détail des projets'!G62)=0,"",'Détail des projets'!G62) -> 08-Abitibi-Témiscamingue | E62: =IF(LEN('Détail des projets'!K62)=0,"",'Détail des projets'!K62) -> 192782.48 | F62: 900.5984478 | G62: À la fin du projet (suite au dernier versement) | H62: 19.17399075 | I62: QC-Québec | J62: Oui | K62: 15 | L62: 0 | M62: 670.2916207 | N62: Non | O62: Oui | P62: 0 | R62: 0 | T62: 0 | V62: 274.7096806 | X62: 666.628825 | Z62: 666.628825 | AB62: 668.4602228 | AD62: 666.628825 | AF62: 666.628825
B63: =IF(LEN('Détail des projets'!B63)=0,"",'Détail des projets'!B63) -> Réfrigération CO2 avec récupération de chaleur (89056) | C63: =IF(LEN('Détail des projets'!C63)=0,"",'Détail des projets'!C63) -> Sobeys Capital Incorporée | D63: =IF(LEN('Détail des projets'!G63)=0,"",'Détail des projets'!G63) -> 04-Mauricie | E63: =IF(LEN('Détail des projets'!K63)=0,"",'Détail des projets'!K63) -> 154506.69 | F63: 618.0267431 | G63: À la fin du projet (suite au dernier versement) | H63: 17.51513428 | I63: QC-Québec | J63: Oui | K63: 15 | L63: 0 | M63: 588.088326 | N63: Non | O63: Oui | P63: 0 | R63: 0 | T63: 0 | V63: 0 | X63: 456.3308322 | Z63: 584.8747286 | AB63: 586.4815273 | AD63: 584.8747286 | AF63: 584.8747286
B64: =IF(LEN('Détail des projets'!B64)=0,"",'Détail des projets'!B64) -> Réfrigération CO2 avec récupération de chaleur (8341) | C64: =IF(LEN('Détail des projets'!C64)=0,"",'Détail des projets'!C64) -> Sobeys Capital Incorporée | D64: =IF(LEN('Détail des projets'!G64)=0,"",'Détail des projets'!G64) -> 16-Montérégie | E64: =IF(LEN('Détail des projets'!K64)=0,"",'Détail des projets'!K64) -> 176015.83 | F64: 872.5584981 | G64: À la fin du projet (suite au dernier versement) | H64: 15.2291509 | I64: QC-Québec | J64: Oui | K64: 15 | L64: 0 | M64: 770.5215312 | N64: Non | O64: Oui | P64: 0 | R64: 0 | T64: 0 | V64: 0 | X64: 408.4185165 | Z64: 766.311031 | AB64: 768.4162811 | AD64: 766.311031 | AF64: 766.311031
B65: =IF(LEN('Détail des projets'!B65)=0,"",'Détail des projets'!B65) -> Réfrigération CO2 avec récupération de chaleur (8085) | C65: =IF(LEN('Détail des projets'!C65)=0,"",'Détail des projets'!C65) -> Sobeys Capital Incorporée | D65: =IF(LEN('Détail des projets'!G65)=0,"",'Détail des projets'!G65) -> 07-Outaouais | E65: =IF(LEN('Détail des projets'!K65)=0,"",'Détail des projets'!K65) -> 150319.47 | F65: 601.2778861 | G65: À la fin du projet (suite au dernier versement) | H65: 21.91417248 | I65: QC-Québec | J65: Oui | K65: 15 | L65: 0 | M65: 457.2975781 | N65: Non | O65: Oui | P65: 0 | R65: 0 | T65: 0 | V65: 0 | X65: 0 | Z65: 0 | AB65: 171.1742301 | AD65: 454.7986843 | AF65: 454.7986843
B66: =IF(LEN('Détail des projets'!B66)=0,"",'Détail des projets'!B66) -> Réfrigération CO2 avec récupération de chaleur (8296) | C66: =IF(LEN('Détail des projets'!C66)=0,"",'Détail des projets'!C66) -> Sobeys Capital Incorporée | D66: =IF(LEN('Détail des projets'!G66)=0,"",'Détail des projets'!G66) -> 14-Lanaudière | E66: =IF(LEN('Détail des projets'!K66)=0,"",'Détail des projets'!K66) -> 159937.5 | F66: 652.0251237 | G66: À la fin du projet (suite au dernier versement) | H66: 18.96179021 | I66: QC-Québec | J66: Oui | K66: 15 | L66: 0 | M66: 562.3150494 | N66: Non | O66: Oui | P66: 0 | R66: 0 | T66: 0 | V66: 0 | X66: 56.84605691 | Z66: 559.2422896 | AB66: 560.7786695 | AD66: 559.2422896 | AF66: 559.2422896
B67: =IF(LEN('Détail des projets'!B67)=0,"",'Détail des projets'!B67) -> Réfrigération CO2 avec récupération de chaleur (8046) | C67: =IF(LEN('Détail des projets'!C67)=0,"",'Détail des projets'!C67) -> Sobeys Capital Incorporée | D67: =IF(LEN('Détail des projets'!G67)=0,"",'Détail des projets'!G67) -> 05-Estrie | E67: =IF(LEN('Détail des projets'!K67)=0,"",'Détail des projets'!K67) -> 158550.17 | F67: 634.2006909 | G67: À la fin du projet (suite au dernier versement) | H67: 18.45313392 | I67: QC-Québec | J67: Oui | K67: 15 | L67: 0 | M67: 572.8030467 | N67: Non | O67: Oui | P67: 0 | R67: 0 | T67: 0 | V67: 0 | X67: 446.0351593 | Z67: 569.6729754 | AB67: 571.2380111 | AD67: 569.6729754 | AF67: 569.6729754
B68: =IF(LEN('Détail des projets'!B68)=0,"",'Détail des projets'!B68) -> Réfrigération au CO2 | C68: =IF(LEN('Détail des projets'!C68)=0,"",'Détail des projets'!C68) -> Emblème Canneberge inc. | D68: =IF(LEN('Détail des projets'!G68)=0,"",'Détail des projets'!G68) -> 17-Centre-du-Québec | E68: =IF(LEN('Détail des projets'!K68)=0,"",'Détail des projets'!K68) -> 225017.26 | F68: 900.0690436 | G68: À la fin du projet (suite au dernier versement) | H68: 8.3333333 | I68: QC-Québec | J68: Oui | K68: 30 | L68: 0 | M68: 900.0690436 | N68: Non | O68: Oui | P68: 0 | R68: 0 | T68: 0 | V68: 445.1161117 | X68: 895.1506335 | Z68: 895.1506335 | AB68: 897.6098386 | AD68: 895.1506335 | AF68: 895.1506335
B69: =IF(LEN('Détail des projets'!B69)=0,"",'Détail des projets'!B69) -> Système de réfrigération au CO2 - Phase 2 | C69: =IF(LEN('Détail des projets'!C69)=0,"",'Détail des projets'!C69) -> Emblème Canneberge inc. | D69: =IF(LEN('Détail des projets'!G69)=0,"",'Détail des projets'!G69) -> 17-Centre-du-Québec | E69: =IF(LEN('Détail des projets'!K69)=0,"",'Détail des projets'!K69) -> 160627.49 | F69: 642.5099627 | G69: À la fin du projet (suite au dernier versement) | H69: 12.49999995 | I69: QC-Québec | J69: Oui | K69: 20 | L69: 0 | M69: 642.5099627 | N69: Non | O69: Oui | P69: 0 | R69: 0 | T69: 0 | V69: 0 | X69: 324.7659647 | Z69: 638.9989793 | AB69: 640.754471 | AD69: 638.9989793 | AF69: 638.9989793
B70: =IF(LEN('Détail des projets'!B70)=0,"",'Détail des projets'!B70) -> Efficacité énergétique impliquant un système CO2 - Édifice multilogement | C70: =IF(LEN('Détail des projets'!C70)=0,"",'Détail des projets'!C70) -> Syndicat des copropriétaires du Manoir II | D70: =IF(LEN('Détail des projets'!G70)=0,"",'Détail des projets'!G70) -> 06-Montréal | E70: =IF(LEN('Détail des projets'!K70)=0,"",'Détail des projets'!K70) -> 9000 | F70: 0 | G70: À la fin du projet (suite au dernier versement) | H70: 0 | I70: QC-Québec | J70: Oui | L70: 0 | M70: 0 | N70: Non | O70: Oui
B71: =IF(LEN('Détail des projets'!B71)=0,"",'Détail des projets'!B71) -> Congélateur-Agrandissement | C71: =IF(LEN('Détail des projets'!C71)=0,"",'Détail des projets'!C71) -> Les Atocas de l'érable inc. | D71: =IF(LEN('Détail des projets'!G71)=0,"",'Détail des projets'!G71) -> 17-Centre-du-Québec | E71: =IF(LEN('Détail des projets'!K71)=0,"",'Détail des projets'!K71) -> 201226.42 | F71: 246.2664863 | G71: À la fin du projet (suite au dernier versement) | H71: 8.333333255 | I71: QC-Québec | J71: Oui | K71: 30 | L71: 0 | M71: 804.9056875 | N71: Non | O71: Oui | P71: 0 | R71: 0 | T71: 0 | V71: 332.078576 | X71: 800.5072958 | Z71: 800.5072958 | AB71: 802.7064917 | AD71: 800.5072958 | AF71: 800.5072958
B72: =IF(LEN('Détail des projets'!B72)=0,"",'Détail des projets'!B72) -> Réfrigération CO2 avec récupération de chaleur - Super C - Baie St-Paul | C72: =IF(LEN('Détail des projets'!C72)=0,"",'Détail des projets'!C72) -> Métro Richelieu inc. | D72: =IF(LEN('Détail des projets'!G72)=0,"",'Détail des projets'!G72) -> 03-Capitale-Nationale | E72: =IF(LEN('Détail des projets'!K72)=0,"",'Détail des projets'!K72) -> 56002.96 | F72: 224.0118464 | G72: À la fin du projet (suite au dernier versement) | H72: 16.66666619 | I72: QC-Québec | J72: Oui | K72: 15 | L72: 0 | M72: 224.0118464 | N72: Non | O72: Oui | P72: 0 | R72: 0 | T72: 0 | V72: 55.6969345 | X72: 222.787738 | Z72: 222.787738 | AB72: 223.3997922 | AD72: 222.787738 | AF72: 222.787738
B73: =IF(LEN('Détail des projets'!B73)=0,"",'Détail des projets'!B73) -> Réfrigération CO2 avec récupération de chaleur - Metro Drummondville | C73: =IF(LEN('Détail des projets'!C73)=0,"",'Détail des projets'!C73) -> Métro Richelieu inc. | D73: =IF(LEN('Détail des projets'!G73)=0,"",'Détail des projets'!G73) -> 17-Centre-du-Québec | E73: =IF(LEN('Détail des projets'!K73)=0,"",'Détail des projets'!K73) -> 77482.67 | F73: 309.9306738 | G73: À la fin du projet (suite au dernier versement) | H73: 16.666667 | I73: QC-Québec | J73: Oui | K73: 15 | L73: 0 | M73: 309.9306738 | N73: Non | O73: Oui | P73: 0 | R73: 0 | T73: 0 | V73: 0 | X73: 0 | Z73: 0 | AB73: 187.9907366 | AD73: 308.2370636 | AF73: 308.2370636
B74: =IF(LEN('Détail des projets'!B74)=0,"",'Détail des projets'!B74) -> Remplacement du système de réfrigération et amélioration de l’efficacité énergétique du complexe | C74: =IF(LEN('Détail des projets'!C74)=0,"",'Détail des projets'!C74) -> Complexe sportif Kirkland | D74: =IF(LEN('Détail des projets'!G74)=0,"",'Détail des projets'!G74) -> 06-Montréal | E74: =IF(LEN('Détail des projets'!K74)=0,"",'Détail des projets'!K74) -> 41212.44408 | F74: 183.4299396 | G74: À la fin du projet (suite au dernier versement) | H74: 8.987070307 | I74: QC-Québec | J74: Oui | K74: 25 | L74: 0 | M74: 183.4299396 | N74: Non | O74: Oui | P74: 0 | R74: 0 | T74: 0 | V74: 0 | X74: 39.09162646 | Z74: 182.4275902 | AB74: 182.9287649 | AD74: 182.4275902 | AF74: 182.4275902
B75: =IF(LEN('Détail des projets'!B75)=0,"",'Détail des projets'!B75) -> Réfrigération CO2 avec récupération de chaleur (8188) | C75: =IF(LEN('Détail des projets'!C75)=0,"",'Détail des projets'!C75) -> Sobeys Capital Incorporée | D75: =IF(LEN('Détail des projets'!G75)=0,"",'Détail des projets'!G75) -> 03-Capitale-Nationale | E75: =IF(LEN('Détail des projets'!K75)=0,"",'Détail des projets'!K75) -> 106813.37 | F75: 427.2534647 | G75: À la fin du projet (suite au dernier versement) | H75: 17.88965915 | I75: QC-Québec | J75: Oui | K75: 13.97455406 | L75: 0 | M75: 427.2534647 | N75: Non | O75: Oui | P75: 0 | R75: 0 | T75: 0 | V75: 0 | X75: 0 | Z75: 59.53531885 | AB75: 426.0861055 | AD75: 424.9187463 | AF75: 424.9187463
B76: =IF(LEN('Détail des projets'!B76)=0,"",'Détail des projets'!B76) -> Réfrigération CO2 avec récupération de chaleur (08092) | C76: =IF(LEN('Détail des projets'!C76)=0,"",'Détail des projets'!C76) -> Sobeys Capital Incorporée | D76: =IF(LEN('Détail des projets'!G76)=0,"",'Détail des projets'!G76) -> 05-Estrie | E76: =IF(LEN('Détail des projets'!K76)=0,"",'Détail des projets'!K76) -> 159937.5 | F76: 695.2668532 | G76: À la fin du projet (suite au dernier versement) | H76: 17.81744752 | I76: QC-Québec | J76: Oui | K76: 14.03341579 | L76: 0 | M76: 639.6485532 | N76: Non | O76: Oui | P76: 0 | R76: 0 | T76: 0 | V76: 0 | X76: 312.833582 | Z76: 636.1532059 | AB76: 637.9008795 | AD76: 636.1532059 | AF76: 636.1532059
B77: =IF(LEN('Détail des projets'!B77)=0,"",'Détail des projets'!B77) -> Réfrigération CO2 avec récupération de chaleur (134) | C77: =IF(LEN('Détail des projets'!C77)=0,"",'Détail des projets'!C77) -> Sobeys Capital Incorporée | D77: =IF(LEN('Détail des projets'!G77)=0,"",'Détail des projets'!G77) -> 03-Capitale-Nationale | E77: =IF(LEN('Détail des projets'!K77)=0,"",'Détail des projets'!K77) -> 141557.52 | F77: 566.2300655 | G77: À la fin du projet (suite au dernier versement) | H77: 15.6220382 | I77: QC-Québec | J77: Oui | K77: 14.95575809 | L77: 0 | M77: 605.8802808 | N77: Non | O77: Oui | P77: 0 | R77: 0 | T77: 0 | V77: 0 | X77: 355.9132797 | Z77: 602.5694596 | AB77: 604.2248702 | AD77: 602.5694596 | AF77: 602.5694596
B78: =IF(LEN('Détail des projets'!B78)=0,"",'Détail des projets'!B78) -> Système de réfrigération CO2 avec récupération de chaleur - Super C Saint-Hyacinthe | C78: =IF(LEN('Détail des projets'!C78)=0,"",'Détail des projets'!C78) -> Métro Richelieu inc. | D78: =IF(LEN('Détail des projets'!G78)=0,"",'Détail des projets'!G78) -> 16-Montérégie | E78: =IF(LEN('Détail des projets'!K78)=0,"",'Détail des projets'!K78) -> 75313.4 | F78: 301.253611 | G78: À la fin du projet (suite au dernier versement) | H78: 16.66666606 | I78: QC-Québec | J78: Oui | K78: 15 | L78: 0 | M78: 301.253611 | N78: Non | O78: Oui | P78: 0 | R78: 0 | T78: 0 | V78: 0 | X78: 0 | Z78: 0 | AB78: 242.8137028 | AD78: 299.6074164 | AF78: 299.6074164
B79: =IF(LEN('Détail des projets'!B79)=0,"",'Détail des projets'!B79) -> Réfrigération CO2 avec récupération de chaleur (88029) | C79: =IF(LEN('Détail des projets'!C79)=0,"",'Détail des projets'!C79) -> Sobeys Capital Incorporée | D79: =IF(LEN('Détail des projets'!G79)=0,"",'Détail des projets'!G79) -> 16-Montérégie | E79: =IF(LEN('Détail des projets'!K79)=0,"",'Détail des projets'!K79) -> 171672 | F79: 770.1996307 | G79: À la fin du projet (suite au dernier versement) | H79: 18.15940214 | I79: QC-Québec | J79: Oui | K79: 15 | L79: 0 | M79: 630.2410132 | N79: Non | O79: Oui | P79: 0 | R79: 0 | T79: 0 | V79: 0 | X79: 489.0394747 | Z79: 626.7970732 | AB79: 628.5190432 | AD79: 626.7970732 | AF79: 626.7970732
B80: =IF(LEN('Détail des projets'!B80)=0,"",'Détail des projets'!B80) -> Réfrigération CO2 avec récupération de chaleur (8340) | C80: =IF(LEN('Détail des projets'!C80)=0,"",'Détail des projets'!C80) -> Sobeys Capital Incorporée | D80: =IF(LEN('Détail des projets'!G80)=0,"",'Détail des projets'!G80) -> 04-Mauricie | E80: =IF(LEN('Détail des projets'!K80)=0,"",'Détail des projets'!K80) -> 127767.62 | F80: 511.0704744 | G80: À la fin du projet (suite au dernier versement) | H80: 17.74322169 | I80: QC-Québec | J80: Oui | K80: 15 | L80: 0 | M80: 480.0617094 | N80: Non | O80: Oui | P80: 0 | R80: 0 | T80: 0 | V80: 0 | X80: 373.8185442 | Z80: 477.4384214 | AB80: 478.7500654 | AD80: 477.4384214 | AF80: 477.4384214
B81: =IF(LEN('Détail des projets'!B81)=0,"",'Détail des projets'!B81) -> Aréna Michael-Bilodeau : Réfrigération au CO2 | C81: =IF(LEN('Détail des projets'!C81)=0,"",'Détail des projets'!C81) -> Ville de Saint-Bruno-de-Montarville | D81: =IF(LEN('Détail des projets'!G81)=0,"",'Détail des projets'!G81) -> 16-Montérégie | E81: =IF(LEN('Détail des projets'!K81)=0,"",'Détail des projets'!K81) -> 61566.62 | F81: 246.2664863 | G81: À la fin du projet (suite au dernier versement) | H81: 9.999999743 | I81: QC-Québec | J81: Oui | K81: 25 | L81: 0 | M81: 246.2664863 | N81: Non | O81: Oui | P81: 0 | R81: 0 | T81: 0 | V81: 0 | X81: 0 | Z81: 87.47170279 | AB81: 245.5936271 | AD81: 244.9207678 | AF81: 244.9207678
B82: =IF(LEN('Détail des projets'!B82)=0,"",'Détail des projets'!B82) -> Étude de faisabilité en efficacité énergétique - CSRJQ | C82: =IF(LEN('Détail des projets'!C82)=0,"",'Détail des projets'!C82) -> Centre sportif régional les Jardins du Québec inc. | D82: =IF(LEN('Détail des projets'!G82)=0,"",'Détail des projets'!G82) -> 16-Montérégie | E82: =IF(LEN('Détail des projets'!K82)=0,"",'Détail des projets'!K82) -> 7750 | F82: 0 | G82: À la fin du projet (suite au dernier versement) | H82: 0 | I82: QC-Québec | J82: Oui | L82: 0 | M82: 0 | N82: Non | O82: Oui
B83: =IF(LEN('Détail des projets'!B83)=0,"",'Détail des projets'!B83) -> Agrandissement Centre de distribution et entrepôt réfrigéré de Michal | C83: =IF(LEN('Détail des projets'!C83)=0,"",'Détail des projets'!C83) -> Michal inc. | D83: =IF(LEN('Détail des projets'!G83)=0,"",'Détail des projets'!G83) -> 06-Montréal | E83: =IF(LEN('Détail des projets'!K83)=0,"",'Détail des projets'!K83) -> 159240 | F83: 637.1501708 | G83: À la fin du projet (suite au dernier versement) | H83: 9.99701529 | I83: QC-Québec | J83: Oui | K83: 25 | L83: 0 | M83: 637.1501708 | N83: Non | O83: Oui | P83: 0 | R83: 0 | T83: 0 | V83: 0 | X83: 271.572204 | Z83: 633.6684759 | AB83: 635.4093234 | AD83: 633.6684759 | AF83: 633.6684759
B84: =IF(LEN('Détail des projets'!B84)=0,"",'Détail des projets'!B84) -> Réfrigération CO2 avec récupération de chaleur | C84: =IF(LEN('Détail des projets'!C84)=0,"",'Détail des projets'!C84) -> Les Viandes Concord | D84: =IF(LEN('Détail des projets'!G84)=0,"",'Détail des projets'!G84) -> 15-Laurentides | E84: =IF(LEN('Détail des projets'!K84)=0,"",'Détail des projets'!K84) -> 316347.5544 | F84: 1265.378583 | G84: À la fin du projet (suite au dernier versement) | H84: 9.749497753 | I84: QC-Québec | J84: Oui | K84: 25.64140701 | L84: 0 | M84: 1265.436583 | N84: Non | O84: Oui | P84: 0 | R84: 0 | T84: 0 | V84: 0 | X84: 124.4691721 | Z84: 1258.521629 | AB84: 1261.979106 | AD84: 1258.521629 | AF84: 1258.521629
B85: =IF(LEN('Détail des projets'!B85)=0,"",'Détail des projets'!B85) -> Réfrigération CO2 avec récupération de chaleur (88093) | C85: =IF(LEN('Détail des projets'!C85)=0,"",'Détail des projets'!C85) -> Sobeys Capital Incorporée | D85: =IF(LEN('Détail des projets'!G85)=0,"",'Détail des projets'!G85) -> 06-Montréal | E85: =IF(LEN('Détail des projets'!K85)=0,"",'Détail des projets'!K85) -> 171672 | F85: 746.7621269 | G85: À la fin du projet (suite au dernier versement) | H85: 17.45023444 | I85: QC-Québec | J85: Oui | K85: 15 | L85: 0 | M85: 655.853653 | N85: Non | O85: Oui | P85: 0 | R85: 0 | T85: 0 | V85: 0 | X85: 0 | Z85: 0 | AB85: 537.5849614 | AD85: 652.2697532 | AF85: 652.2697532
B86: =IF(LEN('Détail des projets'!B86)=0,"",'Détail des projets'!B86) -> Système de réfrigération au CO2 avec récupération de chaleur | C86: =IF(LEN('Détail des projets'!C86)=0,"",'Détail des projets'!C86) -> Distribution Alimentaire Aubut inc. | D86: =IF(LEN('Détail des projets'!G86)=0,"",'Détail des projets'!G86) -> 13-Laval | E86: =IF(LEN('Détail des projets'!K86)=0,"",'Détail des projets'!K86) -> 143297.1 | F86: 675.4268106 | G86: À la fin du projet (suite au dernier versement) | H86: 7.192558845 | I86: QC-Québec | J86: Oui | K86: 29.49685287 | L86: 0 | M86: 675.4268106 | N86: Non | O86: Oui | P86: 0 | R86: 0 | T86: 0 | V86: 0 | X86: 241.7511262 | Z86: 671.7359537 | AB86: 673.5813822 | AD86: 671.7359537 | AF86: 671.7359537
B87: =IF(LEN('Détail des projets'!B87)=0,"",'Détail des projets'!B87) -> Implantation d'un système de réfrigération au CO2 | C87: =IF(LEN('Détail des projets'!C87)=0,"",'Détail des projets'!C87) -> Frigora Solutions d'Entreposage inc. | D87: =IF(LEN('Détail des projets'!G87)=0,"",'Détail des projets'!G87) -> 16-Montérégie | E87: =IF(LEN('Détail des projets'!K87)=0,"",'Détail des projets'!K87) -> 222116.85 | F87: 804.9056875 | G87: À la fin du projet (suite au dernier versement) | H87: 9.998324159 | I87: QC-Québec | J87: Oui | K87: 25 | L87: 0 | M87: 888.616318 | N87: Non | O87: Oui | P87: 0 | R87: 0 | T87: 0 | V87: 0 | X87: 0 | Z87: 769.6485596 | AB87: 886.1884046 | AD87: 883.7604911 | AF87: 883.7604911
B88: =IF(LEN('Détail des projets'!B88)=0,"",'Détail des projets'!B88) -> Implantation d'une système de réfrigération au CO2 | C88: =IF(LEN('Détail des projets'!C88)=0,"",'Détail des projets'!C88) -> Complexe Sportif Saint-Raphaël | D88: =IF(LEN('Détail des projets'!G88)=0,"",'Détail des projets'!G88) -> 06-Montréal | E88: =IF(LEN('Détail des projets'!K88)=0,"",'Détail des projets'!K88) -> 52710.62 | F88: 210.8425 | G88: À la fin du projet (suite au dernier versement) | H88: 10.07267304 | I88: QC-Québec | J88: Oui | K88: 24.81962585 | L88: 0 | M88: 210.8425 | N88: Non | O88: Oui | P88: 0 | R88: 0 | T88: 0 | V88: 0 | X88: 57.03116803 | Z88: 209.6903552 | AB88: 210.2664276 | AD88: 209.6903552 | AF88: 209.6903552
B89: =IF(LEN('Détail des projets'!B89)=0,"",'Détail des projets'!B89) -> Réfrigération CO2 avec récupération de chaleur (075016) | C89: =IF(LEN('Détail des projets'!C89)=0,"",'Détail des projets'!C89) -> Sobeys Capital Incorporée | D89: =IF(LEN('Détail des projets'!G89)=0,"",'Détail des projets'!G89) -> 06-Montréal | E89: =IF(LEN('Détail des projets'!K89)=0,"",'Détail des projets'!K89) -> 143894.01 | F89: 567.1956795 | G89: À la fin du projet (suite au dernier versement) | H89: 17.11977461 | I89: QC-Québec | J89: Oui | K89: 15 | L89: 0 | M89: 560.342307 | N89: Non | O89: Oui | P89: 0 | R89: 0 | T89: 0 | V89: 0 | X89: 0 | Z89: 468.4829124 | AB89: 558.8113171 | AD89: 557.2803272 | AF89: 557.2803272
B90: =IF(LEN('Détail des projets'!B90)=0,"",'Détail des projets'!B90) -> Système de réfrigération au CO2 avec récupération de chaleur | C90: =IF(LEN('Détail des projets'!C90)=0,"",'Détail des projets'!C90) -> Métro Richelieu inc. | D90: =IF(LEN('Détail des projets'!G90)=0,"",'Détail des projets'!G90) -> 07-Outaouais | E90: =IF(LEN('Détail des projets'!K90)=0,"",'Détail des projets'!K90) -> 78223.58 | F90: 312.8943368 | G90: À la fin du projet (suite au dernier versement) | H90: 12.49999933 | I90: QC-Québec | J90: Oui | K90: 20 | L90: 0 | M90: 312.8943368 | N90: Non | O90: Oui | P90: 0 | R90: 0 | T90: 0 | V90: 0 | X90: 0 | Z90: 0 | AB90: 165.8510966 | AD90: 311.1845317 | AF90: 311.1845317
B91: =IF(LEN('Détail des projets'!B91)=0,"",'Détail des projets'!B91) -> Agrandissement du site | C91: =IF(LEN('Détail des projets'!C91)=0,"",'Détail des projets'!C91) -> Frigo Chambly | D91: =IF(LEN('Détail des projets'!G91)=0,"",'Détail des projets'!G91) -> 16-Montérégie | E91: =IF(LEN('Détail des projets'!K91)=0,"",'Détail des projets'!K91) -> 146250 | F91: 755.89064 | G91: À la fin du projet (suite au dernier versement) | H91: 7.739214763 | I91: QC-Québec | J91: Oui | K91: 25 | L91: 0 | M91: 755.89064 | N91: Non | O91: Oui | P91: 0 | R91: 0 | T91: 0 | V91: 0 | X91: 394.4675198 | Z91: 751.7600901 | AB91: 753.825365 | AD91: 751.7600901 | AF91: 751.7600901
B92: =IF(LEN('Détail des projets'!B92)=0,"",'Détail des projets'!B92) -> Entrepôt frigorifique pour aliments congelés | C92: =IF(LEN('Détail des projets'!C92)=0,"",'Détail des projets'!C92) -> Frigo Chambly | D92: =IF(LEN('Détail des projets'!G92)=0,"",'Détail des projets'!G92) -> 16-Montérégie | E92: =IF(LEN('Détail des projets'!K92)=0,"",'Détail des projets'!K92) -> 126978.12 | F92: 507.9125 | G92: À la fin du projet (suite au dernier versement) | H92: 9.999999606 | I92: QC-Québec | J92: Oui | K92: 25 | L92: 0 | M92: 507.9125 | N92: Non | O92: Oui | P92: 0 | R92: 0 | T92: 0 | V92: 0 | X92: 0 | Z92: 0 | AB92: 253.95625 | AD92: 505.1370219 | AF92: 505.1370219
B93: =IF(LEN('Détail des projets'!B93)=0,"",'Détail des projets'!B93) -> Réfrigération CO2 avec récupération de chaleur | C93: =IF(LEN('Détail des projets'!C93)=0,"",'Détail des projets'!C93) -> Métro Richelieu inc. | D93: =IF(LEN('Détail des projets'!G93)=0,"",'Détail des projets'!G93) -> 07-Outaouais | E93: =IF(LEN('Détail des projets'!K93)=0,"",'Détail des projets'!K93) -> 75072.55 | F93: 300.2902001 | G93: À la fin du projet (suite au dernier versement) | H93: 15.61215273 | I93: QC-Québec | J93: Oui | K93: 16.01316643 | L93: 0 | M93: 300.2902001 | N93: Non | O93: Oui | P93: 0 | R93: 0 | T93: 0 | V93: 0 | X93: 0 | Z93: 0 | AB93: 188.7069564 | AD93: 298.6492701 | AF93: 298.6492701
B94: =IF(LEN('Détail des projets'!B94)=0,"",'Détail des projets'!B94) -> Réfrigération au CO2 - Verger Hamel 2017 | C94: =IF(LEN('Détail des projets'!C94)=0,"",'Détail des projets'!C94) -> Verger Hamel S.E.N.C. | D94: =IF(LEN('Détail des projets'!G94)=0,"",'Détail des projets'!G94) -> 16-Montérégie | E94: =IF(LEN('Détail des projets'!K94)=0,"",'Détail des projets'!K94) -> 33339.19 | F94: 133.3567696 | G94: À la fin du projet (suite au dernier versement) | H94: 9.999999277 | I94: QC-Québec | J94: Oui | K94: 25 | L94: 0 | M94: 133.3567696 | N94: Non | O94: Oui | P94: 0 | R94: 0 | T94: 0 | V94: 0 | X94: 0 | Z94: 47.73152137 | AB94: 132.9924069 | AD94: 132.6280441 | AF94: 132.6280441
B95: =IF(LEN('Détail des projets'!B95)=0,"",'Détail des projets'!B95) -> Étude de faisabilité en efficacité énergétique | C95: =IF(LEN('Détail des projets'!C95)=0,"",'Détail des projets'!C95) -> Ville de Saint-Jérôme | D95: =IF(LEN('Détail des projets'!G95)=0,"",'Détail des projets'!G95) -> 15-Laurentides | E95: =IF(LEN('Détail des projets'!K95)=0,"",'Détail des projets'!K95) -> 8635.02 | F95: 0 | G95: À la fin du projet (suite au dernier versement) | H95: 0 | I95: QC-Québec | J95: Oui | L95: 0 | M95: 0 | N95: Non | O95: Oui
B96: =IF(LEN('Détail des projets'!B96)=0,"",'Détail des projets'!B96) -> Étude de faisabilité en efficacité énergétique | C96: =IF(LEN('Détail des projets'!C96)=0,"",'Détail des projets'!C96) -> La Corporation de développement culturel et sportif de Rosemère inc. | D96: =IF(LEN('Détail des projets'!G96)=0,"",'Détail des projets'!G96) -> 15-Laurentides | E96: =IF(LEN('Détail des projets'!K96)=0,"",'Détail des projets'!K96) -> 8000 | F96: 0 | G96: À la fin du projet (suite au dernier versement) | H96: 0 | I96: QC-Québec | J96: Oui | L96: 0 | M96: 0 | N96: Non | O96: Oui
B97: =IF(LEN('Détail des projets'!B97)=0,"",'Détail des projets'!B97) -> Étude d'efficacité énergétique | C97: =IF(LEN('Détail des projets'!C97)=0,"",'Détail des projets'!C97) -> Ville de Saint-Pamphile | D97: =IF(LEN('Détail des projets'!G97)=0,"",'Détail des projets'!G97) -> 12-Chaudière-Appalaches | E97: =IF(LEN('Détail des projets'!K97)=0,"",'Détail des projets'!K97) -> 8750 | F97: 0 | G97: À la fin du projet (suite au dernier versement) | H97: 0 | I97: QC-Québec | J97: Oui | L97: 0 | M97: 0 | N97: Non | O97: Oui
B98: =IF(LEN('Détail des projets'!B98)=0,"",'Détail des projets'!B98) -> Agrandissement Phase II - Réfrigération au CO2 avec récupération de chaleur | C98: =IF(LEN('Détail des projets'!C98)=0,"",'Détail des projets'!C98) -> Première société de placement Manuvie | D98: =IF(LEN('Détail des projets'!G98)=0,"",'Détail des projets'!G98) -> 17-Centre-du-Québec | E98: =IF(LEN('Détail des projets'!K98)=0,"",'Détail des projets'!K98) -> 214112.5182 | F98: 1115.932724 | G98: À la fin du projet (suite au dernier versement) | H98: 7.674746468 | I98: QC-Québec | J98: Oui | K98: 25 | L98: 0 | M98: 1115.932724 | N98: Non | O98: Oui | P98: 0 | R98: 0 | T98: 0 | V98: 0 | X98: 0 | Z98: 0 | AB98: 621.9952886 | AD98: 1109.834731 | AF98: 1109.834731
B99: =IF(LEN('Détail des projets'!B99)=0,"",'Détail des projets'!B99) -> Système de refrigération au CO2 | C99: =IF(LEN('Détail des projets'!C99)=0,"",'Détail des projets'!C99) -> La Fernandière inc. | D99: =IF(LEN('Détail des projets'!G99)=0,"",'Détail des projets'!G99) -> 04-Mauricie | E99: =IF(LEN('Détail des projets'!K99)=0,"",'Détail des projets'!K99) -> 304233.5 | F99: 1216.934002 | G99: À la fin du projet (suite au dernier versement) | H99: 9.999199646 | I99: QC-Québec | J99: Oui | K99: 25 | L99: 0 | M99: 1217.031406 | N99: Non | O99: Oui | P99: 0 | R99: 0 | T99: 0 | V99: 0 | X99: 39.90266904 | Z99: 1210.380961 | AB99: 1213.706183 | AD99: 1210.380961 | AF99: 1210.380961
B100: =IF(LEN('Détail des projets'!B100)=0,"",'Détail des projets'!B100) -> Système de réfrigération au CO2 | C100: =IF(LEN('Détail des projets'!C100)=0,"",'Détail des projets'!C100) -> Olymel S.E.C. | D100: =IF(LEN('Détail des projets'!G100)=0,"",'Détail des projets'!G100) -> 16-Montérégie | E100: =IF(LEN('Détail des projets'!K100)=0,"",'Détail des projets'!K100) -> 154631.36 | F100: 1040.335919 | G100: À la fin du projet (suite au dernier versement) | H100: 5.27081931 | I100: QC-Québec | J100: Oui | K100: 25 | L100: 0 | M100: 1173.490123 | N100: Non | O100: Oui | P100: 0 | R100: 0 | T100: 0 | V100: 0 | X100: 0 | Z100: 676.5202621 | AB100: 1170.283866 | AD100: 1167.077609 | AF100: 1167.077609
B101: =IF(LEN('Détail des projets'!B101)=0,"",'Détail des projets'!B101) -> Système de réfrigération au CO2. | C101: =IF(LEN('Détail des projets'!C101)=0,"",'Détail des projets'!C101) -> BLB Congélation inc. | D101: =IF(LEN('Détail des projets'!G101)=0,"",'Détail des projets'!G101) -> 17-Centre-du-Québec | E101: =IF(LEN('Détail des projets'!K101)=0,"",'Détail des projets'!K101) -> 260083.98 | F101: 28.65840404 | G101: À la fin du projet (suite au dernier versement) | H101: 8.333333341 | I101: QC-Québec | J101: Oui | K101: 30 | L101: 0 | M101: 1040.335919 | N101: Non | O101: Oui | P101: 0 | R101: 0 | T101: 0 | V101: 0 | X101: 321.1966089 | Z101: 1034.651023 | AB101: 1037.493471 | AD101: 1034.651023 | AF101: 1034.651023
B102: =IF(LEN('Détail des projets'!B102)=0,"",'Détail des projets'!B102) -> Implantation d'un système de réfrigération au CO2 | C102: =IF(LEN('Détail des projets'!C102)=0,"",'Détail des projets'!C102) -> Bell Canada | D102: =IF(LEN('Détail des projets'!G102)=0,"",'Détail des projets'!G102) -> 16-Montérégie | E102: =IF(LEN('Détail des projets'!K102)=0,"",'Détail des projets'!K102) -> 7164.6 | F102: 28.65840404 | G102: À la fin du projet (suite au dernier versement) | H102: 9.99999859 | I102: QC-Québec | J102: Oui | K102: 25 | L102: 0 | M102: 28.65840404 | N102: Non | O102: Oui | P102: 0 | R102: 0 | T102: 0 | V102: 0 | X102: 0 | Z102: 0 | AB102: 12.60656571 | AD102: 28.50180074 | AF102: 28.50180074
B103: =IF(LEN('Détail des projets'!B103)=0,"",'Détail des projets'!B103) -> Installation d'un système de refroidissement au CO2 (D00197 Bell 6250, Côte-des-Neiges) | C103: =IF(LEN('Détail des projets'!C103)=0,"",'Détail des projets'!C103) -> Bell Canada | D103: =IF(LEN('Détail des projets'!G103)=0,"",'Détail des projets'!G103) -> 06-Montréal | E103: =IF(LEN('Détail des projets'!K103)=0,"",'Détail des projets'!K103) -> 16731.36 | F103: 66.92545808 | G103: À la fin du projet (suite au dernier versement) | H103: 9.999997298 | I103: QC-Québec | J103: Oui | K103: 25 | L103: 0 | M103: 66.92545808 | N103: Non | O103: Oui | P103: 0 | R103: 0 | T103: 0 | V103: 0 | X103: 0 | Z103: 19.56563938 | AB103: 66.74260164 | AD103: 66.55974519 | AF103: 66.55974519
B104: =IF(LEN('Détail des projets'!B104)=0,"",'Détail des projets'!B104) -> Système de refrigération au CO2 | C104: =IF(LEN('Détail des projets'!C104)=0,"",'Détail des projets'!C104) -> 9257-3195 Québec inc. | D104: =IF(LEN('Détail des projets'!G104)=0,"",'Détail des projets'!G104) -> 16-Montérégie | E104: =IF(LEN('Détail des projets'!K104)=0,"",'Détail des projets'!K104) -> 183680.93 | F104: 734.7237136 | G104: À la fin du projet (suite au dernier versement) | H104: 12.50000011 | I104: QC-Québec | J104: Oui | K104: 20 | L104: 0 | M104: 734.7237136 | N104: Non | O104: Oui | P104: 0 | R104: 0 | T104: 0 | V104: 0 | X104: 0 | Z104: 365.354415 | AB104: 732.7162718 | AD104: 730.70883 | AF104: 730.70883
B105: =IF(LEN('Détail des projets'!B105)=0,"",'Détail des projets'!B105) -> Installation d'un système de réfrigération au CO2 au Avril Supermarché Santé | C105: =IF(LEN('Détail des projets'!C105)=0,"",'Détail des projets'!C105) -> Avril Supermarché Santé | D105: =IF(LEN('Détail des projets'!G105)=0,"",'Détail des projets'!G105) -> 13-Laval | E105: =IF(LEN('Détail des projets'!K105)=0,"",'Détail des projets'!K105) -> 76889.88 | F105: 307.559523 | G105: À la fin du projet (suite au dernier versement) | H105: 16.6666665 | I105: QC-Québec | J105: Oui | K105: 15 | L105: 0 | M105: 307.559523 | N105: Non | O105: Oui | P105: 0 | R105: 0 | T105: 0 | V105: 0 | X105: 0 | Z105: 221.0058868 | AB105: 306.7191965 | AD105: 305.8788699 | AF105: 305.8788699
B106: =IF(LEN('Détail des projets'!B106)=0,"",'Détail des projets'!B106) -> Réfrigération CO2 avec récupération de chaleur (089130) | C106: =IF(LEN('Détail des projets'!C106)=0,"",'Détail des projets'!C106) -> Sobeys Capital Incorporée | D106: =IF(LEN('Détail des projets'!G106)=0,"",'Détail des projets'!G106) -> 06-Montréal | E106: =IF(LEN('Détail des projets'!K106)=0,"",'Détail des projets'!K106) -> 138661.74 | F106: 554.6469799 | G106: À la fin du projet (suite au dernier versement) | H106: 17.69989269 | I106: QC-Québec | J106: Oui | K106: 15 | L106: 0 | M106: 522.269607 | N106: Non | O106: Oui | P106: 0 | R106: 0 | T106: 0 | V106: 0 | X106: 0 | Z106: 0 | AB106: 0 | AD106: 0 | AF106: 393.8426545
B107: =IF(LEN('Détail des projets'!B107)=0,"",'Détail des projets'!B107) -> Réfrigération CO2 avec récupération de chaleur (088077) | C107: =IF(LEN('Détail des projets'!C107)=0,"",'Détail des projets'!C107) -> Sobeys Capital Incorporée | D107: =IF(LEN('Détail des projets'!G107)=0,"",'Détail des projets'!G107) -> 06-Montréal | E107: =IF(LEN('Détail des projets'!K107)=0,"",'Détail des projets'!K107) -> 151698.57 | F107: 606.7942877 | G107: À la fin du projet (suite au dernier versement) | H107: 16.97753053 | I107: QC-Québec | J107: Oui | K107: 15 | L107: 0 | M107: 595.683688 | N107: Non | O107: Oui | P107: 0 | R107: 0 | T107: 0 | V107: 0 | X107: 0 | Z107: 0 | AB107: 462.224501 | AD107: 592.4285858 | AF107: 592.4285858
B108: =IF(LEN('Détail des projets'!B108)=0,"",'Détail des projets'!B108) -> Réfrigération au CO2 avec récupération de chaleur (08123) | C108: =IF(LEN('Détail des projets'!C108)=0,"",'Détail des projets'!C108) -> Sobeys Capital Incorporée | D108: =IF(LEN('Détail des projets'!G108)=0,"",'Détail des projets'!G108) -> 14-Lanaudière | E108: =IF(LEN('Détail des projets'!K108)=0,"",'Détail des projets'!K108) -> 171672.49 | F108: 0 | G108: À la fin du projet (suite au dernier versement) | H108: 0 | I108: QC-Québec | J108: Oui | K108: 15 | L108: 0 | M108: 671.3815362 | N108: Non | O108: Oui | P108: 0 | R108: 0 | T108: 0 | V108: 0 | X108: 0 | Z108: 0 | AB108: 0 | AD108: 616.3502628 | AF108: 667.7127847
B109: =IF(LEN('Détail des projets'!B109)=0,"",'Détail des projets'!B109) -> Climatisation CO2 au 4450, rue Dudemaine - Bell Canada (1033-001) | C109: =IF(LEN('Détail des projets'!C109)=0,"",'Détail des projets'!C109) -> Bell Canada | D109: =IF(LEN('Détail des projets'!G109)=0,"",'Détail des projets'!G109) -> 06-Montréal | E109: =IF(LEN('Détail des projets'!K109)=0,"",'Détail des projets'!K109) -> 7362.495 | F109: 28.04760404 | G109: À la fin du projet (suite au dernier versement) | H109: 17.49999748 | I109: QC-Québec | J109: Oui | K109: 15 | L109: 0 | M109: 28.04760404 | N109: Non | O109: Oui | P109: 0 | R109: 0 | T109: 0 | V109: 0 | X109: 0 | Z109: 0 | AB109: 22.98983938 | AD109: 27.89433844 | AF109: 27.89433844
B110: =IF(LEN('Détail des projets'!B110)=0,"",'Détail des projets'!B110) -> Réfrigération CO2 avec récupération de chaleur (000110) | C110: =IF(LEN('Détail des projets'!C110)=0,"",'Détail des projets'!C110) -> Sobeys Capital Incorporée | D110: =IF(LEN('Détail des projets'!G110)=0,"",'Détail des projets'!G110) -> 16-Montérégie | E110: =IF(LEN('Détail des projets'!K110)=0,"",'Détail des projets'!K110) -> 131897.03 | F110: 527.588132 | G110: À la fin du projet (suite au dernier versement) | H110: 17.27625144 | I110: QC-Québec | J110: Oui | K110: 15 | L110: 0 | M110: 508.97241 | N110: Non | O110: Oui | P110: 0 | R110: 0 | T110: 0 | V110: 0 | X110: 0 | Z110: 0 | AB110: 57.016035 | AD110: 506.19114 | AF110: 506.19114
B111: =IF(LEN('Détail des projets'!B111)=0,"",'Détail des projets'!B111) -> Réfrigération au CO2 pour une nouvelle ligne de tortillas. | C111: =IF(LEN('Détail des projets'!C111)=0,"",'Détail des projets'!C111) -> Boulangeries Weston Québec Limitée | D111: =IF(LEN('Détail des projets'!G111)=0,"",'Détail des projets'!G111) -> 16-Montérégie | E111: =IF(LEN('Détail des projets'!K111)=0,"",'Détail des projets'!K111) -> 182492.25 | F111: 1182.781584 | G111: À la fin du projet (suite au dernier versement) | H111: 5.143024783 | I111: QC-Québec | J111: Oui | K111: 30 | L111: 0 | M111: 1182.781584 | N111: Non | O111: Oui | P111: 0 | R111: 0 | T111: 0 | V111: 0 | X111: 0 | Z111: 0 | AB111: 814.3742054 | AD111: 1176.318297 | AF111: 1176.318297
B112: =IF(LEN('Détail des projets'!B112)=0,"",'Détail des projets'!B112) -> Phase 2 : Agrandissement / Congélateur | C112: =IF(LEN('Détail des projets'!C112)=0,"",'Détail des projets'!C112) -> Boulangeries Weston Québec Limitée | D112: =IF(LEN('Détail des projets'!G112)=0,"",'Détail des projets'!G112) -> 16-Montérégie | E112: =IF(LEN('Détail des projets'!K112)=0,"",'Détail des projets'!K112) -> 137420.03 | F112: 549.6801368 | G112: À la fin du projet (suite au dernier versement) | H112: 8.333333079 | I112: QC-Québec | J112: Oui | K112: 30 | L112: 0 | M112: 549.6801368 | N112: Non | O112: Oui | P112: 0 | R112: 0 | T112: 0 | V112: 0 | X112: 0 | Z112: 0 | AB112: 271.8363518 | AD112: 546.6764202 | AF112: 546.6764202
B113: =IF(LEN('Détail des projets'!B113)=0,"",'Détail des projets'!B113) -> Système de réfrigération au CO2 avec récupération de chaleur | C113: =IF(LEN('Détail des projets'!C113)=0,"",'Détail des projets'!C113) -> Avril Supermarché Santé | D113: =IF(LEN('Détail des projets'!G113)=0,"",'Détail des projets'!G113) -> 05-Estrie | E113: =IF(LEN('Détail des projets'!K113)=0,"",'Détail des projets'!K113) -> 152231.8926 | F113: 608.9255561 | G113: À la fin du projet (suite au dernier versement) | H113: 16.6667218 | I113: QC-Québec | J113: Oui | K113: 15 | L113: 0 | M113: 608.9255561 | N113: Non | O113: Oui | P113: 0 | R113: 0 | T113: 0 | V113: 0 | X113: 0 | Z113: 0 | AB113: 0 | AD113: 455.8623015 | AF113: 605.598094
B114: =IF(LEN('Détail des projets'!B114)=0,"",'Détail des projets'!B114) -> Réfrigération au CO2 avec récupération de chaleur | C114: =IF(LEN('Détail des projets'!C114)=0,"",'Détail des projets'!C114) -> Fleury Michon Amérique inc. | D114: =IF(LEN('Détail des projets'!G114)=0,"",'Détail des projets'!G114) -> 16-Montérégie | E114: =IF(LEN('Détail des projets'!K114)=0,"",'Détail des projets'!K114) -> 514500.2818 | F114: 1959.990992 | G114: À la fin du projet (suite au dernier versement) | H114: 8.750045009 | I114: QC-Québec | J114: Oui | K114: 30 | L114: 0 | M114: 1959.990992 | N114: Non | O114: Oui | P114: 0 | R114: 0 | T114: 0 | V114: 0 | X114: 0 | Z114: 0 | AB114: 0 | AD114: 899.6679962 | AF114: 1949.280658
B115: =IF(LEN('Détail des projets'!B115)=0,"",'Détail des projets'!B115) -> Système de réfrigération au CO2 | C115: =IF(LEN('Détail des projets'!C115)=0,"",'Détail des projets'!C115) -> Aliments Expresco inc. | D115: =IF(LEN('Détail des projets'!G115)=0,"",'Détail des projets'!G115) -> 06-Montréal | E115: =IF(LEN('Détail des projets'!K115)=0,"",'Détail des projets'!K115) -> 195000 | F115: 1150.377964 | G115: À la fin du projet (suite au dernier versement) | H115: 6.780380224 | I115: QC-Québec | J115: Oui | K115: 25 | L115: 0 | M115: 1150.377964 | N115: Non | O115: Oui | P115: 0 | R115: 0 | T115: 0 | V115: 0 | X115: 0 | Z115: 0 | AB115: 169.7278964 | AD115: 1144.091746 | AF115: 1144.091746
B116: =IF(LEN('Détail des projets'!B116)=0,"",'Détail des projets'!B116) -> Agrandissement de l'entrepôt réfrigéré - Réfrigération au CO2 | C116: =IF(LEN('Détail des projets'!C116)=0,"",'Détail des projets'!C116) -> Artic Blast Mtl inc. | D116: =IF(LEN('Détail des projets'!G116)=0,"",'Détail des projets'!G116) -> 14-Lanaudière | E116: =IF(LEN('Détail des projets'!K116)=0,"",'Détail des projets'!K116) -> 80170.65 | F116: 320.6826 | G116: À la fin du projet (suite au dernier versement) | H116: 7.788131445 | I116: QC-Québec | J116: Oui | K116: 25 | L116: 0 | M116: 411.7580735 | N116: Non | O116: Oui | P116: 0 | R116: 0 | T116: 0 | V116: 0 | X116: 0 | Z116: 0 | AB116: 227.2544559 | AD116: 409.5080294 | AF116: 409.5080294
B117: =IF(LEN('Détail des projets'!B117)=0,"",'Détail des projets'!B117) -> Agrandissement de l'entrepôt réfrigéré d'Artic Blast - Phase II | C117: =IF(LEN('Détail des projets'!C117)=0,"",'Détail des projets'!C117) -> Artic Blast Mtl inc. | D117: =IF(LEN('Détail des projets'!G117)=0,"",'Détail des projets'!G117) -> 14-Lanaudière | E117: =IF(LEN('Détail des projets'!K117)=0,"",'Détail des projets'!K117) -> 47427.954 | F117: 180.6779 | G117: À la fin du projet (suite au dernier versement) | H117: 10.50000116 | I117: QC-Québec | J117: Oui | K117: 25 | L117: 0 | M117: 180.6779 | N117: Non | O117: Oui | P117: 0 | R117: 0 | T117: 0 | V117: 0 | X117: 0 | Z117: 0 | AB117: 0 | AD117: 0 | AF117: 0
B118: =IF(LEN('Détail des projets'!B118)=0,"",'Détail des projets'!B118) -> Réfrigération CO2 avec récupération de chaleur | C118: =IF(LEN('Détail des projets'!C118)=0,"",'Détail des projets'!C118) -> Métro Richelieu inc. | D118: =IF(LEN('Détail des projets'!G118)=0,"",'Détail des projets'!G118) -> 06-Montréal | E118: =IF(LEN('Détail des projets'!K118)=0,"",'Détail des projets'!K118) -> 36941.38423 | F118: 147.7655862 | G118: À la fin du projet (suite au dernier versement) | H118: 16.66666111 | I118: QC-Québec | J118: Oui | K118: 15 | L118: 0 | M118: 147.7655862 | N118: Non | O118: Oui | P118: 0 | R118: 0 | T118: 0 | V118: 0 | X118: 0 | Z118: 0 | AB118: 20.18655549 | AD118: 146.958124 | AF118: 146.958124
B119: =IF(LEN('Détail des projets'!B119)=0,"",'Détail des projets'!B119) -> Réfrigération CO2 avec récupération de chaleur (089125) | C119: =IF(LEN('Détail des projets'!C119)=0,"",'Détail des projets'!C119) -> Sobeys Capital Incorporée | D119: =IF(LEN('Détail des projets'!G119)=0,"",'Détail des projets'!G119) -> 06-Montréal | E119: =IF(LEN('Détail des projets'!K119)=0,"",'Détail des projets'!K119) -> 113659.35 | F119: 432.9879966 | G119: À la fin du projet (suite au dernier versement) | H119: 14.87837253 | I119: QC-Québec | J119: Oui | K119: 15 | L119: 0 | M119: 509.2821803 | N119: Non | O119: Oui | P119: 0 | R119: 0 | T119: 0 | V119: 0 | X119: 0 | Z119: 0 | AB119: 140.5396181 | AD119: 506.4992175 | AF119: 506.4992175
B120: =IF(LEN('Détail des projets'!B120)=0,"",'Détail des projets'!B120) -> Études pour le remplacement du système au R-22 | C120: =IF(LEN('Détail des projets'!C120)=0,"",'Détail des projets'!C120) -> La Société d'exploitation des glaces de Boucherville inc. | D120: =IF(LEN('Détail des projets'!G120)=0,"",'Détail des projets'!G120) -> 16-Montérégie | E120: =IF(LEN('Détail des projets'!K120)=0,"",'Détail des projets'!K120) -> 9950 | F120: 0 | G120: À la fin du projet (suite au dernier versement) | H120: 0 | I120: QC-Québec | J120: Oui | L120: 0 | M120: 270.708 | N120: Non | O120: Oui | AD120: 224.1107213 | AF120: 269.2287213
B121: =IF(LEN('Détail des projets'!B121)=0,"",'Détail des projets'!B121) -> 075023 IGA - Ville Mont-Royal -Montréal | C121: =IF(LEN('Détail des projets'!C121)=0,"",'Détail des projets'!C121) -> Sobeys Capital Incorporée | D121: =IF(LEN('Détail des projets'!G121)=0,"",'Détail des projets'!G121) -> 06-Montréal | E121: =IF(LEN('Détail des projets'!K121)=0,"",'Détail des projets'!K121) -> 119937.5 | F121: 654.2076802 | G121: À la fin du projet (suite au dernier versement) | H121: 12.22216366 | I121: QC-Québec | J121: Oui | K121: 15 | L121: 0 | M121: 654.2076802 | N121: Non | O121: Oui | P121: 0 | R121: 0 | T121: 0 | V121: 0 | X121: 0 | Z121: 0 | AB121: 121.5467821 | AD121: 650.6327749 | AF121: 650.6327749
B122: =IF(LEN('Détail des projets'!B122)=0,"",'Détail des projets'!B122) -> Métro Beaumont - Ville Mont-Royal | C122: =IF(LEN('Détail des projets'!C122)=0,"",'Détail des projets'!C122) -> Métro Richelieu inc. | D122: =IF(LEN('Détail des projets'!G122)=0,"",'Détail des projets'!G122) -> 06-Montréal | E122: =IF(LEN('Détail des projets'!K122)=0,"",'Détail des projets'!K122) -> 58135.47 | F122: 232.541896 | G122: À la fin du projet (suite au dernier versement) | H122: 9.999999314 | I122: QC-Québec | J122: Oui | K122: 25 | L122: 0 | M122: 232.541896 | N122: Non | O122: Oui | P122: 0 | R122: 0 | T122: 0 | V122: 0 | X122: 0 | Z122: 0 | AB122: 26.04977523 | AD122: 231.2711752 | AF122: 231.2711752
B123: =IF(LEN('Détail des projets'!B123)=0,"",'Détail des projets'!B123) -> Réfrigération au CO2 avec récupération de chaleur | C123: =IF(LEN('Détail des projets'!C123)=0,"",'Détail des projets'!C123) -> 3246256 Canada inc. | D123: =IF(LEN('Détail des projets'!G123)=0,"",'Détail des projets'!G123) -> 06-Montréal | E123: =IF(LEN('Détail des projets'!K123)=0,"",'Détail des projets'!K123) -> 102939.3146 | F123: 411.7580735 | G123: À la fin du projet (suite au dernier versement) | H123: 8.333316839 | I123: QC-Québec | J123: Oui | K123: 30 | L123: 0 | M123: 411.7580735 | N123: Non | O123: Oui | P123: 0 | R123: 0 | T123: 0 | V123: 0 | X123: 0 | Z123: 0 | AB123: 0 | AD123: 0 | AF123: 400.5078529
B124: =IF(LEN('Détail des projets'!B124)=0,"",'Détail des projets'!B124) -> Réfrigération CO2 avec récupération de chaleur (000332) | C124: =IF(LEN('Détail des projets'!C124)=0,"",'Détail des projets'!C124) -> Sobeys Capital Incorporée | D124: =IF(LEN('Détail des projets'!G124)=0,"",'Détail des projets'!G124) -> 16-Montérégie | E124: =IF(LEN('Détail des projets'!K124)=0,"",'Détail des projets'!K124) -> 103451.55 | F124: 413.806216 | G124: À la fin du projet (suite au dernier versement) | H124: 19.89598255 | I124: QC-Québec | J124: Oui | K124: 15 | L124: 0 | M124: 346.6413375 | N124: Non | O124: Oui | P124: 0 | R124: 0 | T124: 0 | V124: 0 | X124: 0 | Z124: 0 | AB124: 45.46115901 | AD124: 344.7471225 | AF124: 344.7471225
B125: =IF(LEN('Détail des projets'!B125)=0,"",'Détail des projets'!B125) -> Système de réfrigération au CO2 | C125: =IF(LEN('Détail des projets'!C125)=0,"",'Détail des projets'!C125) -> Burnbrae Farms Limited | D125: =IF(LEN('Détail des projets'!G125)=0,"",'Détail des projets'!G125) -> 16-Montérégie | E125: =IF(LEN('Détail des projets'!K125)=0,"",'Détail des projets'!K125) -> 142297.33 | F125: 569.1893017 | G125: À la fin du projet (suite au dernier versement) | H125: 10.00000032 | I125: QC-Québec | J125: Oui | K125: 25 | L125: 0 | M125: 569.1893017 | N125: Non | O125: Oui | P125: 0 | R125: 0 | T125: 0 | V125: 0 | X125: 0 | Z125: 0 | AB125: 387.2353446 | AD125: 566.0789777 | AF125: 566.0789777
B126: =IF(LEN('Détail des projets'!B126)=0,"",'Détail des projets'!B126) -> Réfrigération CO2 avec récupération de chaleur - Site Farnham | C126: =IF(LEN('Détail des projets'!C126)=0,"",'Détail des projets'!C126) -> Cannara Biotech (OPS) Inc. | D126: =IF(LEN('Détail des projets'!G126)=0,"",'Détail des projets'!G126) -> 05-Estrie | E126: =IF(LEN('Détail des projets'!K126)=0,"",'Détail des projets'!K126) -> 346495.2781 | F126: 1319.986921 | G126: À la fin du projet (suite au dernier versement) | H126: 8.749967459 | I126: QC-Québec | J126: Oui | K126: 30 | L126: 0 | M126: 1319.986921 | N126: Non | O126: Oui | P126: 0 | R126: 0 | T126: 0 | V126: 0 | X126: 0 | Z126: 0 | AB126: 385.8978157 | AD126: 1312.773878 | AF126: 1312.773878
B127: =IF(LEN('Détail des projets'!B127)=0,"",'Détail des projets'!B127) -> Système de réfrigération au CO2 - Adonis Galerie des Sources | C127: =IF(LEN('Détail des projets'!C127)=0,"",'Détail des projets'!C127) -> Métro Richelieu inc. | D127: =IF(LEN('Détail des projets'!G127)=0,"",'Détail des projets'!G127) -> 06-Montréal | E127: =IF(LEN('Détail des projets'!K127)=0,"",'Détail des projets'!K127) -> 135488.92 | F127: 541.9556904 | G127: À la fin du projet (suite au dernier versement) | H127: 16.66666635 | I127: QC-Québec | J127: Oui | K127: 15 | L127: 0 | M127: 541.9556904 | N127: Non | O127: Oui | P127: 0 | R127: 0 | T127: 0 | V127: 0 | X127: 0 | Z127: 0 | AB127: 519.7443916 | AD127: 538.9941839 | AF127: 538.9941839
B128: =IF(LEN('Détail des projets'!B128)=0,"",'Détail des projets'!B128) -> Études pour le remplacement du système au R-22 | C128: =IF(LEN('Détail des projets'!C128)=0,"",'Détail des projets'!C128) -> Les Loisirs Saint-Fabien inc. | D128: =IF(LEN('Détail des projets'!G128)=0,"",'Détail des projets'!G128) -> 01-Bas-Saint-Laurent | E128: =IF(LEN('Détail des projets'!K128)=0,"",'Détail des projets'!K128) -> 5400 | F128: 0 | G128: À la fin du projet (suite au dernier versement) | H128: 0 | I128: QC-Québec | J128: Oui | L128: 0 | M128: 114.03 | N128: Non | O128: Oui | AD128: 55.86051044 | AF128: 113.4068852
B129: =IF(LEN('Détail des projets'!B129)=0,"",'Détail des projets'!B129) -> Nouvelle patinoire extérieure de Joliette - Système de réfrigération au CO2 | C129: =IF(LEN('Détail des projets'!C129)=0,"",'Détail des projets'!C129) -> Ville de Joliette | D129: =IF(LEN('Détail des projets'!G129)=0,"",'Détail des projets'!G129) -> 14-Lanaudière | E129: =IF(LEN('Détail des projets'!K129)=0,"",'Détail des projets'!K129) -> 39149.05 | F129: 156.5961852 | G129: À la fin du projet (suite au dernier versement) | H129: 10.00000095 | I129: QC-Québec | J129: Oui | K129: 25 | L129: 0 | M129: 156.5961852 | N129: Non | O129: Oui | P129: 0 | R129: 0 | T129: 0 | V129: 0 | X129: 0 | Z129: 0 | AB129: 64.60662286 | AD129: 155.7404683 | AF129: 155.7404683
B130: =IF(LEN('Détail des projets'!B130)=0,"",'Détail des projets'!B130) -> Réfrigération au CO2 avec récupération de chaleur | C130: =IF(LEN('Détail des projets'!C130)=0,"",'Détail des projets'!C130) -> 11077422 Canada inc. | D130: =IF(LEN('Détail des projets'!G130)=0,"",'Détail des projets'!G130) -> 02-Saguenay--Lac-Saint-Jean | E130: =IF(LEN('Détail des projets'!K130)=0,"",'Détail des projets'!K130) -> 272357.2399 | F130: 1089.429598 | G130: À la fin du projet (suite au dernier versement) | H130: 8.337698462 | I130: QC-Québec | J130: Oui | K130: 30 | L130: 0 | M130: 1088.858598 | N130: Non | O130: Oui | P130: 0 | R130: 0 | T130: 0 | V130: 0 | X130: 0 | Z130: 0 | AB130: 636.6550275 | AD130: 1082.908551 | AF130: 1082.908551
B131: =IF(LEN('Détail des projets'!B131)=0,"",'Détail des projets'!B131) -> Réfrigération au CO2 | C131: =IF(LEN('Détail des projets'!C131)=0,"",'Détail des projets'!C131) -> Verger des Bois-Francs inc. | D131: =IF(LEN('Détail des projets'!G131)=0,"",'Détail des projets'!G131) -> 16-Montérégie | E131: =IF(LEN('Détail des projets'!K131)=0,"",'Détail des projets'!K131) -> 39289 | F131: 157.1560175 | G131: À la fin du projet (suite au dernier versement) | H131: 8.333332404 | I131: QC-Québec | J131: Oui | K131: 30 | L131: 0 | M131: 157.1560175 | N131: Non | O131: Oui | P131: 0 | R131: 0 | T131: 0 | V131: 0 | X131: 0 | Z131: 0 | AB131: 98.32985796 | AD131: 156.2972415 | AF131: 156.2972415
B132: =IF(LEN('Détail des projets'!B132)=0,"",'Détail des projets'!B132) -> D00242 Telus Gaspé | C132: =IF(LEN('Détail des projets'!C132)=0,"",'Détail des projets'!C132) -> TELUS Communications inc. | D132: =IF(LEN('Détail des projets'!G132)=0,"",'Détail des projets'!G132) -> 11-Gaspésie--Îles-de-la-Madeleine | E132: =IF(LEN('Détail des projets'!K132)=0,"",'Détail des projets'!K132) -> 6613.93 | F132: 26.45570455 | G132: À la fin du projet (suite au dernier versement) | H132: 16.6666764 | I132: QC-Québec | J132: Oui | K132: 15 | L132: 0 | M132: 26.45570455 | N132: Non | O132: Oui | P132: 0 | R132: 0 | T132: 0 | V132: 0 | X132: 0 | Z132: 0 | AB132: 22.69697057 | AD132: 26.31113785 | AF132: 26.31113785
B133: =IF(LEN('Détail des projets'!B133)=0,"",'Détail des projets'!B133) -> 008107 - IGA Joliette rue Gauthier Nord | C133: =IF(LEN('Détail des projets'!C133)=0,"",'Détail des projets'!C133) -> Supermarché Crevier (Joliette) inc. | D133: =IF(LEN('Détail des projets'!G133)=0,"",'Détail des projets'!G133) -> 14-Lanaudière | E133: =IF(LEN('Détail des projets'!K133)=0,"",'Détail des projets'!K133) -> 165842.2727 | F133: 631.7820368 | G133: À la fin du projet (suite au dernier versement) | H133: 17.49994597 | I133: QC-Québec | J133: Oui | K133: 15 | L133: 0 | M133: 631.7820368 | N133: Non | O133: Oui | P133: 0 | R133: 0 | T133: 0 | V133: 0 | X133: 0 | Z133: 0 | AB133: 252.0223426 | AD133: 628.329676 | AF133: 628.329676
B134: =IF(LEN('Détail des projets'!B134)=0,"",'Détail des projets'!B134) -> Construction du centre de production de St-Roch-de-l’Achigan - Système de réfrigération au CO2 | C134: =IF(LEN('Détail des projets'!C134)=0,"",'Détail des projets'!C134) -> Harmonia World inc. | D134: =IF(LEN('Détail des projets'!G134)=0,"",'Détail des projets'!G134) -> 14-Lanaudière | E134: =IF(LEN('Détail des projets'!K134)=0,"",'Détail des projets'!K134) -> 79510.116 | F134: 302.8956783 | G134: À la fin du projet (suite au dernier versement) | H134: 10.50000006 | I134: QC-Québec | J134: Oui | K134: 25 | L134: 0 | M134: 302.8956783 | N134: Non | O134: Oui | P134: 0 | R134: 0 | T134: 0 | V134: 0 | X134: 0 | Z134: 0 | AB134: 0 | AD134: 244.9648108 | AF134: 301.2405106
B135: =IF(LEN('Détail des projets'!B135)=0,"",'Détail des projets'!B135) -> Réfrigération au CO2 avec récupération de chaleur - Marché Pie-IX | C135: =IF(LEN('Détail des projets'!C135)=0,"",'Détail des projets'!C135) -> Le Marché Pie-IX S.E.C. | D135: =IF(LEN('Détail des projets'!G135)=0,"",'Détail des projets'!G135) -> 06-Montréal | E135: =IF(LEN('Détail des projets'!K135)=0,"",'Détail des projets'!K135) -> 614971.9282 | F135: 2342.735766 | G135: À la fin du projet (suite au dernier versement) | H135: 8.750053921 | I135: QC-Québec | J135: Oui | K135: 30 | L135: 0 | M135: 2342.735766 | N135: Non | O135: Oui | P135: 0 | R135: 0 | T135: 0 | V135: 0 | X135: 0 | Z135: 0 | AB135: 0 | AD135: 947.3357741 | AF135: 2329.933931
B136: =IF(LEN('Détail des projets'!B136)=0,"",'Détail des projets'!B136) -> Remplacement du système de réfrigération | C136: =IF(LEN('Détail des projets'!C136)=0,"",'Détail des projets'!C136) -> Bonanza Lalumière | D136: =IF(LEN('Détail des projets'!G136)=0,"",'Détail des projets'!G136) -> 06-Montréal | E136: =IF(LEN('Détail des projets'!K136)=0,"",'Détail des projets'!K136) -> 74347.30651 | F136: 283.2317848 | G136: À la fin du projet (suite au dernier versement) | H136: 12.41945728 | I136: QC-Québec | J136: Oui | K136: 25 | L136: 0 | M136: 239.4542848 | N136: Non | O136: Oui | P136: 0 | R136: 0 | T136: 0 | V136: 0 | X136: 0 | Z136: 0 | AB136: 75.89261484 | AD136: 238.1457914 | AF136: 238.1457914
B137: =IF(LEN('Détail des projets'!B137)=0,"",'Détail des projets'!B137) -> Construction Métro plus Fournier | C137: =IF(LEN('Détail des projets'!C137)=0,"",'Détail des projets'!C137) -> Supermarché R. Fournier inc. | D137: =IF(LEN('Détail des projets'!G137)=0,"",'Détail des projets'!G137) -> 04-Mauricie | E137: =IF(LEN('Détail des projets'!K137)=0,"",'Détail des projets'!K137) -> 172500.2461 | F137: 727.1973 | G137: À la fin du projet (suite au dernier versement) | H137: 11.86062202 | I137: QC-Québec | J137: Oui | K137: 20 | L137: 0 | M137: 727.1973 | N137: Non | O137: Oui | P137: 0 | R137: 0 | T137: 0 | V137: 0 | X137: 0 | Z137: 0 | AB137: 361.6117721 | AD137: 723.2235443 | AF137: 723.2235443
B138: =IF(LEN('Détail des projets'!B138)=0,"",'Détail des projets'!B138) -> Réfrigération au CO2 avec récupération chaleur (Metro Lachine) | C138: =IF(LEN('Détail des projets'!C138)=0,"",'Détail des projets'!C138) -> Métro Richelieu inc. | D138: =IF(LEN('Détail des projets'!G138)=0,"",'Détail des projets'!G138) -> 06-Montréal | E138: =IF(LEN('Détail des projets'!K138)=0,"",'Détail des projets'!K138) -> 74215.68 | F138: 208.0089201 | G138: À la fin du projet (suite au dernier versement) | H138: 17.49999876 | I138: QC-Québec | J138: Oui | K138: 15 | L138: 0 | M138: 282.72642 | N138: Non | O138: Oui | P138: 0 | R138: 0 | T138: 0 | V138: 0 | X138: 0 | Z138: 0 | AB138: 0 | AD138: 133.6384444 | AF138: 281.1814669
B139: =IF(LEN('Détail des projets'!B139)=0,"",'Détail des projets'!B139) -> Réfrigération au CO2 avec récupération de chaleur (001758) | C139: =IF(LEN('Détail des projets'!C139)=0,"",'Détail des projets'!C139) -> Sobeys Capital Incorporée | D139: =IF(LEN('Détail des projets'!G139)=0,"",'Détail des projets'!G139) -> 06-Montréal | E139: =IF(LEN('Détail des projets'!K139)=0,"",'Détail des projets'!K139) -> 79126.14 | F139: 316.5045746 | G139: À la fin du projet (suite au dernier versement) | H139: 16.81695899 | I139: QC-Québec | J139: Oui | K139: 15 | L139: 0 | M139: 313.6759746 | N139: Non | O139: Oui | P139: 0 | R139: 0 | T139: 0 | V139: 0 | X139: 0 | Z139: 0 | AB139: 190.2624764 | AD139: 311.9618982 | AF139: 311.9618982
B140: =IF(LEN('Détail des projets'!B140)=0,"",'Détail des projets'!B140) -> Réfrigération CO2 avec récupération de chaleur (008299) | C140: =IF(LEN('Détail des projets'!C140)=0,"",'Détail des projets'!C140) -> Sobeys Capital Incorporée | D140: =IF(LEN('Détail des projets'!G140)=0,"",'Détail des projets'!G140) -> 12-Chaudière-Appalaches | E140: =IF(LEN('Détail des projets'!K140)=0,"",'Détail des projets'!K140) -> 58761.8535 | F140: 223.8546603 | G140: À la fin du projet (suite au dernier versement) | H140: 17.4905003 | I140: QC-Québec | J140: Oui | K140: 15 | L140: 0 | M140: 223.9762633 | N140: Non | O140: Oui | P140: 0 | R140: 0 | T140: 0 | V140: 0 | X140: 0 | Z140: 0 | AB140: 101.5848626 | AD140: 222.7523493 | AF140: 222.7523493
B141: =IF(LEN('Détail des projets'!B141)=0,"",'Détail des projets'!B141) -> Réfrigération au CO2 avec récupération de chaleur (008274) | C141: =IF(LEN('Détail des projets'!C141)=0,"",'Détail des projets'!C141) -> Sobeys Capital Incorporée | D141: =IF(LEN('Détail des projets'!G141)=0,"",'Détail des projets'!G141) -> 12-Chaudière-Appalaches | E141: =IF(LEN('Détail des projets'!K141)=0,"",'Détail des projets'!K141) -> 80201.42 | F141: 320.8056796 | G141: À la fin du projet (suite au dernier versement) | H141: 23.62097317 | I141: QC-Québec | J141: Oui | K141: 15 | L141: 0 | M141: 226.356522 | N141: Non | O141: Oui | P141: 0 | R141: 0 | T141: 0 | V141: 0 | X141: 0 | Z141: 0 | AB141: 137.2982183 | AD141: 225.1196011 | AF141: 225.1196011
B142: =IF(LEN('Détail des projets'!B142)=0,"",'Détail des projets'!B142) -> Immeubles Marquis-Thibeault Prévost inc. | C142: =IF(LEN('Détail des projets'!C142)=0,"",'Détail des projets'!C142) -> Marché Élite Prévost inc. | D142: =IF(LEN('Détail des projets'!G142)=0,"",'Détail des projets'!G142) -> 15-Laurentides | E142: =IF(LEN('Détail des projets'!K142)=0,"",'Détail des projets'!K142) -> 67809.7875 | F142: 258.323 | G142: À la fin du projet (suite au dernier versement) | H142: 9.36801127 | I142: QC-Québec | J142: Oui | K142: 20 | L142: 0 | M142: 361.922 | N142: Non | O142: Oui | P142: 0 | R142: 0 | T142: 0 | V142: 0 | X142: 0 | Z142: 0 | AB142: 0 | AD142: 12.85515301 | AF142: 359.9442842
B143: =IF(LEN('Détail des projets'!B143)=0,"",'Détail des projets'!B143) -> Nouvelle patinoire extérieure de Val d'Or - Système de réfrigération au CO2 | C143: =IF(LEN('Détail des projets'!C143)=0,"",'Détail des projets'!C143) -> Ville de Val d'Or | D143: =IF(LEN('Détail des projets'!G143)=0,"",'Détail des projets'!G143) -> 08-Abitibi-Témiscamingue | E143: =IF(LEN('Détail des projets'!K143)=0,"",'Détail des projets'!K143) -> 41106.5025 | F143: 156.5961852 | G143: À la fin du projet (suite au dernier versement) | H143: 10.50000099 | I143: QC-Québec | J143: Oui | K143: 25 | L143: 0 | M143: 156.5961852 | N143: Non | O143: Oui | P143: 0 | R143: 0 | T143: 0 | V143: 0 | X143: 0 | Z143: 0 | AB143: 0 | AD143: 44.9251351 | AF143: 155.7404683
B144: =IF(LEN('Détail des projets'!B144)=0,"",'Détail des projets'!B144) -> Réfrigération au CO2 - Usine Vachon de Ste-Marie-de-Beauce | C144: =IF(LEN('Détail des projets'!C144)=0,"",'Détail des projets'!C144) -> Boulangerie Vachon Inc. | D144: =IF(LEN('Détail des projets'!G144)=0,"",'Détail des projets'!G144) -> 12-Chaudière-Appalaches | E144: =IF(LEN('Détail des projets'!K144)=0,"",'Détail des projets'!K144) -> 11877.138 | F144: 45.24623904 | G144: À la fin du projet (suite au dernier versement) | H144: 13.12500028 | I144: QC-Québec | J144: Oui | K144: 20 | L144: 0 | M144: 45.24623904 | N144: Non | O144: Oui | P144: 0 | R144: 0 | T144: 0 | V144: 0 | X144: 0 | Z144: 0 | AB144: 0 | AD144: 18.17266978 | AF144: 44.99899183
B145: =IF(LEN('Détail des projets'!B145)=0,"",'Détail des projets'!B145) -> Nouveau système de réfrigération au CO2 et récupération de chaleur | C145: =IF(LEN('Détail des projets'!C145)=0,"",'Détail des projets'!C145) -> 2737-1137 Québec inc. | D145: =IF(LEN('Détail des projets'!G145)=0,"",'Détail des projets'!G145) -> 02-Saguenay--Lac-Saint-Jean | E145: =IF(LEN('Détail des projets'!K145)=0,"",'Détail des projets'!K145) -> 117249.1476 | F145: 446.6609299 | G145: À la fin du projet (suite au dernier versement) | H145: 10.50005852 | I145: QC-Québec | J145: Oui | K145: 25 | L145: 0 | M145: 446.6609299 | N145: Non | O145: Oui | P145: 0 | R145: 0 | T145: 0 | V145: 0 | X145: 0 | Z145: 0 | AB145: 0 | AD145: 391.7436025 | AF145: 444.2201598
B146: =IF(LEN('Détail des projets'!B146)=0,"",'Détail des projets'!B146) -> Aliments Roma - Entrepôt frigorifique | C146: =IF(LEN('Détail des projets'!C146)=0,"",'Détail des projets'!C146) -> Les Aliments Roma ltée | D146: =IF(LEN('Détail des projets'!G146)=0,"",'Détail des projets'!G146) -> 06-Montréal | E146: =IF(LEN('Détail des projets'!K146)=0,"",'Détail des projets'!K146) -> 50653.98069 | F146: 192.9681818 | G146: À la fin du projet (suite au dernier versement) | H146: 13.64250829 | I146: QC-Québec | J146: Oui | K146: 19.24126625 | L146: 0 | M146: 192.9681818 | N146: Non | O146: Oui | P146: 0 | R146: 0 | T146: 0 | V146: 0 | X146: 0 | Z146: 0 | AB146: 0 | AD146: 92.26620715 | AF146: 191.9137109
B147: =IF(LEN('Détail des projets'!B147)=0,"",'Détail des projets'!B147) -> D00267 Telus Saint-Georges | C147: =IF(LEN('Détail des projets'!C147)=0,"",'Détail des projets'!C147) -> TELUS Communications inc. | D147: =IF(LEN('Détail des projets'!G147)=0,"",'Détail des projets'!G147) -> 12-Chaudière-Appalaches | E147: =IF(LEN('Détail des projets'!K147)=0,"",'Détail des projets'!K147) -> 7122.78 | F147: 27.13438364 | G147: À la fin du projet (suite au dernier versement) | H147: 17.50001055 | I147: QC-Québec | J147: Oui | K147: 15 | L147: 0 | M147: 27.13438364 | N147: Non | O147: Oui | P147: 0 | R147: 0 | T147: 0 | V147: 0 | X147: 0 | Z147: 0 | AB147: 0 | AD147: 13.0482282 | AF147: 26.98610832
B148: =IF(LEN('Détail des projets'!B148)=0,"",'Détail des projets'!B148) -> Réfrigération au CO2 avec récupération de chaleur (Brossard) | C148: =IF(LEN('Détail des projets'!C148)=0,"",'Détail des projets'!C148) -> Mayrand limitée | D148: =IF(LEN('Détail des projets'!G148)=0,"",'Détail des projets'!G148) -> 16-Montérégie | E148: =IF(LEN('Détail des projets'!K148)=0,"",'Détail des projets'!K148) -> 78323.133 | F148: 298.3738243 | G148: À la fin du projet (suite au dernier versement) | H148: 17.47822737 | I148: QC-Québec | J148: Oui | K148: 15 | L148: 0 | M148: 298.7455243 | N148: Non | O148: Oui | P148: 0 | R148: 0 | T148: 0 | V148: 0 | X148: 0 | Z148: 0 | AB148: 23.67109346 | AD148: 297.1130351 | AF148: 297.1130351
B149: =IF(LEN('Détail des projets'!B149)=0,"",'Détail des projets'!B149) -> Entrepôts Frigorifiques Riendeau - Système de réfrigération au CO2 | C149: =IF(LEN('Détail des projets'!C149)=0,"",'Détail des projets'!C149) -> Les Entrepôts Frigorifiques Riendeau inc. | D149: =IF(LEN('Détail des projets'!G149)=0,"",'Détail des projets'!G149) -> 14-Lanaudière | E149: =IF(LEN('Détail des projets'!K149)=0,"",'Détail des projets'!K149) -> 52002.23 | F149: 208.0089201 | G149: À la fin du projet (suite au dernier versement) | H149: 9.999999996 | I149: QC-Québec | J149: Oui | K149: 25 | L149: 0 | M149: 208.0089201 | N149: Non | O149: Oui | P149: 0 | R149: 0 | T149: 0 | V149: 0 | X149: 0 | Z149: 0 | AB149: 0 | AD149: 5.114973445 | AF149: 206.8722593
B150: =IF(LEN('Détail des projets'!B150)=0,"",'Détail des projets'!B150) -> Entrepôt du 1124 | C150: =IF(LEN('Détail des projets'!C150)=0,"",'Détail des projets'!C150) -> Verger des Bois-Francs inc. | D150: =IF(LEN('Détail des projets'!G150)=0,"",'Détail des projets'!G150) -> 16-Montérégie | E150: =IF(LEN('Détail des projets'!K150)=0,"",'Détail des projets'!K150) -> 91913.073 | F150: 350.1450408 | G150: À la fin du projet (suite au dernier versement) | H150: 10.49962378 | I150: QC-Québec | J150: Oui | K150: 25 | L150: 0 | M150: 350.1575863 | N150: Non | O150: Oui | P150: 0 | R150: 0 | T150: 0 | V150: 0 | X150: 0 | Z150: 0 | AB150: 0 | AD150: 0 | AF150: 193.2563728
B151: =IF(LEN('Détail des projets'!B151)=0,"",'Détail des projets'!B151) -> Les Aliments Kamloop - Système de réfrigération au CO2 | C151: =IF(LEN('Détail des projets'!C151)=0,"",'Détail des projets'!C151) -> Les aliments Kamloop | D151: =IF(LEN('Détail des projets'!G151)=0,"",'Détail des projets'!G151) -> 15-Laurentides | E151: =IF(LEN('Détail des projets'!K151)=0,"",'Détail des projets'!K151) -> 68811.96 | F151: 262.1408145 | G151: À la fin du projet (suite au dernier versement) | H151: 10.49999942 | I151: QC-Québec | J151: Oui | K151: 25 | L151: 0 | M151: 262.1408145 | N151: Non | O151: Oui | P151: 0 | R151: 0 | T151: 0 | V151: 0 | X151: 0 | Z151: 0 | AB151: 0 | AD151: 71.62317336 | AF151: 260.708351
B152: =IF(LEN('Détail des projets'!B152)=0,"",'Détail des projets'!B152) -> Projet d'efficacité énergétique à l'aréna Westwood | C152: =IF(LEN('Détail des projets'!C152)=0,"",'Détail des projets'!C152) -> Ville de Dorval | D152: =IF(LEN('Détail des projets'!G152)=0,"",'Détail des projets'!G152) -> 06-Montréal | E152: =IF(LEN('Détail des projets'!K152)=0,"",'Détail des projets'!K152) -> 51058.52024 | F152: 0 | G152: À la fin du projet (suite au dernier versement) | H152: 0 | I152: QC-Québec | J152: Oui | K152: 33.19858551 | L152: 0 | M152: 0 | N152: Non | O152: Oui | P152: 0 | R152: 0 | T152: 0 | V152: 0 | X152: 0 | Z152: 0 | AB152: 0 | AD152: 0 | AF152: 0
B153: =IF(LEN('Détail des projets'!B153)=0,"",'Détail des projets'!B153) -> Réfrigération au CO2 avec mesures d'efficacité énergétique. | C153: =IF(LEN('Détail des projets'!C153)=0,"",'Détail des projets'!C153) -> Ville de Dorval | D153: =IF(LEN('Détail des projets'!G153)=0,"",'Détail des projets'!G153) -> 06-Montréal | E153: =IF(LEN('Détail des projets'!K153)=0,"",'Détail des projets'!K153) -> 44011.41642 | F153: 0 | G153: À la fin du projet (suite au dernier versement) | H153: 0 | I153: QC-Québec | J153: Oui | K153: 40.40765762 | L153: 0 | M153: 0 | N153: Non | O153: Oui | P153: 0 | R153: 0 | T153: 0 | V153: 0 | X153: 0 | Z153: 0 | AB153: 0 | AD153: 0 | AF153: 0
B154: =IF(LEN('Détail des projets'!B154)=0,"",'Détail des projets'!B154) -> Conversion électrique et efficacité énergétique | C154: =IF(LEN('Détail des projets'!C154)=0,"",'Détail des projets'!C154) -> Société Bon Pasteur S.E.N.C. | D154: =IF(LEN('Détail des projets'!G154)=0,"",'Détail des projets'!G154) -> 03-Capitale-Nationale | E154: =IF(LEN('Détail des projets'!K154)=0,"",'Détail des projets'!K154) -> 63337.30532 | F154: 241.2954545 | G154: À la fin du projet (suite au dernier versement) | H154: 14.66244445 | I154: QC-Québec | J154: Oui | K154: 17.90210342 | L154: 0 | M154: 241.2954545 | N154: Non | O154: Oui | P154: 0 | R154: 0 | T154: 0 | V154: 0 | X154: 0 | Z154: 0 | AB154: 0 | AD154: 0 | AF154: 0
B155: =IF(LEN('Détail des projets'!B155)=0,"",'Détail des projets'!B155) -> Marché Pasquier Delson - Système de réfrigération au CO2 | C155: =IF(LEN('Détail des projets'!C155)=0,"",'Détail des projets'!C155) -> Groupe alimentaire PMA Delson inc. | D155: =IF(LEN('Détail des projets'!G155)=0,"",'Détail des projets'!G155) -> 16-Montérégie | E155: =IF(LEN('Détail des projets'!K155)=0,"",'Détail des projets'!K155) -> 240829.9685 | F155: 917.4412384 | G155: À la fin du projet (suite au dernier versement) | H155: 10.58540696 | I155: QC-Québec | J155: Oui | K155: 24.79846001 | L155: 0 | M155: 917.4412384 | N155: Non | O155: Oui | P155: 0 | R155: 0 | T155: 0 | V155: 0 | X155: 0 | Z155: 0 | AB155: 0 | AD155: 0 | AF155: 0
B156: =IF(LEN('Détail des projets'!B156)=0,"",'Détail des projets'!B156) -> Réduction des émissions de gaz à effet de serre générés par les effets anodiques | C156: =IF(LEN('Détail des projets'!C156)=0,"",'Détail des projets'!C156) -> Aluminerie de Bécancour inc. | D156: =IF(LEN('Détail des projets'!G156)=0,"",'Détail des projets'!G156) -> 17-Centre-du-Québec | E156: =IF(LEN('Détail des projets'!K156)=0,"",'Détail des projets'!K156) -> 1162464.75 | F156: 14307.10407 | G156: À la fin du projet (suite au dernier versement) | H156: 4.062543838 | I156: QC-Québec | J156: Oui | K156: 20 | L156: 0 | M156: 14307.10407 | N156: Non | O156: Oui | P156: 0 | R156: 0 | T156: 0 | V156: 0 | X156: 0 | Z156: 0 | AB156: 0 | AD156: 0 | AF156: 0
B157: =IF(LEN('Détail des projets'!B157)=0,"",'Détail des projets'!B157) -> Efficacité énergétique pour l'usine de Produits Vegkiss | C157: =IF(LEN('Détail des projets'!C157)=0,"",'Détail des projets'!C157) -> Produits Vegkiss inc. | D157: =IF(LEN('Détail des projets'!G157)=0,"",'Détail des projets'!G157) -> 14-Lanaudière | E157: =IF(LEN('Détail des projets'!K157)=0,"",'Détail des projets'!K157) -> 179733.8091 | F157: 684.6816672 | G157: À la fin du projet (suite au dernier versement) | H157: 12.59182067 | I157: QC-Québec | J157: Oui | K157: 20.84743118 | L157: 0 | M157: 684.6816672 | N157: Non | O157: Oui | P157: 0 | R157: 0 | T157: 0 | V157: 0 | X157: 0 | Z157: 0 | AB157: 0 | AD157: 0 | AF157: 0
B158: =IF(LEN('Détail des projets'!B158)=0,"",'Détail des projets'!B158) -> Réfrigération au CO2 avec récupération de chaleur (000408) | C158: =IF(LEN('Détail des projets'!C158)=0,"",'Détail des projets'!C158) -> Sobeys Capital Incorporée | D158: =IF(LEN('Détail des projets'!G158)=0,"",'Détail des projets'!G158) -> 12-Chaudière-Appalaches | E158: =IF(LEN('Détail des projets'!K158)=0,"",'Détail des projets'!K158) -> 118131.8565 | F158: 450.0261234 | G158: À la fin du projet (suite au dernier versement) | H158: 17.49999987 | I158: QC-Québec | J158: Oui | K158: 15 | L158: 0 | M158: 450.0261234 | N158: Non | O158: Oui | P158: 0 | R158: 0 | T158: 0 | V158: 0 | X158: 0 | Z158: 0 | AB158: 0 | AD158: 0 | AF158: 0
B159: =IF(LEN('Détail des projets'!B159)=0,"",'Détail des projets'!B159) -> Modernisation des brûleurs four C et D | C159: =IF(LEN('Détail des projets'!C159)=0,"",'Détail des projets'!C159) -> ArcelorMittal Produits longs Canada s.e.n.c. | D159: =IF(LEN('Détail des projets'!G159)=0,"",'Détail des projets'!G159) -> 16-Montérégie | E159: =IF(LEN('Détail des projets'!K159)=0,"",'Détail des projets'!K159) -> 1147637.938 | F159: 4372 | G159: À la fin du projet (suite au dernier versement) | H159: 26.24972412 | I159: QC-Québec | J159: Oui | K159: 10 | L159: 0 | M159: 4372 | N159: Non | O159: Oui | P159: 0 | R159: 0 | T159: 0 | V159: 0 | X159: 0 | Z159: 0 | AB159: 0 | AD159: 0 | AF159: 0
B160: =IF(LEN('Détail des projets'!B160)=0,"",'Détail des projets'!B160) -> Réfrigération CO2 avec récupération de chaleur (008608) | C160: =IF(LEN('Détail des projets'!C160)=0,"",'Détail des projets'!C160) -> Sobeys Capital Incorporée | D160: =IF(LEN('Détail des projets'!G160)=0,"",'Détail des projets'!G160) -> 06-Montréal | E160: =IF(LEN('Détail des projets'!K160)=0,"",'Détail des projets'!K160) -> 58592.83 | F160: 176.1229243 | G160: À la fin du projet (suite au dernier versement) | H160: 24.34427568 | I160: QC-Québec | J160: Oui | K160: 13.66569519 | L160: 0 | M160: 176.1229243 | N160: Non | O160: Oui | P160: 0 | R160: 0 | T160: 0 | V160: 0 | X160: 0 | Z160: 0 | AB160: 0 | AD160: 0 | AF160: 0
B161: =IF(LEN('Détail des projets'!B161)=0,"",'Détail des projets'!B161) -> Réfrigération au CO2 avec récupération de chaleur (075022) | C161: =IF(LEN('Détail des projets'!C161)=0,"",'Détail des projets'!C161) -> Sobeys Capital Incorporée | D161: =IF(LEN('Détail des projets'!G161)=0,"",'Détail des projets'!G161) -> 06-Montréal | E161: =IF(LEN('Détail des projets'!K161)=0,"",'Détail des projets'!K161) -> 97079.9235 | F161: 369.8282946 | G161: À la fin du projet (suite au dernier versement) | H161: 17.49999931 | I161: QC-Québec | J161: Oui | K161: 15 | L161: 0 | M161: 369.8282946 | N161: Non | O161: Oui | P161: 0 | R161: 0 | T161: 0 | V161: 0 | X161: 0 | Z161: 0 | AB161: 0 | AD161: 0 | AF161: 0
B162: =IF(LEN('Détail des projets'!B162)=0,"",'Détail des projets'!B162) -> Réfrigération CO2 avec récupération de chaleur (000000) | C162: =IF(LEN('Détail des projets'!C162)=0,"",'Détail des projets'!C162) -> Sobeys Capital Incorporée | D162: =IF(LEN('Détail des projets'!G162)=0,"",'Détail des projets'!G162) -> 06-Montréal | E162: =IF(LEN('Détail des projets'!K162)=0,"",'Détail des projets'!K162) -> 141887.49 | F162: 790.7081073 | G162: À la fin du projet (suite au dernier versement) | H162: 11.96290504 | I162: QC-Québec | J162: Oui | K162: 15 | L162: 0 | M162: 790.7081073 | N162: Non | O162: Oui | P162: 0 | R162: 0 | T162: 0 | V162: 0 | X162: 0 | Z162: 0 | AB162: 0 | AD162: 0 | AF162: 0
B163: =IF(LEN('Détail des projets'!B163)=0,"",'Détail des projets'!B163) -> Remplacement des systèmes de réfrigération | C163: =IF(LEN('Détail des projets'!C163)=0,"",'Détail des projets'!C163) -> Goupe Robert Inc. | D163: =IF(LEN('Détail des projets'!G163)=0,"",'Détail des projets'!G163) -> 16-Montérégie | E163: =IF(LEN('Détail des projets'!K163)=0,"",'Détail des projets'!K163) -> 1097937.015 | F163: 4182.617194 | G163: À la fin du projet (suite au dernier versement) | H163: 8.750000012 | I163: QC-Québec | J163: Oui | K163: 30 | L163: 0 | M163: 4182.617194 | N163: Non | O163: Oui | P163: 0 | R163: 0 | T163: 0 | V163: 0 | X163: 0 | Z163: 0 | AB163: 0 | AD163: 0 | AF163: 0
B164: =IF(LEN('Détail des projets'!B164)=0,"",'Détail des projets'!B164) -> Réfrigération au CO2 avec récupération de chaleur (000284) | C164: =IF(LEN('Détail des projets'!C164)=0,"",'Détail des projets'!C164) -> Sobeys Capital Incorporée | D164: =IF(LEN('Détail des projets'!G164)=0,"",'Détail des projets'!G164) -> 06-Montréal | E164: =IF(LEN('Détail des projets'!K164)=0,"",'Détail des projets'!K164) -> 44809.0335 | F164: 170.7010912 | G164: À la fin du projet (suite au dernier versement) | H164: 17.49999886 | I164: QC-Québec | J164: Oui | K164: 15 | L164: 0 | M164: 170.7010912 | N164: Non | O164: Oui | P164: 0 | R164: 0 | T164: 0 | V164: 0 | X164: 0 | Z164: 0 | AB164: 0 | AD164: 0 | AF164: 0
B165: =IF(LEN('Détail des projets'!B165)=0,"",'Détail des projets'!B165) -> Réfrigération au CO2 avec récupération de chaleur (096096) | C165: =IF(LEN('Détail des projets'!C165)=0,"",'Détail des projets'!C165) -> Sobeys Capital Incorporée | D165: =IF(LEN('Détail des projets'!G165)=0,"",'Détail des projets'!G165) -> 06-Montréal | E165: =IF(LEN('Détail des projets'!K165)=0,"",'Détail des projets'!K165) -> 70541.9085 | F165: 268.7310943 | G165: À la fin du projet (suite au dernier versement) | H165: 17.49999907 | I165: QC-Québec | J165: Oui | K165: 15 | L165: 0 | M165: 268.7310943 | N165: Non | O165: Oui | P165: 0 | R165: 0 | T165: 0 | V165: 0 | X165: 0 | Z165: 0 | AB165: 0 | AD165: 0 | AF165: 0
B166: =IF(LEN('Détail des projets'!B166)=0,"",'Détail des projets'!B166) -> Réfrigération au CO2 avec récupération de chaleur (008087) | C166: =IF(LEN('Détail des projets'!C166)=0,"",'Détail des projets'!C166) -> Sobeys Capital Incorporée | D166: =IF(LEN('Détail des projets'!G166)=0,"",'Détail des projets'!G166) -> 16-Montérégie | E166: =IF(LEN('Détail des projets'!K166)=0,"",'Détail des projets'!K166) -> 100023.525 | F166: 381.042015 | G166: À la fin du projet (suite au dernier versement) | H166: 17.49999931 | I166: QC-Québec | J166: Oui | K166: 15 | L166: 0 | M166: 381.042015 | N166: Non | O166: Oui | P166: 0 | R166: 0 | T166: 0 | V166: 0 | X166: 0 | Z166: 0 | AB166: 0 | AD166: 0 | AF166: 0
B167: =IF(LEN('Détail des projets'!B167)=0,"",'Détail des projets'!B167) -> Réfrigération CO2 avec récupération de chaleur (008261) | C167: =IF(LEN('Détail des projets'!C167)=0,"",'Détail des projets'!C167) -> Sobeys Capital Incorporée | D167: =IF(LEN('Détail des projets'!G167)=0,"",'Détail des projets'!G167) -> 15-Laurentides | E167: =IF(LEN('Détail des projets'!K167)=0,"",'Détail des projets'!K167) -> 91611.891 | F167: 348.9976724 | G167: À la fin du projet (suite au dernier versement) | H167: 17.50000038 | I167: QC-Québec | J167: Oui | K167: 15 | L167: 0 | M167: 348.9976724 | N167: Non | O167: Oui | P167: 0 | R167: 0 | T167: 0 | V167: 0 | X167: 0 | Z167: 0 | AB167: 0 | AD167: 0 | AF167: 0
B168: =IF(LEN('Détail des projets'!B168)=0,"",'Détail des projets'!B168) -> Les Viandes Valleyfield - Système de réfrigération au CO2 | C168: =IF(LEN('Détail des projets'!C168)=0,"",'Détail des projets'!C168) -> Les Viandes Valleyfield | D168: =IF(LEN('Détail des projets'!G168)=0,"",'Détail des projets'!G168) -> 16-Montérégie | E168: =IF(LEN('Détail des projets'!K168)=0,"",'Détail des projets'!K168) -> 73314.57 | F168: 279.2935909 | G168: À la fin du projet (suite au dernier versement) | H168: 10.50000034 | I168: QC-Québec | J168: Oui | K168: 25 | L168: 0 | M168: 279.2935909 | N168: Non | O168: Oui | P168: 0 | R168: 0 | T168: 0 | V168: 0 | X168: 0 | Z168: 0 | AB168: 0 | AD168: 0 | AF168: 0
B169: =IF(LEN('Détail des projets'!B169)=0,"",'Détail des projets'!B169) -> Nouvelle patinoire extérieure de Saguenay - Système de réfrigération au CO2 | C169: =IF(LEN('Détail des projets'!C169)=0,"",'Détail des projets'!C169) -> Fondation du club de hockey Canadien pour l'enfance | D169: =IF(LEN('Détail des projets'!G169)=0,"",'Détail des projets'!G169) -> 02-Saguenay--Lac-Saint-Jean | E169: =IF(LEN('Détail des projets'!K169)=0,"",'Détail des projets'!K169) -> 30358.37 | F169: 115.6509352 | G169: À la fin du projet (suite au dernier versement) | H169: 10.49999983 | I169: QC-Québec | J169: Oui | K169: 25 | L169: 0 | M169: 115.6509352 | N169: Non | O169: Oui | P169: 0 | R169: 0 | T169: 0 | V169: 0 | X169: 0 | Z169: 0 | AB169: 0 | AD169: 0 | AF169: 0
B170: =IF(LEN('Détail des projets'!B170)=0,"",'Détail des projets'!B170) ->  | C170: =IF(LEN('Détail des projets'!C170)=0,"",'Détail des projets'!C170) ->  | D170: =IF(LEN('Détail des projets'!G170)=0,"",'Détail des projets'!G170) ->  | E170: =IF(LEN('Détail des projets'!K170)=0,"",'Détail des projets'!K170) -> 
B171: =IF(LEN('Détail des projets'!B171)=0,"",'Détail des projets'!B171) ->  | C171: =IF(LEN('Détail des projets'!C171)=0,"",'Détail des projets'!C171) ->  | D171: =IF(LEN('Détail des projets'!G171)=0,"",'Détail des projets'!G171) ->  | E171: =IF(LEN('Détail des projets'!K171)=0,"",'Détail des projets'!K171) -> 
B172: =IF(LEN('Détail des projets'!B172)=0,"",'Détail des projets'!B172) ->  | C172: =IF(LEN('Détail des projets'!C172)=0,"",'Détail des projets'!C172) ->  | D172: =IF(LEN('Détail des projets'!G172)=0,"",'Détail des projets'!G172) ->  | E172: =IF(LEN('Détail des projets'!K172)=0,"",'Détail des projets'!K172) -> 
B173: =IF(LEN('Détail des projets'!B173)=0,"",'Détail des projets'!B173) ->  | C173: =IF(LEN('Détail des projets'!C173)=0,"",'Détail des projets'!C173) ->  | D173: =IF(LEN('Détail des projets'!G173)=0,"",'Détail des projets'!G173) ->  | E173: =IF(LEN('Détail des projets'!K173)=0,"",'Détail des projets'!K173) -> 
B174: =IF(LEN('Détail des projets'!B174)=0,"",'Détail des projets'!B174) ->  | C174: =IF(LEN('Détail des projets'!C174)=0,"",'Détail des projets'!C174) ->  | D174: =IF(LEN('Détail des projets'!G174)=0,"",'Détail des projets'!G174) ->  | E174: =IF(LEN('Détail des projets'!K174)=0,"",'Détail des projets'!K174) -> 
B175: =IF(LEN('Détail des projets'!B175)=0,"",'Détail des projets'!B175) ->  | C175: =IF(LEN('Détail des projets'!C175)=0,"",'Détail des projets'!C175) ->  | D175: =IF(LEN('Détail des projets'!G175)=0,"",'Détail des projets'!G175) ->  | E175: =IF(LEN('Détail des projets'!K175)=0,"",'Détail des projets'!K175) -> 
B176: =IF(LEN('Détail des projets'!B176)=0,"",'Détail des projets'!B176) ->  | C176: =IF(LEN('Détail des projets'!C176)=0,"",'Détail des projets'!C176) ->  | D176: =IF(LEN('Détail des projets'!G176)=0,"",'Détail des projets'!G176) ->  | E176: =IF(LEN('Détail des projets'!K176)=0,"",'Détail des projets'!K176) -> 
B177: =IF(LEN('Détail des projets'!B177)=0,"",'Détail des projets'!B177) ->  | C177: =IF(LEN('Détail des projets'!C177)=0,"",'Détail des projets'!C177) ->  | D177: =IF(LEN('Détail des projets'!G177)=0,"",'Détail des projets'!G177) ->  | E177: =IF(LEN('Détail des projets'!K177)=0,"",'Détail des projets'!K177) -> 
B178: =IF(LEN('Détail des projets'!B178)=0,"",'Détail des projets'!B178) ->  | C178: =IF(LEN('Détail des projets'!C178)=0,"",'Détail des projets'!C178) ->  | D178: =IF(LEN('Détail des projets'!G178)=0,"",'Détail des projets'!G178) ->  | E178: =IF(LEN('Détail des projets'!K178)=0,"",'Détail des projets'!K178) -> 
B179: =IF(LEN('Détail des projets'!B179)=0,"",'Détail des projets'!B179) ->  | C179: =IF(LEN('Détail des projets'!C179)=0,"",'Détail des projets'!C179) ->  | D179: =IF(LEN('Détail des projets'!G179)=0,"",'Détail des projets'!G179) ->  | E179: =IF(LEN('Détail des projets'!K179)=0,"",'Détail des projets'!K179) -> 
B180: =IF(LEN('Détail des projets'!B180)=0,"",'Détail des projets'!B180) ->  | C180: =IF(LEN('Détail des projets'!C180)=0,"",'Détail des projets'!C180) ->  | D180: =IF(LEN('Détail des projets'!G180)=0,"",'Détail des projets'!G180) ->  | E180: =IF(LEN('Détail des projets'!K180)=0,"",'Détail des projets'!K180) -> 
B181: =IF(LEN('Détail des projets'!B181)=0,"",'Détail des projets'!B181) ->  | C181: =IF(LEN('Détail des projets'!C181)=0,"",'Détail des projets'!C181) ->  | D181: =IF(LEN('Détail des projets'!G181)=0,"",'Détail des projets'!G181) ->  | E181: =IF(LEN('Détail des projets'!K181)=0,"",'Détail des projets'!K181) -> 
B182: =IF(LEN('Détail des projets'!B182)=0,"",'Détail des projets'!B182) ->  | C182: =IF(LEN('Détail des projets'!C182)=0,"",'Détail des projets'!C182) ->  | D182: =IF(LEN('Détail des projets'!G182)=0,"",'Détail des projets'!G182) ->  | E182: =IF(LEN('Détail des projets'!K182)=0,"",'Détail des projets'!K182) -> 
B183: =IF(LEN('Détail des projets'!B183)=0,"",'Détail des projets'!B183) ->  | C183: =IF(LEN('Détail des projets'!C183)=0,"",'Détail des projets'!C183) ->  | D183: =IF(LEN('Détail des projets'!G183)=0,"",'Détail des projets'!G183) ->  | E183: =IF(LEN('Détail des projets'!K183)=0,"",'Détail des projets'!K183) -> 
B184: =IF(LEN('Détail des projets'!B184)=0,"",'Détail des projets'!B184) ->  | C184: =IF(LEN('Détail des projets'!C184)=0,"",'Détail des projets'!C184) ->  | D184: =IF(LEN('Détail des projets'!G184)=0,"",'Détail des projets'!G184) -> 
B185: TOTAL (tonnes éq. CO2) | F185: 0 | M185: =SUM(M25:M184) -> 186988.5094 | P185: =SUM(P25:P184) -> 0 | Q185: 0 | R185: 1295.399171 | S185: 0 | T185: 9164.126327 | U185: 0 | V185: 23707.98167 | W185: 0 | X185: 75104.272 | Y185: 0 | Z185: 73724.67579 | AA185: 0 | AB185: 99214.67191 | AC185: 0 | AD185: 66818.41096 | AE185: 0 | AF185: 72146.98896 | AG185: 0 | AH185: =SUM(AH25:AH49) -> 0 | AI185: 0 | AJ185: 0 | AK185: 0 | AL185: 0 | AM185: 0
B204: TOTAL (tonnes CO2 éq.)

Sheet Indicateurs
B2: =Utilitaire!E8 -> Plan d'action 2013-2020 sur les changements climatiques
B3: ="Action " & Accueil!D58 -> Action en cours
B4: =Accueil!D55 -> 21.1 | C4: =Accueil!E55 -> Réduction des émissions de GES en provenance des systèmes de réfrigération (OPTER) (Écoperformance)
B5: Ministère porteur: | C5: =Accueil!$D$65 -> MERN (SITE)
B6: Indicateurs
B20: Informations en date du : | E20: 2022-03-31
B22: INDICATEURS DE PERFORMANCE | H22: =IF(OR(AND(MONTH(#REF!)>6,YEAR(#REF!)=VALUE(MID(G23,1,4))),YEAR(#REF!)>VALUE(MID(G23,1,4))),"Réel","Prévu") ->  | I22: =IF(OR(AND(MONTH(#REF!)>6,YEAR(#REF!)=VALUE(MID(H23,1,4))),YEAR(#REF!)>VALUE(MID(H23,1,4))),"Réel","Prévu") ->  | J22: =IF(OR(AND(MONTH(#REF!)>6,YEAR(#REF!)=VALUE(MID(I23,1,4))),YEAR(#REF!)>VALUE(MID(I23,1,4))),"Réel","Prévu") ->  | K22: =IF(OR(AND(MONTH(#REF!)>6,YEAR(#REF!)=VALUE(MID(J23,1,4))),YEAR(#REF!)>VALUE(MID(J23,1,4))),"Réel","Prévu") ->  | L22: =IF(OR(AND(MONTH(#REF!)>6,YEAR(#REF!)=VALUE(MID(K23,1,4))),YEAR(#REF!)>VALUE(MID(K23,1,4))),"Réel","Prévu") ->  | M22: =IF(OR(AND(MONTH(#REF!)>6,YEAR(#REF!)=VALUE(MID(L23,1,4))),YEAR(#REF!)>VALUE(MID(L23,1,4))),"Réel","Prévu") ->  | N22: =IF(OR(AND(MONTH(#REF!)>6,YEAR(#REF!)=VALUE(MID(M23,1,4))),YEAR(#REF!)>VALUE(MID(M23,1,4))),"Réel","Prévu") ->  | O22: =IF(OR(AND(MONTH(#REF!)>6,YEAR(#REF!)=VALUE(MID(N23,1,4))),YEAR(#REF!)>VALUE(MID(N23,1,4))),"Réel","Prévu") ->  | P22: =IF(OR(AND(MONTH(#REF!)>6,YEAR(#REF!)=VALUE(MID(O23,1,4))),YEAR(#REF!)>VALUE(MID(O23,1,4))),"Réel","Prévu") ->  | Q22: =IF(OR(AND(MONTH(#REF!)>6,YEAR(#REF!)=VALUE(MID(P23,1,4))),YEAR(#REF!)>VALUE(MID(P23,1,4))),"Réel","Prévu") ->  | S22: =IF(OR(AND(MONTH(#REF!)>6,YEAR(#REF!)=VALUE(MID(Q23,1,4))),YEAR(#REF!)>VALUE(MID(Q23,1,4))),"Réel","Prévu") ->  | T22: =MONTH(#REF!) -> 
B23: Cible | C23: Unité de mesure | D23: Année prévue d'atteinte de la cible | E23: Description de l'indicateur | F23: Type d'indicateur | G23: 2013-2014 | H23: 2014-2015 | I23: 2015-2016 | J23: 2016-2017 | K23: 2017-2018 | L23: 2018-2019 | M23: 2019-2020 | N23: 2020-2021 | O23: 2021-2022 | P23: 2022-2023 | Q23: 2023-2024 | R23: 2024-2025 | S23: RÉSULTAT À COMPARER AVEC LA CIBLE | T23: Pourcentage d'atteinte de la cible | U23: Commentaires sur les résultats
G24: Réel | H24: Réel | I24: Réel | J24: Réel | K24: Réel | L24: Réel | M24: Réel | N24: Réel | O24: Réel | P24: Prévu | Q24: Prévu | R24: Prévu | U24: (facultatif)
A25: 1 | T25: =IF(COUNTA(B25)=1,IF(COUNTA(S25)=1,IF(F25="Minimum à atteindre",IF(B25=0,IF(S25>0,1,0),S25/B25),IF(F25="Maximum à ne pas dépasser",IF(B25=0,IF(S25<0,1,0),(B25-S25)/B25+1),IF(F25="Binaire",IF(B25=S25,1,0),""))),0),"") -> 
A26: 2 | C26: $ / tonne | E26: Aide financière / tonne à vie (aucune cible) | S26: 11.81 | T26: =IF(COUNTA(B26)=1,IF(COUNTA(S26)=1,IF(F26="Minimum à atteindre",IF(B26=0,IF(S26>0,1,0),S26/B26),IF(F26="Maximum à ne pas dépasser",IF(B26=0,IF(S26<0,1,0),(B26-S26)/B26+1),IF(F26="Binaire",IF(B26=S26,1,0),""))),0),"") -> 
A27: 3 | C27: emplois | E27: Emplois créés (aucune cible) | S27: 2811
A28: 4 | C28: dossiers | E28: Nombre de dossiers acceptés (aucune cible) | S28: 145
A29: 5 | C29: tonnes éq. CO2 | E29: Réduction annuel des émissions de gaz à effet de serre (GES) pour les dossiers en cours | S29: 29716.48
A30: 6 | C30: tonnes éq. CO2 | E30: Réduction annuel des émissions de gaz à effet de serre (GES) pour les dossiers en traitement
A31: 7 | B31: 66500 | C31: tonnes éq. CO2 | D31: 2020 | E31: Réduction annuelle des émissions de gaz à effet de serre (GES) | F31: minimum à atteindre | G31: 0 | H31: 1295.360958 | I31: 9164.01563 | J31: 23707.87127 | K31: 75104.16 | L31: 73724.68 | M31: 99214.67 | N31: 66818.41 | O31: 72146.99 | S31: 72146.99 | T31: 1.084917143 | U31: Les résultats ont atteint la cible lors de l'année préve et ont dépassé la cible avec une année de retard.
A32: 8
A33: 9
A34: 10
A35: 11
A36: 12
A37: 13
A38: 14
A39: 15
A40: 16
A41: 17
A42: 18
A43: 19
A44: 20
A45: 21 | AQ45: FALSE
B69: PRÉVISIONS DES RETOMBÉES SUR LES RÉDUCTIONS DES ÉMISSIONS DE GES | F69: Ce tableau et les résultats par action qu'il contient ne seront pas publiés. L'objectif est de permettre une appréciation à l'échelle du PACC des résultats escomptés. Veuillez le compléter et vérifier l'information qui y est contenue, au meilleur de vos connaissances et avec l'information dont vous disposez.
B70: Niveau de certitude | E70: Lieu | F70: 2020 | G70: 2021 | H70: 2022 | I70: 2023 | J70: 2024 | K70: 2025 | L70: 2026 | M70: 2030 | N70: 2035 | O70: 2027 | P70: 2038 | Q70: 2029 | R70: 2031 | S70: 2040 | T70: 2050 | U70: Commentaires sur les résultats
B71: Pérennité des réductions d'émissions de GES réalisées à ce jour (T éq. CO2) | E71: Au Québec
E72: Hors Québec
E73: Non distingué
B74: Développement du potentiel de réduction des émissions de GES pour le futur (T éq. CO2) | E74: Au Québec
E75: Hors Québec
E76: Non distingué
B153: ADAPTATION AUX EFFETS DES CHANGEMENTS CLIMATIQUES
B154: Solutions d'adaptation proposées | D154: Lignes concernées de l'onglet Détail des projets | E154: Étape | F154: Ajustements | H154: Risques | J154: Effets des changements climatiques | L154: Région | S154: Échelle humaine | U154: Échelle environnementale
F155: La solution agit sur : | H155: afin de protéger : | J155: de : | S155: (estimation du nombre de personnes desservies) | U155: (estimation du nombre d'espèces desservies)
B292: Ajouter une ligne

Sheet Commentaires (hidden)
B2: =Utilitaire!E8 -> Plan d'action 2013-2020 sur les changements climatiques | T2: COF
B3: ="Action " & Accueil!D58 -> Action en cours | T3: Frais
B4: =Accueil!D55 -> 21.1 | C4: =Accueil!E55 -> Réduction des émissions de GES en provenance des systèmes de réfrigération (OPTER) (Écoperformance) | T4: ETC
B5: Ministère porteur: | C5: =Accueil!$D$65 -> MERN (SITE) | T5: Détail des projets
B6: Commentaires | T6: Détail des projets (GES)
T7: Bilan GES
T8: Indicateurs
T9: Toutes-Autre
T12: 2013-2014
T13: 2014-2015
T14: 2015-2016
T15: 2016-2017
T16: 2017-2018
T17: 2018-2019
T18: 2019-2020
T19: 2020-2021
B20: Informations en date du : | E20: 2022-03-31 | T20: 2021-2022
T21: 2022-2023
T22: 2023-2024
B24: Commentaires | M24: Section concernée | O24: Année | P24: Exercice | Q24: nom Commentateur | R24: courriel Commentateur
T32: juin
T33: décembre

Sheet Évaluation (hidden)
B2: =Utilitaire!E8 -> Plan d'action 2013-2020 sur les changements climatiques | H2: Conseils de rédaction : | M2: Informations en date du : | N2: =Utilitaire!G6 -> 2022-03-31
B3: ="Action " & Accueil!D58 -> Action en cours | H3: - Veuillez compléter la section "Évaluation de l'action" (OBLIGATOIRE) - ligne 204 (Fin du PACC) - Cet onglet sera pour usage interne seulement, il ne sera pas publié. - Des bulles commentaires dans chacun des titres vous aideront à remplir adéquatement les différentes colonnes. - Les cases de la section « Évaluation de l'action » sont limitées à 3000 caractères.
B4: =Accueil!D55 -> 21.1 | C4: =Accueil!E55 -> Réduction des émissions de GES en provenance des systèmes de réfrigération (OPTER) (Écoperformance)
B5: Ministère porteur: | C5: =Accueil!$D$65 -> MERN (SITE)
B6: Évaluation
B7: Informations en date du : | D7: 2022-03-31
B38: Est-ce qu'une production d'un rapport d'évaluation complet est prévue dans le cadre de cette action :
B40: Liste des livrables
B41: Titre du document | D41: Date du document | F41: Type de document | I41: Date prévue de transmission au BECC | K41: Date réelle de transmission au BECC | M41: Référence | N41: Commentaires
B42: Synthèse des évalutations de programmes-Raymond Chabot Grant Thornton | D42: 2017-10-02 | F42: Résultats | K42: 2018-12-31
B43: Planification évaluation de programme | D43: 2018-02-01 | F43: Résultats | K43: 2018-12-31
B44: Rapport-Analyse synthèse des évaluations des programmes-Raymond Chabot Grant Thornton | D44: 2017-09-20 | F44: Rapport d'évaluation | K44: 2018-12-31
B46: Rapport d'évaluation - ÉcoPerformance | D46: 2021-05-14 | F46: Rapport d'évaluation | M46: https://transitionenergetique.gouv.qc.ca/fileadmin/medias/pdf/evaluation-programmes/EcoPerformance_rapport_evaluation_2021.pdf
B146: Ajouter une ligne
B204: Évaluation de l'action
C209: Début : | D209: =Accueil!$D$68 -> 2013-10-28 | I209: Fin : | J209: =Accueil!$K$68 -> 2024-03-31
B210: Résultats attendus : | C210: =IF(LEN(Description!C49)>0,Description!C49,"") -> Les résultats directs attendus sont, la réduction des émissions de GES, des investissements importants dans les différents secteurs touchés, la création d'emplois et une amélioration soutenue de la performance énergétique en lien avec les systèmes de réfrigération et la réduction des émissions fugitives. Au Québec en 2010, on comptait environ 425 arénas et 75 centres de curling . Parmi ceux-ci, 71 % avaient plus de 30 ans et 62 % utilisaient le réfrigérant R22 de type HCFC (hydrochlorofluorocarbure). Celui-ci est une substance appauvrissant la couche d'ozone. Le nombre d'établissements d'alimentation au Québec serait de 2 360 magasins . Les supermarchés de grande superficie, constituent une des clientèles visées par le Programme. Cela représente plus de 850 supermarchés au Québec.
B211: Résultats obtenus (Cibles, indicateurs et description) : | C211: =IF(COUNTA(Indicateurs!B25:B45)=0,0,AVERAGE(Indicateurs!$T$25:$T$45)) -> 1.084917143 | D211: =IF(LEN(Description!C50)>0,Description!C50,"") -> 
D212: =IF(LEN(Description!C51)>0,Description!C51,"") -> En date du 31 mars 2022, 16 analyses et 129 projets d’implantation ont été acceptés par le ministre, pour une réduction annuelle potentielle de 101,9 kt de CO2, nécessitant des investissements de 200,8 M$ grâce à des aides financières de 24,1 M$ pour un coût moyen de l’aide financière de 11,81 $/t sur la durée de vie des équipements (20,05 ans). Ces investissements entraîneraient la création de 2 811 emplois.
B217: Type d'évaluation :
B218: Est-ce que les résultats obtenus dans le cadre de l'action sont satisfaisants? | C218: Oui | D218: Les projets de nos participants se réalisent sur une période de 36 à 48 mois. Les projets reçues et acceptés ces 2-3 dernières années vont produire des résultats réels dans le courant des 2-3 prochaines années.
B219: Quelles sont les améliorations possibles pour le futur?
B220: Quels sont les forces et les points positifs de l'action?
B221: Quelle est votre recommandation quant à la poursuite de cette action?
B222: Autres commentaires | C222: Reddition de compte à revoir pour nos programmes dans le cadre du PEV. Le détail des décaissements par année financière pour chacun des projets complexifie cette reddition de compte sans pour autant la valoriser. Ceci en fonction de la gestion de nos versements.

Sheet Validation (hidden)
B2: =Utilitaire!E8 -> Plan d'action 2013-2020 sur les changements climatiques
B3: ="Action " & Accueil!D58 -> Action en cours
B4: =Accueil!D55 -> 21.1
B5: Ministère porteur: | D5: =Accueil!$D$65 -> MERN (SITE) | E5: =Accueil!$D$65 -> MERN (SITE)
B6: Rapport de validation de la fiche de suivi
B8: Conseils de rédaction : | E8: Informations en date du : | G8: =Utilitaire!G6 -> 2022-03-31
B9: '- Cet onglet ne sera pas diffusé. - Nous apprécierions vos commentaires constructifs par rapport aux nouvelles fiches de suivi. La case B15 est réservée à cet effet. - Complétez la grille de validation ci-dessous (ligne 19) en cochant chaque point. Vous pouvez inscrire des commentaires à l'endroit prévu à cet effet.
B14: Votre appréciation de la fiche de suivi et suggestions pour les prochains exercices
B17: Grille de validation de la fiche de suivi
B18: Fin du PACC | G18: Commentaires
B19: Avez-vous complété le tableau de la ligne 204 de l'onglet Évaluation?
B20: Avez-vous saisi tous vos engagements à SAGIR (vous avez jusqu'au 31 mai)?
B21: Onglet Accueil | G21: Commentaires
B22: Vérifier que toutes les cases sont remplies.
B23: Les cases non remplies s'affichent en orange Les lignes 69 à 73 seront masquées pour la publication.
B24: Vérifier que la part de financement est écrite sous forme de pourcentage (ex. : 60 %).
B25: Inscrire un nombre entre 0 et 100 suivi du symbole "%". Si le pourcentage est variable, inscrire "Variable".
B26: Vérifier que le statut de l'action est toujours conforme avec son évolution.
B27: Utiliser l'information des onglets "Description" et Détail des projets" afin que le statut soit conforme avec l'évolution de l'action.
B28: Vérifier, s'il y a lieu, que le nom du programme est inscrit.
B29: Onglet Description | G29: Commentaires
B30: Vérifier que toutes les cases obligatoires sont remplies.
B31: Vérifier que tous les éléments pertinents en lien avec le COVID-19 sont inscrits au tableau prévu à cet effet.
B32: Vérifier que les éléments de classification de l'action sont sélectionnés à partir du menu déroulant.
B33: Vérifier que l'entièreté du texte est lisible.
B34: Vérifier que l'échéancier dans la section "Mise en œuvre" est inscrit.
B35: Vérifier que l'état d'avancement est sélectionné à partir du menu déroulant.
B36: Vérifier que le tableau "Plans, stratégies, politiques incluant la mise en œuvre de cette action" est rempli.
B37: Onglet Détail des projets | G37: Commentaires
B38: Vérifier que les informations confidentielles sont inscrites en bleu.
B39: Transmettre au BECC le rapport des résultats, si un projet est terminé.
B40: Vérifier le total des dépenses réelles de tous les projets correspond à celui inscrit dans les COF pour chaque année financière complétée.
B41: Vérifier que le total des dépenses réelles et prévues pour un projet n'excède pas le montant engagé.
B42: Vérifier l'utilisation des nouveaux statuts de projets pour les projets affectés par le COVID-19
B43: Onglet GES | G43: Commentaires
B44: Vérifier que le total des réductions de GES correspond aux données de l'onglet "Indicateurs".
B45: Vérifier que les deux cases de la ligne 20 sont bien remplies.
B46: Vérifier que le coût la tonne et la durée du projet sont bien indiqués pour tous les projets ayant soit un potentiel de réduction ou des réductions réelles (colonnes H et K).
B47: La méthode de calcul du coût la tonne doit respecter les indications en commentaire dans la cellule H23.
B48: Onglet Indicateurs | G48: Commentaires
B49: Vérifier la cohérence des cibles, des résultats et des résultats à comparer avec les cibles. (même unité de mesure, évolution des résultats annuels)
B50: S'il y a lieu, utiliser la colonne "Commentaires sur les résultats" afin de fournir davantage d'informations.
B51: Vérifier que les commentaires à l'intention du BECC qui ne sont pas pour diffusion sont inscrits en bleu.
B52: Vérifier qu'il y a des résultats pour tous les indicateurs. Inscrire un 0 comme résultat pour les indicateurs ne présentant pas de résultats.
B53: Si les résultats ne sont pas disponibles, vous devez inscrire un commentaire dans la colonne prévue à cet effet indiquant à quel moment ils seront disponibles.
B54: Transmettre au BECC pour approbation une annexe 4 (fiche-indicateur) si vous désirez qu'un indicateur soit ajouté.
B55: Vérifier que le tableau "PRÉVISIONS DES RETOMBÉES SUR LES RÉDUCTIONS DES ÉMISSIONS DE GES" est bien rempli si votre action vise la réduction des GES.
B56: Vérifier que le tableau "ADAPTATION AUX EFFETS DES CHANGEMENTS CLIMATIQUES" est bien rempli si votre action vise l'adaptation aux changements climatiques.
B57: Onglet Commentaires | G57: Commentaires
B58: Vérifier que les commentaires de l'exercice précédent s'appliquent toujours. Retirer tous les commentaires qui ne s'appliquent plus.
B59: Inscrire en noir les commentaires nécessaires à afficher lors de la publication des fiches
B60: Onglet Évaluation | G60: Commentaires
B61: Remplir et mettre à jour la liste des livrables. Veuillez transmettre tout livrable attendu au BECC avec votre fiche de suivi.
B62: Veuillez remplir la section Évaluation de l'action. Obligatoire pour la fin du PACC.
A81: Code de couleur | B81: Onglet concerné | C81: no ligne | D81: Description de la problématique | E81: No d'erreur | G81: Commentaires
B82: Description | D82: Les informations "Description, objectif, clientèle, critères d'admissibilité, processus de suivi de l'action, résultats attendus, résultats obtenus dans la dernière année, résultats obtenus, finalité, catégorie" sont manquantes dans l'onglet Description. | E82: 18
B83: détail des projets | D83: Aucun projet n'est mentionné dans la fiche. Cette situation est acceptable seulement si l'action n'est pas encore lancée (statut non démarrée ou en élaboration). | E83: 12
B84: GES | D84: Les informations "Potentiel de réduction des GES, réduction réelle des émissions de GES" sont manquantes dans l'onglet GES. | E84: 18
B85: indicateurs | D85: Aucun indicateur n'est inscrit pour cette action. Acceptable seulement si l'action n'est pas démarrée. | E85: 20

Sheet Modalités de fin du PACC (hidden)
B2: Échéancier de la fin du Plan d'action 2013-2020 sur les changements climatiques
B4: - | C4: 2021-03-31 | E4: Fin du PACC. Vous ne pouvez plus prendre de nouveaux engagements en vertu des actions du PACC.
B5: - | C5: 2021-05-31 | E5: Échéance pour saisir dans SAGIR les engagements (lettre d'octroi suffisante) pris avant le 31 mars.
B6: - | C6: 2021-12-31 | E6: Échéance pour signer les conventions de subventions se rapportant aux engagements saisis à SAGIR.
B7: - | C7: 2022-12-31 | E7: Fin des projets réalisés à l'interne des Partenaires
B8: - | C8: 2025-12-31 | E8: Fin des projets
B9: Lorsque tous les projets liés à une action seront terminés et que tous les résultats liés à l'action seront colligés, l'action sera inscrite comme étant « terminée » et sera retirée du suivi semestriel.
B13: Modalités détaillées de la fin du PACC
B14: (Ces modalités sont annexées à l'entente administrative concernant la mise en œuvre du PACC et concordent avec l'échéancier ci-dessus)
C15: 1. Les enveloppes budgétaires 2013-2020 des actions et sous-actions (Annexe 2 de l’ENTENTE) doivent être respectées en tout temps.
C16: 2. Tous les engagements (c.-à-d. une dépense jugée admissible et autorisée) doivent être pris avant le 31 mars 2021. Après cette date, les engagements pris ne peuvent plus être bonifiés.
C17: 3. Tous les engagements pris avant le 31 mars 2021 (par exemple : lettre d’octroi de subvention signée par vos autorités, contrat, convention ou entente signés, décret ou CT approuvé) doivent être saisis dans SAGIR au plus tard le 31 mai 2021. Une nouvelle version de la « Procédure de comptabilisation des dépenses portées au débit du Fonds d’électrification et de changements climatiques par les ministères et organismes partenaires » sera transmise ultérieurement lors de la fermeture de la fin d’année financière 2020-2021 afin de tenir compte de la fin du PACC.
C18: 4. Les conventions d’aide financière qui ne pourront être signées avant le 31 mars 2021 pourront être reconnues comme engagées seulement si le Partenaire transmet une lettre d’octroi de subvention au bénéficiaire avant cette date :
D19: · La lettre d’octroi devra mentionner le montant total de la subvention avec le détail des versements estimés par année financière et devra préciser qu’elle est conditionnelle à une décision du Conseil des ministres ou du Conseil du trésor lorsqu’applicable. Enfin, la lettre devra préciser que la subvention est conditionnelle à la signature d’une convention de subvention au plus tard le 31 décembre 2021.
C20: 5. Aucun engagement ne pourra s’échelonner au-delà du 31 décembre 2025.
C21: 6. Les frais d’administration (dépenses de rémunération et de fonctionnement) nécessaires au suivi de conventions d’aide financière ou de contrats pourront être imputés au FECC jusqu’au terme des projets ou au plus tard au 31 décembre 2025.
C22: 7. Les suivis se poursuivront tant que les actions ne seront pas terminées.
C23: 8. Aucune dépense pour les projets réalisés à l’interne (projets majoritairement réalisés en régie interne par le personnel du Partenaire) ne pourra être effectuée au-delà du 31 mars 2022.

Sheet Prochain Exercice-Commentaire (hidden)
B2: =Utilitaire!E8 -> Plan d'action 2013-2020 sur les changements climatiques
B4: Commentaires | E4: =Accueil!D65 & " - " &Accueil!D53 -> MERN (SITE) - 21,1
E5: ="Action " & Accueil!D58 -> Action en cours
B6: Conseils de rédaction : | D6: Informations en date du : | F6: =Utilitaire!G6 -> 2022-03-31
B7: - Veuillez inscrire ici tout commentaire pour prochain exercice
B10: Onglet de la fiche | C10: Case | D10: Commentaire
B11: GES | C11: M185 | D11: À l'été 2022, vous nous avez remis le document "21-1-ecoperformance - Onglet GES avec année 21-22.xlsx" afin de nous permettre de compléter la fiche 21-1 Ecoperformance. Dans ce document, à la cellule L149, le total des émissions évitées est de 101 564,73, car vous avez retranché la somme 85 125,0375, provenant de PureSphera, au total de 186 689,76 ( montant corrigé ici à 186 988,51). Notre question : Faut-il retrancher 85 125,0375 du total en M185 de la présente fiche? (Diane Savard)
